Workbook

Sheet Info
B3: YASİN ENGİN (Civil Engineer, M.Sc.)
B7: www.betonvecimento.com
B9: yasin.engin@gmail.com
J11: Ocak 2015, V.1
B13: Just move your mouse on the table to view the properties of the elements.

Sheet Periodic Table
V2: Filter Selection
U3: 1 | V3: < | W3: =IFERROR(HYPERLINK(ToggleFilter(U3),AA18),AA18) -> ALKALI METALS | X3: =OR(U3=ToggleIndex,Y3) -> FALSE | Y3: FALSE
C4: =C18 &CHAR(10) &INDEX(Symbol,IFERROR(HYPERLINK(RolloverElement(C18),C18+1),C18+1)) -> 1 H | T4: =T18 &CHAR(10) &INDEX(Symbol,IFERROR(HYPERLINK(RolloverElement(T18),T18+1),T18+1)) -> 2 He | U4: 2 | V4: < | W4: =IFERROR(HYPERLINK(ToggleFilter(U4),AA19),AA19) -> ALKALINE EARTH METALS | X4: FALSE | Y4: FALSE
C5: =C19 &CHAR(10) &INDEX(Symbol,IFERROR(HYPERLINK(RolloverElement(C19),C19+1),C19+1)) -> 3 Li | D5: =D19 &CHAR(10) &INDEX(Symbol,IFERROR(HYPERLINK(RolloverElement(D19),D19+1),D19+1)) -> 4 Be | O5: =O19 &CHAR(10) &INDEX(Symbol,IFERROR(HYPERLINK(RolloverElement(O19),O19+1),O19+1)) -> 5 B | P5: =P19 &CHAR(10) &INDEX(Symbol,IFERROR(HYPERLINK(RolloverElement(P19),P19+1),P19+1)) -> 6 C | Q5: =Q19 &CHAR(10) &INDEX(Symbol,IFERROR(HYPERLINK(RolloverElement(Q19),Q19+1),Q19+1)) -> 7 N | R5: =R19 &CHAR(10) &INDEX(Symbol,IFERROR(HYPERLINK(RolloverElement(R19),R19+1),R19+1)) -> 8 O | S5: =S19 &CHAR(10) &INDEX(Symbol,IFERROR(HYPERLINK(RolloverElement(S19),S19+1),S19+1)) -> 9 F | T5: =T19 &CHAR(10) &INDEX(Symbol,IFERROR(HYPERLINK(RolloverElement(T19),T19+1),T19+1)) -> 10 Ne | U5: 3 | V5: < | W5: =IFERROR(HYPERLINK(ToggleFilter(U5),AA20),AA20) -> LANTHANIDES | X5: FALSE | Y5: FALSE
C6: =C20 &CHAR(10) &INDEX(Symbol,IFERROR(HYPERLINK(RolloverElement(C20),C20+1),C20+1)) -> 11 Na | D6: =D20 &CHAR(10) &INDEX(Symbol,IFERROR(HYPERLINK(RolloverElement(D20),D20+1),D20+1)) -> 12 Mg | O6: =O20 &CHAR(10) &INDEX(Symbol,IFERROR(HYPERLINK(RolloverElement(O20),O20+1),O20+1)) -> 13 Al | P6: =P20 &CHAR(10) &INDEX(Symbol,IFERROR(HYPERLINK(RolloverElement(P20),P20+1),P20+1)) -> 14 Si | Q6: =Q20 &CHAR(10) &INDEX(Symbol,IFERROR(HYPERLINK(RolloverElement(Q20),Q20+1),Q20+1)) -> 15 P | R6: =R20 &CHAR(10) &INDEX(Symbol,IFERROR(HYPERLINK(RolloverElement(R20),R20+1),R20+1)) -> 16 S | S6: =S20 &CHAR(10) &INDEX(Symbol,IFERROR(HYPERLINK(RolloverElement(S20),S20+1),S20+1)) -> 17 Cl | T6: =T20 &CHAR(10) &INDEX(Symbol,IFERROR(HYPERLINK(RolloverElement(T20),T20+1),T20+1)) -> 18 Ar | U6: 4 | V6: < | W6: =IFERROR(HYPERLINK(ToggleFilter(U6),AA21),AA21) -> ACTINIDES | X6: FALSE | Y6: FALSE
C7: =C21 &CHAR(10) &INDEX(Symbol,IFERROR(HYPERLINK(RolloverElement(C21),C21+1),C21+1)) -> 19 K | D7: =D21 &CHAR(10) &INDEX(Symbol,IFERROR(HYPERLINK(RolloverElement(D21),D21+1),D21+1)) -> 20 Ca | E7: =E21 &CHAR(10) &INDEX(Symbol,IFERROR(HYPERLINK(RolloverElement(E21),E21+1),E21+1)) -> 21 Sc | F7: =F21 &CHAR(10) &INDEX(Symbol,IFERROR(HYPERLINK(RolloverElement(F21),F21+1),F21+1)) -> 22 Ti | G7: =G21 &CHAR(10) &INDEX(Symbol,IFERROR(HYPERLINK(RolloverElement(G21),G21+1),G21+1)) -> 23 V | H7: =H21 &CHAR(10) &INDEX(Symbol,IFERROR(HYPERLINK(RolloverElement(H21),H21+1),H21+1)) -> 24 Cr | I7: =I21 &CHAR(10) &INDEX(Symbol,IFERROR(HYPERLINK(RolloverElement(I21),I21+1),I21+1)) -> 25 Mn | J7: =J21 &CHAR(10) &INDEX(Symbol,IFERROR(HYPERLINK(RolloverElement(J21),J21+1),J21+1)) -> 26 Fe | K7: =K21 &CHAR(10) &INDEX(Symbol,IFERROR(HYPERLINK(RolloverElement(K21),K21+1),K21+1)) -> 27 Co | L7: =L21 &CHAR(10) &INDEX(Symbol,IFERROR(HYPERLINK(RolloverElement(L21),L21+1),L21+1)) -> 28 Ni | M7: =M21 &CHAR(10) &INDEX(Symbol,IFERROR(HYPERLINK(RolloverElement(M21),M21+1),M21+1)) -> 29 Cu | N7: =N21 &CHAR(10) &INDEX(Symbol,IFERROR(HYPERLINK(RolloverElement(N21),N21+1),N21+1)) -> 30 Zn | O7: =O21 &CHAR(10) &INDEX(Symbol,IFERROR(HYPERLINK(RolloverElement(O21),O21+1),O21+1)) -> 31 Ga | P7: =P21 &CHAR(10) &INDEX(Symbol,IFERROR(HYPERLINK(RolloverElement(P21),P21+1),P21+1)) -> 32 Ge | Q7: =Q21 &CHAR(10) &INDEX(Symbol,IFERROR(HYPERLINK(RolloverElement(Q21),Q21+1),Q21+1)) -> 33 As | R7: =R21 &CHAR(10) &INDEX(Symbol,IFERROR(HYPERLINK(RolloverElement(R21),R21+1),R21+1)) -> 34 Se | S7: =S21 &CHAR(10) &INDEX(Symbol,IFERROR(HYPERLINK(RolloverElement(S21),S21+1),S21+1)) -> 35 Br | T7: =T21 &CHAR(10) &INDEX(Symbol,IFERROR(HYPERLINK(RolloverElement(T21),T21+1),T21+1)) -> 36 Kr | U7: 5 | V7: < | W7: =IFERROR(HYPERLINK(ToggleFilter(U7),AA22),AA22) -> TRANSITION METALS | X7: FALSE | Y7: FALSE
C8: =C22 &CHAR(10) &INDEX(Symbol,IFERROR(HYPERLINK(RolloverElement(C22),C22+1),C22+1)) -> 37 Rb | D8: =D22 &CHAR(10) &INDEX(Symbol,IFERROR(HYPERLINK(RolloverElement(D22),D22+1),D22+1)) -> 38 Sr | E8: =E22 &CHAR(10) &INDEX(Symbol,IFERROR(HYPERLINK(RolloverElement(E22),E22+1),E22+1)) -> 39 Y | F8: =F22 &CHAR(10) &INDEX(Symbol,IFERROR(HYPERLINK(RolloverElement(F22),F22+1),F22+1)) -> 40 Zr | G8: =G22 &CHAR(10) &INDEX(Symbol,IFERROR(HYPERLINK(RolloverElement(G22),G22+1),G22+1)) -> 41 Nb | H8: =H22 &CHAR(10) &INDEX(Symbol,IFERROR(HYPERLINK(RolloverElement(H22),H22+1),H22+1)) -> 42 Mo | I8: =I22 &CHAR(10) &INDEX(Symbol,IFERROR(HYPERLINK(RolloverElement(I22),I22+1),I22+1)) -> 43 Tc | J8: =J22 &CHAR(10) &INDEX(Symbol,IFERROR(HYPERLINK(RolloverElement(J22),J22+1),J22+1)) -> 44 Ru | K8: =K22 &CHAR(10) &INDEX(Symbol,IFERROR(HYPERLINK(RolloverElement(K22),K22+1),K22+1)) -> 45 Rh | L8: =L22 &CHAR(10) &INDEX(Symbol,IFERROR(HYPERLINK(RolloverElement(L22),L22+1),L22+1)) -> 46 Pd | M8: =M22 &CHAR(10) &INDEX(Symbol,IFERROR(HYPERLINK(RolloverElement(M22),M22+1),M22+1)) -> 47 Ag | N8: =N22 &CHAR(10) &INDEX(Symbol,IFERROR(HYPERLINK(RolloverElement(N22),N22+1),N22+1)) -> 48 Cd | O8: =O22 &CHAR(10) &INDEX(Symbol,IFERROR(HYPERLINK(RolloverElement(O22),O22+1),O22+1)) -> 49 In | P8: =P22 &CHAR(10) &INDEX(Symbol,IFERROR(HYPERLINK(RolloverElement(P22),P22+1),P22+1)) -> 50 Sn | Q8: =Q22 &CHAR(10) &INDEX(Symbol,IFERROR(HYPERLINK(RolloverElement(Q22),Q22+1),Q22+1)) -> 51 Sb | R8: =R22 &CHAR(10) &INDEX(Symbol,IFERROR(HYPERLINK(RolloverElement(R22),R22+1),R22+1)) -> 52 Te | S8: =S22 &CHAR(10) &INDEX(Symbol,IFERROR(HYPERLINK(RolloverElement(S22),S22+1),S22+1)) -> 53 I | T8: =T22 &CHAR(10) &INDEX(Symbol,IFERROR(HYPERLINK(RolloverElement(T22),T22+1),T22+1)) -> 54 Xe | U8: 6 | V8: < | W8: =IFERROR(HYPERLINK(ToggleFilter(U8),AA23),AA23) -> POST-TRANSITION METALS | X8: FALSE | Y8: FALSE
C9: =C23 &CHAR(10) &INDEX(Symbol,IFERROR(HYPERLINK(RolloverElement(C23),C23+1),C23+1)) -> 55 Cs | D9: =D23 &CHAR(10) &INDEX(Symbol,IFERROR(HYPERLINK(RolloverElement(D23),D23+1),D23+1)) -> 56 Ba | E9: … | F9: =F23 &CHAR(10) &INDEX(Symbol,IFERROR(HYPERLINK(RolloverElement(F23),F23+1),F23+1)) -> 72 Hf | G9: =G23 &CHAR(10) &INDEX(Symbol,IFERROR(HYPERLINK(RolloverElement(G23),G23+1),G23+1)) -> 73 Ta | H9: =H23 &CHAR(10) &INDEX(Symbol,IFERROR(HYPERLINK(RolloverElement(H23),H23+1),H23+1)) -> 74 W | I9: =I23 &CHAR(10) &INDEX(Symbol,IFERROR(HYPERLINK(RolloverElement(I23),I23+1),I23+1)) -> 75 Re | J9: =J23 &CHAR(10) &INDEX(Symbol,IFERROR(HYPERLINK(RolloverElement(J23),J23+1),J23+1)) -> 76 Os | K9: =K23 &CHAR(10) &INDEX(Symbol,IFERROR(HYPERLINK(RolloverElement(K23),K23+1),K23+1)) -> 77 Ir | L9: =L23 &CHAR(10) &INDEX(Symbol,IFERROR(HYPERLINK(RolloverElement(L23),L23+1),L23+1)) -> 78 Pt | M9: =M23 &CHAR(10) &INDEX(Symbol,IFERROR(HYPERLINK(RolloverElement(M23),M23+1),M23+1)) -> 79 Au | N9: =N23 &CHAR(10) &INDEX(Symbol,IFERROR(HYPERLINK(RolloverElement(N23),N23+1),N23+1)) -> 80 Hg | O9: =O23 &CHAR(10) &INDEX(Symbol,IFERROR(HYPERLINK(RolloverElement(O23),O23+1),O23+1)) -> 81 Tl | P9: =P23 &CHAR(10) &INDEX(Symbol,IFERROR(HYPERLINK(RolloverElement(P23),P23+1),P23+1)) -> 82 Pb | Q9: =Q23 &CHAR(10) &INDEX(Symbol,IFERROR(HYPERLINK(RolloverElement(Q23),Q23+1),Q23+1)) -> 83 Bi | R9: =R23 &CHAR(10) &INDEX(Symbol,IFERROR(HYPERLINK(RolloverElement(R23),R23+1),R23+1)) -> 84 Po | S9: =S23 &CHAR(10) &INDEX(Symbol,IFERROR(HYPERLINK(RolloverElement(S23),S23+1),S23+1)) -> 85 At | T9: =T23 &CHAR(10) &INDEX(Symbol,IFERROR(HYPERLINK(RolloverElement(T23),T23+1),T23+1)) -> 86 Rn | U9: 7 | V9: < | W9: =IFERROR(HYPERLINK(ToggleFilter(U9),AA24),AA24) -> METALlOIDS | X9: FALSE | Y9: FALSE
C10: =C24 &CHAR(10) &INDEX(Symbol,IFERROR(HYPERLINK(RolloverElement(C24),C24+1),C24+1)) -> 87 Fr | D10: =D24 &CHAR(10) &INDEX(Symbol,IFERROR(HYPERLINK(RolloverElement(D24),D24+1),D24+1)) -> 88 Ra | E10: … | F10: =F24 &CHAR(10) &INDEX(Symbol,IFERROR(HYPERLINK(RolloverElement(F24),F24+1),F24+1)) -> 104 Rf | G10: =G24 &CHAR(10) &INDEX(Symbol,IFERROR(HYPERLINK(RolloverElement(G24),G24+1),G24+1)) -> 105 Db | H10: =H24 &CHAR(10) &INDEX(Symbol,IFERROR(HYPERLINK(RolloverElement(H24),H24+1),H24+1)) -> 106 Sg | I10: =I24 &CHAR(10) &INDEX(Symbol,IFERROR(HYPERLINK(RolloverElement(I24),I24+1),I24+1)) -> 107 Bh | J10: =J24 &CHAR(10) &INDEX(Symbol,IFERROR(HYPERLINK(RolloverElement(J24),J24+1),J24+1)) -> 108 Hs | K10: =K24 &CHAR(10) &INDEX(Symbol,IFERROR(HYPERLINK(RolloverElement(K24),K24+1),K24+1)) -> 109 Mt | L10: =L24 &CHAR(10) &INDEX(Symbol,IFERROR(HYPERLINK(RolloverElement(L24),L24+1),L24+1)) -> 110 Ds | M10: =M24 &CHAR(10) &INDEX(Symbol,IFERROR(HYPERLINK(RolloverElement(M24),M24+1),M24+1)) -> 111 Rg | N10: =N24 &CHAR(10) &INDEX(Symbol,IFERROR(HYPERLINK(RolloverElement(N24),N24+1),N24+1)) -> 112 Cn | O10: =O24 &CHAR(10) &INDEX(Symbol,IFERROR(HYPERLINK(RolloverElement(O24),O24+1),O24+1)) -> 113 Uut | P10: =P24 &CHAR(10) &INDEX(Symbol,IFERROR(HYPERLINK(RolloverElement(P24),P24+1),P24+1)) -> 114 Fl | Q10: =Q24 &CHAR(10) &INDEX(Symbol,IFERROR(HYPERLINK(RolloverElement(Q24),Q24+1),Q24+1)) -> 115 Uup | R10: =R24 &CHAR(10) &INDEX(Symbol,IFERROR(HYPERLINK(RolloverElement(R24),R24+1),R24+1)) -> 116 Lv | S10: =S24 &CHAR(10) &INDEX(Symbol,IFERROR(HYPERLINK(RolloverElement(S24),S24+1),S24+1)) -> 117 Uus | T10: =T24 &CHAR(10) &INDEX(Symbol,IFERROR(HYPERLINK(RolloverElement(T24),T24+1),T24+1)) -> 118 Uuo | U10: 8 | V10: < | W10: =IFERROR(HYPERLINK(ToggleFilter(U10),AA25),AA25) -> NONMETALS | X10: FALSE | Y10: FALSE
U11: 9 | V11: < | W11: =IFERROR(HYPERLINK(ToggleFilter(U11),AA26),AA26) -> HALOGENS | X11: FALSE | Y11: FALSE
E12: =E26 &CHAR(10) &INDEX(Symbol,IFERROR(HYPERLINK(RolloverElement(E26),E26+1),E26+1)) -> 57 La | F12: =F26 &CHAR(10) &INDEX(Symbol,IFERROR(HYPERLINK(RolloverElement(F26),F26+1),F26+1)) -> 58 Ce | G12: =G26 &CHAR(10) &INDEX(Symbol,IFERROR(HYPERLINK(RolloverElement(G26),G26+1),G26+1)) -> 59 Pr | H12: =H26 &CHAR(10) &INDEX(Symbol,IFERROR(HYPERLINK(RolloverElement(H26),H26+1),H26+1)) -> 60 Nd | I12: =I26 &CHAR(10) &INDEX(Symbol,IFERROR(HYPERLINK(RolloverElement(I26),I26+1),I26+1)) -> 61 Pm | J12: =J26 &CHAR(10) &INDEX(Symbol,IFERROR(HYPERLINK(RolloverElement(J26),J26+1),J26+1)) -> 62 Sm | K12: =K26 &CHAR(10) &INDEX(Symbol,IFERROR(HYPERLINK(RolloverElement(K26),K26+1),K26+1)) -> 63 Eu | L12: =L26 &CHAR(10) &INDEX(Symbol,IFERROR(HYPERLINK(RolloverElement(L26),L26+1),L26+1)) -> 64 Gd | M12: =M26 &CHAR(10) &INDEX(Symbol,IFERROR(HYPERLINK(RolloverElement(M26),M26+1),M26+1)) -> 65 Tb | N12: =N26 &CHAR(10) &INDEX(Symbol,IFERROR(HYPERLINK(RolloverElement(N26),N26+1),N26+1)) -> 66 Dy | O12: =O26 &CHAR(10) &INDEX(Symbol,IFERROR(HYPERLINK(RolloverElement(O26),O26+1),O26+1)) -> 67 Ho | P12: =P26 &CHAR(10) &INDEX(Symbol,IFERROR(HYPERLINK(RolloverElement(P26),P26+1),P26+1)) -> 68 Er | Q12: =Q26 &CHAR(10) &INDEX(Symbol,IFERROR(HYPERLINK(RolloverElement(Q26),Q26+1),Q26+1)) -> 69 Tm | R12: =R26 &CHAR(10) &INDEX(Symbol,IFERROR(HYPERLINK(RolloverElement(R26),R26+1),R26+1)) -> 70 Yb | S12: =S26 &CHAR(10) &INDEX(Symbol,IFERROR(HYPERLINK(RolloverElement(S26),S26+1),S26+1)) -> 71 Lu | U12: 10 | V12: < | W12: =IFERROR(HYPERLINK(ToggleFilter(U12),AA27),AA27) -> NOBLE GASES | X12: FALSE | Y12: FALSE
E13: =E27 &CHAR(10) &INDEX(Symbol,IFERROR(HYPERLINK(RolloverElement(E27),E27+1),E27+1)) -> 89 Ac | F13: =F27 &CHAR(10) &INDEX(Symbol,IFERROR(HYPERLINK(RolloverElement(F27),F27+1),F27+1)) -> 90 Th | G13: =G27 &CHAR(10) &INDEX(Symbol,IFERROR(HYPERLINK(RolloverElement(G27),G27+1),G27+1)) -> 91 Pa | H13: =H27 &CHAR(10) &INDEX(Symbol,IFERROR(HYPERLINK(RolloverElement(H27),H27+1),H27+1)) -> 92 U | I13: =I27 &CHAR(10) &INDEX(Symbol,IFERROR(HYPERLINK(RolloverElement(I27),I27+1),I27+1)) -> 93 Np | J13: =J27 &CHAR(10) &INDEX(Symbol,IFERROR(HYPERLINK(RolloverElement(J27),J27+1),J27+1)) -> 94 Pu | K13: =K27 &CHAR(10) &INDEX(Symbol,IFERROR(HYPERLINK(RolloverElement(K27),K27+1),K27+1)) -> 95 Am | L13: =L27 &CHAR(10) &INDEX(Symbol,IFERROR(HYPERLINK(RolloverElement(L27),L27+1),L27+1)) -> 96 Cm | M13: =M27 &CHAR(10) &INDEX(Symbol,IFERROR(HYPERLINK(RolloverElement(M27),M27+1),M27+1)) -> 97 Bk | N13: =N27 &CHAR(10) &INDEX(Symbol,IFERROR(HYPERLINK(RolloverElement(N27),N27+1),N27+1)) -> 98 Cf | O13: =O27 &CHAR(10) &INDEX(Symbol,IFERROR(HYPERLINK(RolloverElement(O27),O27+1),O27+1)) -> 99 Es | P13: =P27 &CHAR(10) &INDEX(Symbol,IFERROR(HYPERLINK(RolloverElement(P27),P27+1),P27+1)) -> 100 Fm | Q13: =Q27 &CHAR(10) &INDEX(Symbol,IFERROR(HYPERLINK(RolloverElement(Q27),Q27+1),Q27+1)) -> 101 Md | R13: =R27 &CHAR(10) &INDEX(Symbol,IFERROR(HYPERLINK(RolloverElement(R27),R27+1),R27+1)) -> 102 No | S13: =S27 &CHAR(10) &INDEX(Symbol,IFERROR(HYPERLINK(RolloverElement(S27),S27+1),S27+1)) -> 103 Lr | U13: 11 | V13: < | W13: =IFERROR(HYPERLINK(ToggleFilter(U13),AA28),AA28) -> UNKNOWN | X13: FALSE | Y13: FALSE
B16: Group
B17: Period | C17: 1 | D17: 2 | E17: 3 | F17: 4 | G17: 5 | H17: 6 | I17: 7 | J17: 8 | K17: 9 | L17: 10 | M17: 11 | N17: 12 | O17: 13 | P17: 14 | Q17: 15 | R17: 16 | S17: 17 | T17: 18 | W17: ToggleIndex | X17: 0
B18: 1 | C18: =SUMPRODUCT((Group=C$17)*(Period=$B18)*(Znumber)) -> 1 | D18: 0 | E18: 0 | F18: 0 | G18: 0 | H18: 0 | I18: 0 | J18: 0 | K18: 0 | L18: 0 | M18: =SUMPRODUCT((Group=M$17)*(Period=$B18)*(Znumber)) -> 0 | N18: 0 | O18: 0 | P18: 0 | Q18: 0 | R18: 0 | S18: 0 | T18: 2 | W18: zIndex | X18: 91 | AA18: ALKALI METALS
B19: 2 | C19: 3 | D19: 4 | E19: 0 | F19: 0 | G19: 0 | H19: 0 | I19: 0 | J19: 0 | K19: 0 | L19: 0 | M19: 0 | N19: 0 | O19: 5 | P19: 6 | Q19: 7 | R19: 8 | S19: 9 | T19: 10 | W19: Element | X19: =INDEX(ElementName,zIndex) -> Thorium | AA19: ALKALINE EARTH METALS
B20: 3 | C20: 11 | D20: 12 | E20: 0 | F20: 0 | G20: 0 | H20: 0 | I20: 0 | J20: 0 | K20: 0 | L20: 0 | M20: 0 | N20: 0 | O20: 13 | P20: 14 | Q20: 15 | R20: 16 | S20: 17 | T20: 18 | W20: Weight | X20: =LEFT(INDEX(Weights,zIndex),5) -> 232.0 | AA20: LANTHANIDES
B21: 4 | C21: 19 | D21: 20 | E21: 21 | F21: 22 | G21: 23 | H21: 24 | I21: 25 | J21: 26 | K21: 27 | L21: 28 | M21: 29 | N21: 30 | O21: 31 | P21: 32 | Q21: 33 | R21: 34 | S21: 35 | T21: 36 | W21: Density | X21: =INDEX(Densities,zIndex) -> 11.72 | AA21: ACTINIDES
B22: 5 | C22: 37 | D22: 38 | E22: 39 | F22: 40 | G22: 41 | H22: 42 | I22: 43 | J22: 44 | K22: 45 | L22: 46 | M22: 47 | N22: 48 | O22: 49 | P22: 50 | Q22: 51 | R22: 52 | S22: 53 | T22: 54 | W22: Melt | X22: =INDEX(Melts,zIndex) -> 2028.15 | AA22: TRANSITION METALS
B23: 6 | C23: 55 | D23: 56 | E23: 71 | F23: 72 | G23: 73 | H23: 74 | I23: 75 | J23: 76 | K23: 77 | L23: 78 | M23: 79 | N23: 80 | O23: 81 | P23: 82 | Q23: 83 | R23: 84 | S23: 85 | T23: 86 | W23: Boil | X23: =INDEX(Boils,zIndex) -> 5061 | AA23: POST-TRANSITION METALS
B24: 7 | C24: 87 | D24: 88 | E24: 103 | F24: 104 | G24: 105 | H24: 106 | I24: 107 | J24: 108 | K24: 109 | L24: 110 | M24: 111 | N24: 112 | O24: 113 | P24: 114 | Q24: 115 | R24: 116 | S24: 117 | T24: 118 | W24: Heat | X24: =INDEX(Heats,zIndex) -> 0.113 | AA24: METALlOIDS
W25: Symbol | X25: =INDEX(Symbol,zIndex) -> Th | AA25: NONMETALS
E26: 57 | F26: 58 | G26: 59 | H26: 60 | I26: 61 | J26: 62 | K26: 63 | L26: 64 | M26: 65 | N26: 66 | O26: 67 | P26: 68 | Q26: 69 | R26: 70 | S26: 71 | W26: zAdjusted | X26: =zIndex-1 -> 90 | AA26: HALOGENS
E27: 89 | F27: 90 | G27: 91 | H27: 92 | I27: 93 | J27: 94 | K27: 95 | L27: 96 | M27: 97 | N27: 98 | O27: 99 | P27: 100 | Q27: 101 | R27: 102 | S27: 103 | AA27: NOBLE GASES
AA28: UNKNOWN
B29: Period | C29: 1 | D29: 2 | E29: 3 | F29: 4 | G29: 5 | H29: 6 | I29: 7 | J29: 8 | K29: 9 | L29: 10 | M29: 11 | N29: 12 | O29: 13 | P29: 14 | Q29: 15 | R29: 16 | S29: 17 | T29: 18
B30: 1 | C30: =SUMPRODUCT((Group=C$17)*(Period=$B30)*(ClassNo)) *INDEX($X$3:$X$13,SUMPRODUCT((Group=C$17)*(Period=$B30)*(ClassNo))) -> 0 | T30: =SUMPRODUCT((Group=T$17)*(Period=$B30)*(ClassNo)) *INDEX($X$3:$X$13,SUMPRODUCT((Group=T$17)*(Period=$B30)*(ClassNo))) -> 0
B31: 2 | C31: 0 | D31: =SUMPRODUCT((Group=D$17)*(Period=$B31)*(ClassNo)) *INDEX($X$3:$X$13,SUMPRODUCT((Group=D$17)*(Period=$B31)*(ClassNo))) -> 0 | O31: =SUMPRODUCT((Group=O$17)*(Period=$B31)*(ClassNo)) *INDEX($X$3:$X$13,SUMPRODUCT((Group=O$17)*(Period=$B31)*(ClassNo))) -> 0 | P31: 0 | Q31: 0 | R31: 0 | S31: 0 | T31: 0
B32: 3 | C32: 0 | D32: 0 | O32: 0 | P32: 0 | Q32: 0 | R32: 0 | S32: 0 | T32: 0
B33: 4 | C33: 0 | D33: 0 | E33: =SUMPRODUCT((Group=E$17)*(Period=$B33)*(ClassNo)) *INDEX($X$3:$X$13,SUMPRODUCT((Group=E$17)*(Period=$B33)*(ClassNo))) -> 0 | F33: 0 | G33: 0 | H33: 0 | I33: 0 | J33: 0 | K33: 0 | L33: 0 | M33: 0 | N33: 0 | O33: 0 | P33: 0 | Q33: 0 | R33: 0 | S33: 0 | T33: 0
B34: 5 | C34: 0 | D34: 0 | E34: 0 | F34: 0 | G34: 0 | H34: 0 | I34: 0 | J34: 0 | K34: 0 | L34: 0 | M34: 0 | N34: 0 | O34: 0 | P34: 0 | Q34: 0 | R34: 0 | S34: 0 | T34: 0
B35: 6 | C35: 0 | D35: 0 | F35: =SUMPRODUCT((Group=F$17)*(Period=$B35)*(ClassNo)) *INDEX($X$3:$X$13,SUMPRODUCT((Group=F$17)*(Period=$B35)*(ClassNo))) -> 0 | G35: 0 | H35: 0 | I35: 0 | J35: 0 | K35: 0 | L35: 0 | M35: 0 | N35: 0 | O35: 0 | P35: 0 | Q35: 0 | R35: 0 | S35: 0 | T35: 0
B36: 7 | C36: 0 | D36: 0 | F36: 0 | G36: 0 | H36: 0 | I36: 0 | J36: 0 | K36: 0 | L36: 0 | M36: 0 | N36: 0 | O36: 0 | P36: 0 | Q36: 0 | R36: 0 | S36: 0 | T36: 0
E38: =INDEX(ClassNo,E26+1)*INDEX($X$3:$X$13,INDEX(ClassNo,E26+1)) -> 0 | F38: 0 | G38: 0 | H38: 0 | I38: 0 | J38: 0 | K38: 0 | L38: 0 | M38: 0 | N38: 0 | O38: 0 | P38: 0 | Q38: 0 | R38: 0 | S38: 0
E39: =INDEX(ClassNo,E27+1)*INDEX($X$3:$X$13,INDEX(ClassNo,E27+1)) -> 0 | F39: 0 | G39: 0 | H39: 0 | I39: 0 | J39: 0 | K39: 0 | L39: 0 | M39: 0 | N39: 0 | O39: 0 | P39: 0 | Q39: 0 | R39: 0 | S39: 0

Sheet Sheet2 (hidden)
A1: Element Data | D1: He
A2: These columns are the actual data for each element. Add new fields or edit values here. The "Included Fields" worksheet should contain references to actual data in this spreadsheet.
A3: atomic # | B3: atomic symbol | C3: Group # | D3: Old Group # | E3: Period | F3: English element name | G3: German element name | H3: French element name | I3: Spanish element name | J3: Italian element name | K3: atomic mass (rounded) | L3: atomic mass (IUPAC 2005) | M3: Melting Point, °C | N3: Boiling Point, °C | O3: State at Room Temp. | P3: density g/mL | Q3: electronegativity (Pauling) | R3: 1st ionization potential (eV) | S3: 2nd ionization potential (eV) | T3: 3rd ionization potential (eV) | U3: 1st ionization potential (kJ/mol) | V3: 2nd ionization potential (kJ/mol) | W3: 3rd ionization potential (kJ/mol) | X3: Electron Affinity (eV) | Y3: Electron Affinity (kJ/mol) | Z3: common oxidation states | AA3: ions commonly formed | AB3: Predicted Electron Configuration | AC3: Observed Electron Configuration | AD3: atomic radius (Å) | AE3: ionic radius (Å) | AF3: covalent radius (Å) | AG3: radius (2- ion) (pm) | AH3: radius (1- ion) (pm) | AI3: atomic radius (pm) | AJ3: radius (1+ ion) (pm) | AK3: radius (2+ ion) (pm) | AL3: radius (3+ ion) (pm) | AM3: atomic volume (cm^3/mol) | AN3: crystal structure | AO3: CAS Registry No. | AP3: electrical conductivity (mho/cm) | AQ3: specific heat (J/g K) | AR3: heat of fusion (kJ/mol) | AS3: heat of vaporization (kJ/mol) | AT3: thermal conductivity (W/(m K)) | AU3: mg/kg in Earth's crust | AV3: mg/L in seawater | AW3: % human body mass | AX3: Notes | AY3: source | AZ3: color | BA3: characteristics | BB3: structure | BC3: hardness (mohs) | BD3: uses | BE3: reaction with air | BF3: reaction with water | BG3: reaction with 6M HCl | BH3: reaction with 15M HNO3 | BI3: reaction with 6M NaOH | BJ3: hydride(s) | BK3: oxide(s) | BL3: chloride(s) | BM3: polarizability (A^3) | BN3: heat atomization (kJ/mol) | BO3: year discovered | BP3: rel. abund. solar system (log) | BQ3: abundance earth's crust (log) | BR3: cost, pure ($/100g) | BS3: cost, bulk ($/100g) | BT3: toxic? | BU3: carcinogenic?
AC5: Observed Electron Configuration
A6: 1 | B6: H | C6: 1 | D6: I A | E6: 1 | F6: hydrogen | G6: Wasserstoff | H6: hydrogène | I6: hidrógeno | J6: idrogeno | K6: =TEXT(ROUND(L6,3),"0.000") -> 0.001 | L6: 1.00794 | M6: -259.1 | N6: -252.9 | O6: gaseous | P6: 6.99e-05 | Q6: 2.2 | R6: 13.5984 | U6: =IF(COUNT(R6)=1,ROUND(R6*96.48538,0),"") -> 1312 | V6: =IF(COUNT(S6)=1,ROUND(S6*96.48538,0),"") ->  | X6: 0.75 | Y6: =IF(COUNT(X6)=1,ROUND(X6*96.48538,0),IF(COUNTA(X6)=1,X6,"")) -> 72 | Z6: ±1 | AA6: ±1 | AB6: =CONCATENATE(E6,"s",MIN(A6,2)) -> 1s1 | AC6: =AB6 -> 1s1 | AD6: 0.79 | AE6: 1.54 | AF6: 0.32 | AI6: 37.1 | AM6: 14.4 | AN6: hexagonal | AO6: 1333-74-0 | AQ6: 14.304 | AR6: 0.05868 | AS6: 0.44936 | AT6: 0.1815 | AU6: 1400 | AV6: 108000 | AW6: 10 | AY6: Water, methane | AZ6: colorless | BA6: diatomic,dens<air at r.t. | BB6: hcp: hexagonal close pkd | BD6: rocket fuel | BE6: vigorous, =>H2O | BF6: none | BG6: none | BH6: none | BI6: none | BJ6: H2 | BK6: H2O | BL6: HCl | BM6: 0.7 | BN6: 218 | BO6: 1766 | BP6: 10.446 | BQ6: 3.1 | BR6: 12
A7: 2 | B7: He | C7: 18 | D7: VIII A | E7: 1 | F7: helium | G7: Helium | H7: hélium | I7: helio | J7: elio | K7: =TEXT(ROUND(L7,3),"0.000") -> 0.004 | L7: 4.002602 | M7: -272.2 | N7: -268.9 | O7: gaseous | P7: 0.000179 | R7: 24.5874 | S7: 54.416 | U7: =IF(COUNT(R7)=1,ROUND(R7*96.48538,0),"") -> 2372 | V7: 5250 | X7: <0 | Y7: =IF(COUNT(X7)=1,ROUND(X7*96.48538,0),IF(COUNTA(X7)=1,X7,"")) -> <0 | Z7: 0 | AB7: =CONCATENATE(E7,"s",MIN(A7,2)) -> 1s2 | AC7: =AB7 -> 1s2 | AD7: 0.49 | AF7: 0.93 | AI7: 31 | AM7: 19.5 | AN7: hexagonal | AO7: 7440-59-7 | AQ7: 5.193 | AS7: 0.0845 | AT7: 0.152 | AU7: 0.008 | AV7: 7e-16 | AY7: Natural gas, air | AZ7: colorless | BA7: Inert, dens<air at r.t. | BD7: cryogenics, blimps | BE7: none | BF7: none | BG7: none | BH7: none | BI7: none | BJ7: none | BK7: none | BL7: none | BM7: 0.198 | BN7: 0 | BO7: 1895 | BP7: 9.435 | BQ7: -2.1 | BR7: 5.2 | BT7: no | BU7: no
A8: 3 | B8: Li | C8: 1 | D8: I A | E8: 2 | F8: lithium | G8: Lithium | H8: lithium | I8: litio | J8: litio | K8: =TEXT(ROUND(L8,3),"0.000") -> 0.007 | L8: 6.941 | M8: 180.5 | N8: 1342 | O8: solid | P8: 0.543 | Q8: 0.98 | R8: 5.3917 | S8: 76.638 | T8: 122.451 | U8: 520 | V8: 7394 | W8: 11815 | X8: 0.62 | Y8: 60 | Z8: +1 | AA8: +1 | AB8: =CONCATENATE("[",B$7,"] ",E8,"s",MIN(A8-A$7,2)) -> [He] 2s1 | AC8: [He] 2s1 | AD8: 2.05 | AE8: 0.76 | AF8: 1.23 | AI8: 152 | AJ8: 90 | AM8: 13.1 | AN8: cubic: body centered | AO8: 7439-93-2 | AP8: 0.108 | AQ8: 3.6 | AR8: 3 | AS8: 145.92 | AT8: 84.7 | AU8: 20 | AV8: 0.18 | AY8: Spodumene (silicate) | AZ8: silvery | BA8: soft, lightest solid | BB8: bcc: body-centered cubic | BC8: 0.6 | BD8: batteries, lubricant | BE8: vigorous, =>Li2O | BF8: mild, =>H2, LiOH | BG8: vigorous, =>H2, LiCl | BH8: vigorous, =>LiNO3 | BI8: mild, =>H2, LiOH | BJ8: LiH | BK8: Li2O | BL8: LiCl | BM8: 24.3 | BN8: 161 | BO8: 1817 | BP8: 1.757 | BQ8: 1.3 | BR8: 27
A9: 4 | B9: Be | C9: 2 | D9: II A | E9: 2 | F9: beryllium | G9: Beryllium | H9: béryllium | I9: berilio | J9: berillio | K9: =TEXT(ROUND(L9,3),"0.000") -> 0.009 | L9: 9.012182 | M9: 1278 | N9: 2970 | O9: solid | P9: 1.85 | Q9: 1.57 | R9: 9.3226 | S9: 18.211 | T9: 153.893 | U9: 899 | V9: 1757 | W9: 14848 | X9: <0 | Y9: <0 | Z9: +2 | AA9: +2 | AB9: =CONCATENATE("[",B$7,"] ",E9,"s",MIN(A9-A$7,2)) -> [He] 2s2 | AC9: [He] 2s2 | AD9: 1.4 | AE9: 0.45 | AF9: 0.9 | AI9: 112 | AK9: 59 | AM9: 5 | AN9: hexagonal | AO9: 7440-41-7 | AP9: 0.313 | AQ9: 1.82 | AR9: 12.2 | AS9: 292.4 | AT9: 200 | AU9: 2.8 | AV9: 5.6e-06 | AY9: Beryl (silicate) | AZ9: steel gray | BA9: toxic | BB9: hcp: hexagonal close pkd | BD9: Cu alloys, X-ray windows | BE9: vigorous, w/ht=>BeO,Be3N2 | BF9: none | BG9: mild, =>H2 | BH9: none | BI9: mild, =>H2, [Be(OH)4](2-) | BJ9: BeH2 | BK9: BeO | BL9: BeCl2 | BM9: 5.6 | BN9: 324 | BO9: 1797 | BP9: -0.137 | BQ9: 0.4 | BR9: 530 | BS9: 59 | BT9: yes | BU9: yes
A10: 5 | B10: B | C10: 13 | D10: III A | E10: 2 | F10: boron | G10: Bor | H10: bore | I10: boro | J10: boro | K10: =TEXT(ROUND(L10,2),"0.00") -> 011 | L10: 10.811 | M10: 2079 | N10: 2550 | O10: solid | P10: 2.34 | Q10: 2.04 | R10: 8.298 | S10: 25.154 | T10: 37.93 | U10: 801 | V10: 2427 | W10: 3660 | X10: 0.28 | Y10: 27 | Z10: +3 | AA10: +3 | AB10: =CONCATENATE(AB$9," ",E10,"p",MIN(A10-A$9,6)) -> [He] 2s2 2p1 | AC10: [He] 2s2 2p1 | AD10: 1.17 | AE10: 0.23 | AF10: 0.82 | AI10: 85 | AL10: 41 | AM10: 4.6 | AN10: rhombohedral | AO10: 7440-42-8 | AP10: 1e-12 | AQ10: 1.02 | AR10: 50.2 | AS10: 489.7 | AT10: 27 | AU10: 10 | AV10: 4.44 | AW10: 7e-05 | AX10: sublimes | AY10: Na and Ca borates (misc) | AZ10: black | BA10: B12 icosahedra; 3 forms | BB10: special: B12 icosahedra | BC10: 9.5 | BD10: borax, glass making(B2O3) | BE10: mild, w/ht =>B2O3 | BF10: none | BG10: none | BH10: none | BI10: none | BJ10: B2H6 and many BxHy | BK10: B2O3 | BL10: BCl3 and many BxCly | BM10: 3 | BN10: 573 | BO10: 1808 | BP10: 1.326 | BQ10: 1 | BR10: 250
A11: 6 | B11: C | C11: 14 | D11: IV A | E11: 2 | F11: carbon | G11: Kohlenlstoff | H11: carbone | I11: carbono | J11: carbonio | K11: =TEXT(ROUND(L11,2),"0.00") -> 012 | L11: 12.0107 | M11: 3367 | N11: 4827 | O11: solid | P11: 2.25 | Q11: 2.55 | R11: 11.2603 | S11: 24.383 | T11: 47.887 | U11: 1086 | V11: 2353 | W11: 4620 | X11: 1.26 | Y11: 122 | Z11: ±4 | AA11: −4 | AB11: [He] 2s2 2p2 | AC11: [He] 2s2 2p2 | AD11: 0.91 | AE11: 0.16 | AF11: 0.77 | AI11: 77.2 | AM11: 4.58 | AN11: hexagonal | AO11: 7440-44-0 | AP11: 0.00061 | AQ11: 0.71 | AS11: 355.8 | AT11: 129 | AU11: 200 | AV11: 28 | AW11: 23 | AX11: graphite | AY11: Coal,Petroleum,Natural gas | AZ11: black | BA11: 6 forms: graphite,diamond | BB11: hexagonal layers | BC11: 0.8 | BD11: fuel(coal), lubricant | BE11: vigorous, =>CO2 | BF11: none | BG11: none | BH11: mild,w/ht=>C6(COOH)6 | BI11: none | BJ11: CH4 and many CxHy | BK11: CO CO2 | BL11: CCl4 | BM11: 1.8 | BN11: 717 | BP11: 7.004 | BQ11: 2.3 | BR11: 2.4 | BU11: no
A12: 7 | B12: N | C12: 15 | D12: V A | E12: 2 | F12: nitrogen | G12: Stickstoff | H12: azote | I12: nitrógeno | J12: azoto | K12: 014 | L12: 14.0067 | M12: -209.9 | N12: -195.8 | O12: gaseous | P12: 0.00125 | Q12: 3.04 | R12: 14.5341 | S12: 29.601 | T12: 47.448 | U12: 1402 | V12: 2856 | W12: 4578 | X12: <0 | Y12: <0 | Z12: −3 | AA12: −3 | AB12: [He] 2s2 2p3 | AC12: [He] 2s2 2p3 | AD12: 0.75 | AE12: 1.71 | AF12: 0.75 | AI12: 70 | AL12: 30 | AM12: 17.3 | AN12: hexagonal | AO12: 77727-37-9 | AQ12: 1.04 | AR12: 0.3604 | AS12: 2.7928 | AT12: 0.02598 | AU12: 19 | AV12: 50 | AW12: 2.6 | AY12: Air | AZ12: colorless | BA12: diatomic(N2) | BD12: fertilizer, cryogenics | BE12: none | BF12: none | BG12: none | BH12: none | BI12: none | BJ12: NH3 N2H4 HN3 | BK12: N2O NO NO2 N2O5 | BL12: NCl3 | BM12: 1.1 | BN12: 473 | BO12: 1772 | BP12: 6.496 | BQ12: 1.3 | BR12: 0.4 | BT12: no | BU12: no
A13: 8 | B13: O | C13: 16 | D13: VI A | E13: 2 | F13: oxygen | G13: Sauerstoff | H13: oxygène | I13: oxígeno | J13: ossigeno | K13: 016 | L13: 15.9994 | M13: -218.4 | N13: -183 | O13: gaseous | P13: 0.00143 | Q13: 3.44 | R13: 13.6181 | S13: 35.117 | T13: 54.934 | U13: 1314 | V13: 3388 | W13: 5300 | X13: 1.46 | Y13: 141 | Z13: −2 | AA13: −2 | AB13: [He] 2s2 2p4 | AC13: [He] 2s2 2p4 | AD13: 0.65 | AE13: 1.4 | AF13: 0.73 | AG13: 126 | AI13: 73 | AM13: 14 | AN13: cubic | AO13: 7782-44-7 | AQ13: 0.92 | AR13: 0.22259 | AS13: 3.4099 | AT13: 0.02674 | AU13: 461000 | AV13: 857000 | AW13: 61 | AY13: Air | AZ13: colorless | BA13: diatomic,2 forms: O2, O3 | BD13: rocket fuel, steel mfr. | BE13: none | BF13: none | BG13: none | BH13: none | BI13: none | BJ13: H2O | BK13: O2 O3 | BL13: Cl2O ClO2 Cl2O7 | BM13: 0.793 | BN13: 249 | BO13: 1774 | BP13: 7.377 | BQ13: 5.7 | BR13: 0.3 | BT13: no | BU13: no
A14: 9 | B14: F | C14: 17 | D14: VII A | E14: 2 | F14: fluorine | G14: Fluor | H14: fluor | I14: flúor | J14: fluoro | K14: 019 | L14: 18.9984032 | M14: -219.8 | N14: -188.1 | O14: gaseous | P14: 0.0017 | Q14: 3.98 | R14: 17.4228 | S14: 34.97 | T14: 62.707 | U14: 1681 | V14: 3374 | W14: 6050 | X14: 3.40 | Y14: 328 | Z14: −1 | AA14: −1 | AB14: [He] 2s2 2p5 | AC14: [He] 2s2 2p5 | AD14: 0.57 | AE14: 1.33 | AF14: 0.72 | AH14: 119 | AI14: 72 | AM14: 12.6 | AN14: cubic | AO14: 7782-41-4 | AQ14: 0.82 | AR14: 0.2552 | AS14: 3.2698 | AT14: 0.0279 | AU14: 585 | AV14: 1.3 | AW14: 0.0033 | AY14: Fluorite (misc) | AZ14: colorless | BA14: diatomic(F2), corrosive | BB14: layers of F2 | BD14: fluorocarbons, toothpaste | BE14: none | BF14: vigorous, =>HF, OF2 | BG14: vigorous, =>HF, OF2, ClF3 | BI14: vigorous, =>O2, NaF | BJ14: HF | BK14: OF2 | BL14: ClF ClF3 ClF5 | BM14: 0.634 | BN14: 79 | BO14: 1886 | BP14: 2.926 | BQ14: 2.8 | BR14: 190 | BT14: yes | BU14: no
A15: 10 | B15: Ne | C15: 18 | D15: VIII A | E15: 2 | F15: neon | G15: Neon | H15: néon | I15: neón | J15: neon | K15: 020 | L15: 20.1797 | M15: -248 | N15: -248.7 | O15: gaseous | P15: 0.0009 | R15: 21.5645 | S15: 40.962 | T15: 63.45 | U15: 2081 | V15: 3952 | W15: 6122 | X15: <0 | Y15: <0 | Z15: 0 | AB15: [He] 2s2 2p6 | AC15: [He] 2s2 2p6 | AD15: 0.51 | AF15: 0.71 | AI15: 71 | AM15: 17.3 | AN15: cubic: face centered | AO15: 7440-01-9 | AQ15: 0.904 | AR15: 0.3317 | AS15: 1.7326 | AT15: 0.0493 | AU15: 0.005 | AV15: 0.00012 | AY15: Air | AZ15: colorless | BA15: Inert, dens<air at r.t. | BB15: fcc: face-centered cubic | BD15: Neon signs | BE15: none | BF15: none | BG15: none | BH15: none | BI15: none | BJ15: none | BK15: none | BL15: none | BM15: 0.396 | BN15: 0 | BO15: 1898 | BP15: 6.537 | BQ15: -2.3 | BR15: 33 | BT15: no | BU15: no
A16: 11 | B16: Na | C16: 1 | D16: I A | E16: 3 | F16: sodium | G16: Natrium | H16: sodium | I16: sodio | J16: sodio | K16: 023 | L16: 22.98976928 | M16: 97.8 | N16: 883 | O16: solid | P16: 0.971 | Q16: 0.93 | R16: 5.1391 | S16: 47.286 | T16: 71.641 | U16: 496 | V16: 4562 | W16: 6912 | X16: 0.55 | Y16: 53 | Z16: +1 | AA16: +1 | AB16: =CONCATENATE("[",B$15,"] ",E16,"s",MIN(A16-A$15,2)) -> [Ne] 3s1 | AC16: [Ne] 3s1 | AD16: 2.23 | AE16: 1.02 | AF16: 1.54 | AI16: 186 | AJ16: 116 | AM16: 23.7 | AN16: cubic: body centered | AO16: 7440-23-5 | AP16: 0.21 | AQ16: 1.23 | AR16: 2.598 | AS16: 96.96 | AT16: 141 | AU16: 0.000236 | AV16: 10800 | AW16: 0.14 | AY16: Halite (misc) | AZ16: silvery | BA16: soft | BB16: bcc: body-centered cubic | BC16: 0.4 | BD16: lamps, table salt | BE16: vigorous, =>Na2O2 | BF16: vigorous, =>H2, NaOH | BG16: vigorous, =>H2, NaCl | BH16: vigorous, =>NaNO3, NOx | BI16: vigorous, =>H2, NaOH | BJ16: NaH | BK16: Na2O | BL16: NaCl | BM16: 23.6 | BN16: 109 | BO16: 1807 | BP16: 4.759 | BQ16: 4.4 | BR16: 7
A17: 12 | B17: Mg | C17: 2 | D17: II A | E17: 3 | F17: magnesium | G17: Magnesium | H17: magnésium | I17: magnesio | J17: magnesio | K17: 024 | L17: 24.305 | M17: 649 | N17: 1090 | O17: solid | P17: 1.74 | Q17: 1.31 | R17: 7.6462 | S17: 15.035 | T17: 80.143 | U17: 738 | V17: 1451 | W17: 7733 | X17: <0 | Y17: <0 | Z17: +2 | AA17: +2 | AB17: =CONCATENATE("[",B$15,"] ",E17,"s",MIN(A17-A$15,2)) -> [Ne] 3s2 | AC17: [Ne] 3s2 | AD17: 1.72 | AE17: 0.72 | AF17: 1.36 | AI17: 160 | AK17: 86 | AM17: 13.97 | AN17: hexagonal | AO17: 7439-95-4 | AP17: 0.226 | AQ17: 1.02 | AR17: 8.954 | AS17: 127.4 | AT17: 156 | AU17: 23300 | AV17: 1290 | AW17: 0.027 | AY17: Seawater, magnesite | AZ17: silvery | BA17: burns brightly | BB17: hcp: hexagonal close pkd | BC17: 2 | BD17: alloys, flash bulbs | BE17: vigorous,w/ht =>MgO,Mg3N2 | BF17: mild, w/ht =>Mg(OH)2, H2 | BG17: mild, =>H2, MgCl2 | BH17: vigorous, =>NOx, Mg(NO3)2 | BI17: none | BJ17: MgH2 | BK17: MgO | BL17: MgCl2 | BM17: 10.6 | BN17: 148 | BO17: 1808 | BP17: 6.031 | BQ17: 4.4 | BR17: 3.7 | BS17: 0.32
A18: 13 | B18: Al | C18: 13 | D18: III A | E18: 3 | F18: aluminum | G18: Aluminium | H18: aluminium | I18: aluminio | J18: alluminio | K18: 027 | L18: 26.9815386 | M18: 660 | N18: 2467 | O18: solid | P18: 2.7 | Q18: 1.61 | R18: 5.9858 | S18: 18.828 | T18: 28.447 | U18: 578 | V18: 1817 | W18: 2745 | X18: 0.44 | Y18: 42 | Z18: +3 | AA18: +3 | AB18: =CONCATENATE(AB$17," ",E18,"p",MIN(A18-A$17,6)) -> [Ne] 3s2 3p1 | AC18: [Ne] 3s2 3p1 | AD18: 1.82 | AE18: 0.54 | AF18: 1.18 | AI18: 143 | AL18: 67.5 | AM18: 10 | AN18: cubic: face centered | AO18: 7429-90-5 | AP18: 0.377 | AQ18: 0.9 | AR18: 10.79 | AS18: 293.4 | AT18: 237 | AU18: 82300 | AV18: 0.002 | AW18: 9e-05 | AY18: Bauxite (oxide) | AZ18: silvery | BA18: passivated: surface oxide | BB18: fcc: face-centered cubic | BC18: 2.8 | BD18: Al cans & foil,reflectors | BE18: mild, w/ht =>Al2O3 | BF18: none | BG18: mild, =>H2, AlCl3 | BH18: passivated | BI18: mild, =>H2, [Al(OH)4]- | BJ18: AlH3 | BK18: Al2O3 | BL18: AlCl3Al2Cl6 | BM18: 8.3 | BN18: 326 | BO18: 1825 | BP18: 4.929 | BQ18: 4.9 | BR18: 1.8 | BS18: 0.12 | BU18: no
A19: 14 | B19: Si | C19: 14 | D19: IV A | E19: 3 | F19: silicon | G19: Silizium | H19: silicium | I19: silicio | J19: silicio | K19: 028 | L19: 28.0855 | M19: 1410 | N19: 2355 | O19: solid | P19: 2.33 | Q19: 1.9 | R19: 8.1517 | S19: 16.345 | T19: 33.492 | U19: 787 | V19: 1577 | W19: 3231 | X19: 1.39 | Y19: 134 | Z19: ±4 | AA19: −4 | AB19: [Ne] 3s2 3p2 | AC19: [Ne] 3s2 3p2 | AD19: 1.46 | AE19: 0.26 | AF19: 1.11 | AI19: 117.6 | AM19: 12.1 | AN19: cubic: face centered | AO19: 7440-21-3 | AP19: 2.52e-12 | AQ19: 0.71 | AR19: 50.55 | AS19: 384.22 | AT19: 148 | AU19: 282000 | AV19: 2.2 | AW19: 0.026 | AY19: Quartz (oxide) | AZ19: gray-black | BA19: semimetal | BB19: diamond | BC19: 7 | BD19: comp chip,lubricant,glass | BE19: mild, =>SiO2 | BF19: none | BG19: none | BH19: none | BI19: mild, =>silicates | BJ19: SiH4 Si2H6 + more | BK19: SiO2 | BL19: SiCl4 Si2Cl6 + more | BM19: 5.4 | BN19: 452 | BO19: 1824 | BP19: 6.000 | BQ19: 5.5 | BR19: 5.4 | BS19: 0.14 | BU19: no
A20: 15 | B20: P | C20: 15 | D20: V A | E20: 3 | F20: phosphorus | G20: Phosphor | H20: phosphore | I20: fósforo | J20: fosforo | K20: 031 | L20: 30.973762 | M20: 44.1 | N20: 280 | O20: solid | P20: 1.82 | Q20: 2.19 | R20: 10.4867 | S20: 19.725 | T20: 30.18 | U20: 1012 | V20: 1903 | W20: 2912 | X20: 0.75 | Y20: 72 | Z20: −3 | AA20: −3 | AB20: [Ne] 3s2 3p3 | AC20: [Ne] 3s2 3p3 | AD20: 1.23 | AE20: 0.17 | AF20: 1.06 | AI20: 110 | AL20: 58 | AM20: 17 | AN20: monoclinic | AO20: 7723-14-0 | AP20: 1e-17 | AQ20: 0.77 | AR20: 0.657 | AS20: 12.129 | AT20: 0.235 | AU20: 1050 | AV20: 0.06 | AW20: 1.1 | AX20: white | AY20: Apatite (phosphate) | AZ20: white-yellow | BA20: (P4) pyrophoric, 15 forms | BB20: special: P4 tetrahedra | BC20: 0.5 | BD20: fertilizer, detergents | BE20: vigorous,=>P4O10, ignites | BF20: none | BG20: none | BH20: mild, =>NOx | BI20: mild, =>PH3, may ignite | BJ20: PH3 P2H4 + more | BK20: P4O10 P4O6 | BL20: PCl3 PCl5 P2Cl4 | BM20: 3.6 | BN20: 315 | BO20: 1669 | BP20: 4.017 | BQ20: 3 | BR20: 4 | BT20: yes | BU20: no
A21: 16 | B21: S | C21: 16 | D21: VI A | E21: 3 | F21: sulfur | G21: Schwefel | H21: soufre | I21: azufre | J21: zolfo | K21: 032 | L21: 32.065 | M21: 112.8 | N21: 444.7 | O21: solid | P21: 2.07 | Q21: 2.58 | R21: 10.36 | S21: 23.33 | T21: 34.83 | U21: 1000 | V21: 2251 | W21: 3361 | X21: 2.08 | Y21: 201 | Z21: −2 | AA21: −2 | AB21: [Ne] 3s2 3p4 | AC21: [Ne] 3s2 3p4 | AD21: 1.09 | AE21: 0.29 | AF21: 1.02 | AG21: 170 | AI21: 103 | AM21: 15.5 | AN21: orthorhombic | AO21: 7704-34-9 | AP21: 5e-24 | AQ21: 0.71 | AR21: 1.7175 | AT21: 0.269 | AU21: 350 | AV21: 905 | AW21: 0.2 | AX21: yellow | AY21: Sulfur,pyrite,natural gas | AZ21: yellow(pale) | BA21: (S8)brittle, 19 forms | BB21: S8 rings | BC21: 2 | BD21: rubber, batteries (H2SO4) | BE21: vigorous, w/ht =>SO2 | BF21: none | BG21: none | BH21: mild, =>H2SO4, NOx | BI21: none | BJ21: H2S | BK21: SO2 SO3 | BL21: S2Cl2 SCl2 | BM21: 2.9 | BN21: 279 | BP21: 5.712 | BQ21: 2.4 | BR21: 24
A22: 17 | B22: Cl | C22: 17 | D22: VII A | E22: 3 | F22: chlorine | G22: Chlor | H22: chlore | I22: cloro | J22: cloro | K22: 035 | L22: 35.453 | M22: -101 | N22: -34.6 | O22: gaseous | P22: 0.00321 | Q22: 3.16 | R22: 12.9676 | S22: 23.81 | T22: 39.611 | U22: 1251 | V22: 2297 | W22: 3822 | X22: 3.61 | Y22: 348 | Z22: −1 | AA22: −1 | AB22: [Ne] 3s2 3p5 | AC22: [Ne] 3s2 3p5 | AD22: 0.97 | AE22: 1.81 | AF22: 0.99 | AH22: 167 | AI22: 100 | AM22: 16.9 | AN22: orthorhombic | AO22: 7782-50-5 | AQ22: 0.48 | AR22: 3.23 | AS22: 10.2 | AT22: 0.0089 | AU22: 145 | AV22: 19400 | AW22: 0.12 | AY22: Halite, brine (misc) | AZ22: greenish-yellow | BA22: diatomic(Cl2), corrosive | BB22: layers of Cl2 | BD22: bleach (NaOCl), PVC pipe | BE22: none | BF22: mild,=>HOCl, Cl-, Cl2(aq) | BG22: mild, =>HOCl, Cl- | BH22: mild, =>HClOx, NOxCl, NOx | BI22: mild, =>OCl-, Cl- | BJ22: HCl | BK22: Cl2O ClO2 Cl2O7 | BL22: Cl2 | BM22: 2.2 | BN22: 121 | BO22: 1774 | BP22: 3.719 | BQ22: 2.1 | BR22: 0.15 | BT22: yes | BU22: no
A23: 18 | B23: Ar | C23: 18 | D23: VIII A | E23: 3 | F23: argon | G23: Argon | H23: argon | I23: argón | J23: argo | K23: 040 | L23: 39.948 | M23: -189.2 | N23: -185.7 | O23: gaseous | P23: 0.00178 | R23: 15.7596 | S23: 27.629 | T23: 40.74 | U23: 1521 | V23: 2666 | W23: 3931 | X23: <0 | Y23: <0 | Z23: 0 | AB23: [Ne] 3s2 3p6 | AC23: [Ne] 3s2 3p6 | AD23: 0.88 | AF23: 0.98 | AI23: 98 | AM23: 23.9 | AN23: cubic: face centered | AO23: 7440-37-1 | AQ23: 0.52 | AR23: 1.188 | AS23: 6.447 | AT23: 0.01772 | AU23: 3.5 | AV23: 0.45 | AY23: Air | AZ23: colorless | BA23: Inert | BB23: fcc: face-centered cubic | BD23: lasers, light bulbs | BE23: none | BF23: none | BG23: none | BH23: none | BI23: none | BJ23: none | BK23: none | BL23: none | BM23: 1.586 | BN23: 0 | BO23: 1894 | BP23: 5.004 | BQ23: 0.5 | BR23: 0.5 | BT23: no | BU23: no
A24: 19 | B24: K | C24: 1 | D24: I A | E24: 4 | F24: potassium | G24: Kalium | H24: potassium | I24: potasio | J24: potassio | K24: 039 | L24: 39.0983 | M24: 63.25 | N24: 760 | O24: solid | P24: 0.86 | Q24: 0.82 | R24: 4.3407 | S24: 31.625 | T24: 45.72 | U24: 419 | V24: 3051 | W24: 4411 | X24: 0.50 | Y24: 48 | Z24: +1 | AA24: +1 | AB24: =CONCATENATE("[",B$23,"] ",E24,"s",MIN(A24-A$23,2)) -> [Ar] 4s1 | AC24: [Ar] 4s1 | AD24: 2.77 | AE24: 1.51 | AF24: 2.03 | AI24: 227 | AJ24: 152 | AM24: 45.46 | AN24: cubic: body centered | AO24: 7440-09-7 | AP24: 0.139 | AQ24: 0.75 | AR24: 2.334 | AS24: 79.87 | AT24: 102.4 | AU24: 20900 | AV24: 399 | AW24: 0.2 | AY24: Sylvite, carnallite (misc) | AZ24: silvery-white | BA24: soft | BB24: bcc: body-centered cubic | BC24: 0.5 | BD24: fertilizer, low-Na salt | BE24: vigorous, =>KO2 | BF24: vigorous, =>H2, KOH | BG24: vigorous, =>H2, KCl | BH24: vigorous, =>H2, NOx, KNO3 | BI24: vigorous, =>H2, KOH | BJ24: KH | BK24: K2O | BL24: KCl | BM24: 43.4 | BN24: 90 | BO24: 1807 | BP24: 3.576 | BQ24: 4.3 | BR24: 85
A25: 20 | B25: Ca | C25: 2 | D25: II A | E25: 4 | F25: calcium | G25: Kalzium | H25: calcium | I25: calcio | J25: calcio | K25: 040 | L25: 40.078 | M25: 839 | N25: 1484 | O25: solid | P25: 1.55 | Q25: 1 | R25: 6.1132 | S25: 11.871 | T25: 50.908 | U25: 590 | V25: 1145 | W25: 4912 | X25: 0.04 | Y25: 4 | Z25: +2 | AA25: +2 | AB25: =CONCATENATE("[",B$23,"] ",E25,"s",MIN(A25-A$23,2)) -> [Ar] 4s2 | AC25: [Ar] 4s2 | AD25: 2.23 | AE25: 1 | AF25: 1.74 | AI25: 197 | AK25: 114 | AM25: 25.9 | AN25: cubic: face centered | AO25: 7440-70-2 | AP25: 0.298 | AQ25: 0.63 | AR25: 8.54 | AS25: 153.3 | AT25: 200 | AU25: 41500 | AV25: 412 | AW25: 1.4 | AY25: Calcite (oxide) | AZ25: silvery-white | BA25: burns brightly | BB25: hcp: hexagonal close pkd | BC25: 1.5 | BD25: lime, cement | BE25: vigorous, =>CaO, Ca3N2 | BF25: mild, =>H2, Ca(OH)2 | BG25: vigorous, =>H2, CaCl2 | BH25: vigorous, =>H2, Ca(NO3)2 | BI25: none | BJ25: CaH2 | BK25: CaO | BL25: CaCl2 | BM25: 22.8 | BN25: 178 | BO25: 1808 | BP25: 4.786 | BQ25: 4.65 | BR25: 11
A26: 21 | B26: Sc | C26: 3 | D26: III B | E26: 4 | F26: scandium | G26: Skandium | H26: scandium | I26: escandio | J26: scandio | K26: 045 | L26: 44.955912 | M26: 1541 | N26: 2832 | O26: solid | P26: 2.99 | Q26: 1.36 | R26: 6.5614 | S26: 12.8 | T26: 24.76 | U26: 633 | V26: 1235 | W26: 2389 | X26: 0.19 | Y26: 18 | Z26: +3 | AA26: +3 | AB26: =CONCATENATE(AB$25," ",E26-1,"d",MIN(A26-A$25,10)) -> [Ar] 4s2 3d1 | AC26: [Ar] 4s2 3d1 | AD26: 2.09 | AE26: 0.75 | AF26: 1.44 | AI26: 162 | AL26: 88.5 | AM26: 15 | AN26: hexagonal | AO26: 7440-20-2 | AP26: 0.0177 | AQ26: 0.6 | AR26: 14.1 | AS26: 314.2 | AT26: 15.8 | AU26: 22 | AV26: 6e-07 | AY26: U extractn by-product | AZ26: silvery-white | BA26: soft | BB26: hcp: hexagonal close pkd | BD26: no significant uses | BE26: vigorous, =>Sc2O3 | BF26: mild, =>H2, Sc(OH)3 | BG26: mild, =>H2, ScCl3 | BH26: mild, =>Sc(NO3)3 | BJ26: ScH2 ScH3 | BK26: Sc2O3 | BL26: ScCl3 | BM26: 17.8 | BN26: 378 | BO26: 1879 | BP26: 1.534 | BQ26: 1.3 | BR26: 1400
A27: 22 | B27: Ti | C27: 4 | D27: IV B | E27: 4 | F27: titanium | G27: Titan | H27: titane | I27: titanio | J27: titanio | K27: 048 | L27: 47.867 | M27: 1660 | N27: 3287 | O27: solid | P27: 4.54 | Q27: 1.54 | R27: 6.8282 | S27: 13.58 | T27: 27.491 | U27: 659 | V27: 1310 | W27: 2652 | X27: 0.08 | Y27: 8 | Z27: +4,3,2 | AA27: +4,3,2 | AB27: [Ar] 4s2 3d2 | AC27: [Ar] 4s2 3d2 | AD27: 2 | AE27: 0.61 | AF27: 1.32 | AI27: 147 | AK27: 100 | AL27: 81 | AM27: 10.64 | AN27: hexagonal | AO27: 7440-32-6 | AP27: 0.0234 | AQ27: 0.52 | AR27: 15.45 | AS27: 421 | AT27: 21.9 | AU27: 5650 | AV27: 0.001 | AY27: Ilmenite, rutile(oxide) | AZ27: gray | BA27: max strength/weight ratio | BB27: hcp: hexagonal close pkd | BD27: steel,white pigment(TiO2) | BE27: mild, w/ht =>TiO2, TiN | BF27: none | BG27: none | BH27: passivated | BI27: none | BJ27: TiH2 | BK27: TiO Ti2O3 TiO2 + more | BL27: TiCl2 TiCl3 TiCl4 | BM27: 14.6 | BN27: 470 | BO27: 1791 | BP27: 3.380 | BQ27: 3.8 | BR27: 6.1
A28: 23 | B28: V | C28: 5 | D28: V B | E28: 4 | F28: vanadium | G28: Vanadium | H28: vanadium | I28: vanadio | J28: vanadio | K28: 051 | L28: 50.9415 | M28: 1890 | N28: 3380 | O28: solid | P28: 6.11 | Q28: 1.63 | R28: 6.7463 | S28: 14.65 | T28: 29.31 | U28: 651 | V28: 1414 | W28: 2828 | X28: 0.53 | Y28: 51 | Z28: +5,2,3,4 | AA28: +5,2,3,4 | AB28: [Ar] 4s2 3d3 | AC28: [Ar] 4s2 3d3 | AD28: 1.92 | AE28: 0.54 | AF28: 1.22 | AI28: 134 | AK28: 93 | AL28: 78 | AM28: 8.78 | AN28: cubic: body centered | AO28: 7440-62-2 | AP28: 0.0489 | AQ28: 0.49 | AR28: 20.9 | AS28: 0.452 | AT28: 30.7 | AU28: 120 | AV28: 0.0025 | AY28: U, Pb vanadates (misc) | AZ28: bright white | BA28: soft | BB28: bcc: body-centered cubic | BD28: tool steel, V2O5 catalyst | BE28: mild, w/ht =>V2O5, VN | BF28: none | BG28: none | BH28: mild | BI28: none | BJ28: VH VH2 | BK28: VO V2O3 VO2 V2O5 | BL28: VCl2 VCl3 VCl4 | BM28: 12.4 | BN28: 514 | BO28: 1830 | BP28: 2.467 | BQ28: 2.1 | BR28: 220 | BT28: yes
A29: 24 | B29: Cr | C29: 6 | D29: VI B | E29: 4 | F29: chromium | G29: Chrom | H29: chrome | I29: cromo | J29: cromo | K29: 052 | L29: 51.9961 | M29: 1857 | N29: 2672 | O29: solid | P29: 7.19 | Q29: 1.66 | R29: 6.7666 | S29: 16.5 | T29: 30.96 | U29: 653 | V29: 1592 | W29: 2987 | X29: 0.67 | Y29: 65 | Z29: +3,2,6 | AA29: +3,2,6 | AB29: [Ar] 4s2 3d4 | AC29: [Ar] 4s1 3d5 | AD29: 1.85 | AE29: 0.62 | AF29: 1.18 | AI29: 128 | AK29: 90.5 | AL29: 75.5 | AM29: 7.23 | AN29: cubic: body centered | AO29: 7440-47-3 | AP29: 0.0774 | AQ29: 0.45 | AR29: 16.9 | AS29: 344.3 | AT29: 93.7 | AU29: 102 | AV29: 0.0003 | AW29: 3e-06 | AY29: Chromite (oxide) | AZ29: silvery-white | BA29: hard | BB29: bcc: body-centered cubic | BC29: 9 | BD29: CrO2 tape, paint, steel | BE29: none | BF29: none | BG29: mild, =>H2, CrCl3 | BH29: passivated | BJ29: CrH | BK29: Cr2O3 CrO2 CrO3+non-stoich | BL29: CrCl2 CrCl3 | BM29: 11.6 | BN29: 397 | BO29: 1798 | BP29: 4.130 | BQ29: 2 | BR29: 10
A30: 25 | B30: Mn | C30: 7 | D30: VII B | E30: 4 | F30: manganese | G30: Mangan | H30: manganèse | I30: manganeso | J30: manganese | K30: 055 | L30: 54.938045 | M30: 1244 | N30: 1962 | O30: solid | P30: 7.43 | Q30: 1.55 | R30: 7.434 | S30: 15.64 | T30: 33.667 | U30: 717 | V30: 1509 | W30: 3248 | X30: <0 | Y30: <0 | Z30: +2,3,4,6,7 | AA30: +2,3,4,6,7 | AB30: [Ar] 4s2 3d5 | AC30: [Ar] 4s2 3d5 | AD30: 1.79 | AE30: 0.67 | AF30: 1.17 | AI30: 127 | AK30: 89 | AL30: 75.3 | AM30: 7.39 | AN30: cubic: body centered | AO30: 7439-96-5 | AP30: 0.00695 | AQ30: 0.48 | AR30: 12.05 | AS30: 266 | AT30: 7.82 | AU30: 950 | AV30: 0.0002 | AW30: 2e-05 | AY30: Pyrolusite,psilomelane(oxide) | AZ30: gray-white | BA30: hard, brittle | BB30: special:complex (cubic) | BC30: 5 | BD30: steel, dry cells(MnO2) | BE30: mild, w/ht =>Mn3O4, Mn3N2 | BF30: none | BG30: mild, =>H2, MnCl2 | BH30: mild, =>Mn(NO3)2, NOx | BJ30: none | BK30: MnO Mn3O4 Mn2O3 MnO2 Mn2O7 | BL30: MnCl2 | BM30: 9.4 | BN30: 281 | BO30: 1774 | BP30: 3.980 | BQ30: 3 | BR30: 1.7 | BU30: no
A31: 26 | B31: Fe | C31: 8 | D31: VIII B | E31: 4 | F31: iron | G31: Eisen | H31: fer | I31: hierro | J31: ferro | K31: 056 | L31: 55.845 | M31: 1535 | N31: 2750 | O31: solid | P31: 7.86 | Q31: 1.83 | R31: 7.9024 | S31: 16.18 | T31: 30.651 | U31: 762 | V31: 1561 | W31: 2957 | X31: 0.15 | Y31: 15 | Z31: +3,2 | AA31: +3,2 | AB31: [Ar] 4s2 3d6 | AC31: [Ar] 4s2 3d6 | AD31: 1.72 | AE31: 0.55 | AF31: 1.17 | AI31: 126 | AK31: 83.5 | AL31: 73.8 | AM31: 7.1 | AN31: cubic: body centered | AO31: 7439-89-6 | AP31: 0.0993 | AQ31: 0.44 | AR31: 13.8 | AS31: 349.6 | AT31: 80.2 | AU31: 56300 | AV31: 0.002 | AW31: 0.006 | AY31: Hematite,magnetite(oxide) | AZ31: gray | BA31: fairly soft when pure | BB31: bcc: body-centered cubic | BC31: 4.5 | BD31: steel | BE31: mild, =>Fe3O4 | BF31: none | BG31: mild, =>H2, FeCl2 | BH31: passivated | BJ31: none | BK31: FeO Fe3O4 Fe2O3 | BL31: FeCl2 FeCl3 | BM31: 8.4 | BN31: 418 | BP31: 5.954 | BQ31: 4.8 | BR31: 6.7 | BS31: 0.021
A32: 27 | B32: Co | C32: 9 | D32: VIII B | E32: 4 | F32: cobalt | G32: Kobalt | H32: cobalt | I32: cobalto | J32: cobalto | K32: 059 | L32: 58.933195 | M32: 1495 | N32: 2870 | O32: solid | P32: 8.9 | Q32: 1.88 | R32: 7.881 | S32: 17.06 | T32: 33.5 | U32: 760 | V32: 1646 | W32: 3232 | X32: 0.66 | Y32: 64 | Z32: +2,3 | AA32: +2,3 | AB32: [Ar] 4s2 3d7 | AC32: [Ar] 4s2 3d7 | AD32: 1.67 | AE32: 0.65 | AF32: 1.16 | AI32: 125 | AK32: 83.8 | AL32: 71.8 | AM32: 6.7 | AN32: hexagonal | AO32: 7440-48-4 | AP32: 0.172 | AQ32: 0.42 | AR32: 16.19 | AS32: 376.5 | AT32: 100 | AU32: 25 | AV32: 2e-05 | AW32: 2e-06 | AY32: Co sulfides & arsenides | AZ32: bluish-white | BA32: hard | BB32: hcp: hexagonal close pkd | BD32: magnets, Co glass (blue) | BE32: mild, w/ht =>Co3O4 | BF32: none | BG32: mild, =>H2, CoCl2 | BH32: vigorous, =>Co(NO3)2, NOx | BJ32: none | BK32: CoO Co3O4 | BL32: CoCl2 | BM32: 7.5 | BN32: 425 | BO32: 1737 | BP32: 3.352 | BQ32: 1.4 | BR32: 21 | BU32: yes
A33: 28 | B33: Ni | C33: 10 | D33: VIII B | E33: 4 | F33: nickel | G33: Nickel | H33: nickel | I33: níquel | J33: nichelio | K33: 059 | L33: 58.6934 | M33: 1453 | N33: 2730 | O33: solid | P33: 8.9 | Q33: 1.91 | R33: 7.6398 | S33: 18.168 | T33: 35.17 | U33: 737 | V33: 1753 | W33: 3393 | X33: 1.16 | Y33: 112 | Z33: +2,3 | AA33: +2,3 | AB33: [Ar] 4s2 3d8 | AC33: [Ar] 4s2 3d8 | AD33: 1.62 | AE33: 0.69 | AF33: 1.15 | AI33: 124 | AK33: 83 | AL33: 72 | AM33: 6.59 | AN33: cubic: face centered | AO33: 7440-02-0 | AP33: 0.143 | AQ33: 0.44 | AR33: 17.47 | AS33: 370.4 | AT33: 90.7 | AU33: 84 | AV33: 5.6e-14 | AW33: 1e-05 | AY33: sulfides, oxide/silicates | AZ33: silvery-white | BA33: hard, takes a high polish | BB33: fcc: face-centered cubic | BD33: alloys, coins, batteries | BE33: mild, w/ht =>NiO | BF33: none | BG33: mild, =>H2, NiCl2 | BH33: passivated | BI33: none | BJ33: NiH | BK33: NiO | BL33: NiCl2 | BM33: 6.8 | BN33: 430 | BO33: 1751 | BP33: 4.693 | BQ33: 1.9 | BR33: 7.7 | BS33: 0.76 | BT33: yes | BU33: yes
A34: 29 | B34: Cu | C34: 11 | D34: I B | E34: 4 | F34: copper | G34: Kupfer | H34: cuivre | I34: cobre | J34: rame | K34: 064 | L34: 63.546 | M34: 1083 | N34: 2567 | O34: solid | P34: 8.96 | Q34: 1.9 | R34: 7.7264 | S34: 20.292 | T34: 36.83 | U34: 745 | V34: 1958 | W34: 3554 | X34: 1.24 | Y34: 120 | Z34: +2,1 | AA34: +2,1 | AB34: [Ar] 4s2 3d9 | AC34: [Ar] 4s1 3d10 | AD34: 1.57 | AE34: 0.73 | AF34: 1.17 | AI34: 128 | AJ34: 91 | AK34: 87 | AL34: 68 | AM34: 7.1 | AN34: cubic: face centered | AO34: 7440-50-8 | AP34: 0.596 | AQ34: 0.38 | AR34: 13.05 | AS34: 300.3 | AT34: 401 | AU34: 60 | AV34: 2.5e-14 | AW34: 0.0001 | AY34: Cu pyrite,chalcocite(sulfide) | AZ34: orange-red | BA34: soft, ductile | BB34: fcc: face-centered cubic | BC34: 2.75 | BD34: wire, bronze, coins | BE34: mild, w/ht =>CuO, Cu2O | BF34: none | BG34: none | BH34: mild, =>Cu(NO3)2, NOx | BJ34: CuH | BK34: Cu2O CuO | BL34: CuCl CuCl2 | BM34: 6.7 | BN34: 338 | BP34: 2.718 | BQ34: 1.7 | BR34: 2.7 | BS34: 0.24 | BU34: no
A35: 30 | B35: Zn | C35: 12 | D35: II B | E35: 4 | F35: zinc | G35: Zink | H35: zinc | I35: zinc | J35: zinco | K35: 065 | L35: 65.409 | M35: 419.6 | N35: 906 | O35: solid | P35: 7.13 | Q35: 1.65 | R35: 9.3941 | S35: 17.964 | T35: 39.722 | U35: 906 | V35: 1733 | W35: 3833 | X35: <0 | Y35: <0 | Z35: +2 | AA35: +2 | AB35: [Ar] 4s2 3d10 | AC35: [Ar] 4s2 3d10 | AD35: 1.53 | AE35: 0.74 | AF35: 1.25 | AI35: 134 | AK35: 88 | AM35: 9.2 | AN35: hexagonal | AO35: 7440-66-6 | AP35: 0.166 | AQ35: 0.39 | AR35: 7.322 | AS35: 115.3 | AT35: 116 | AU35: 70 | AV35: 0.0049 | AW35: 0.0033 | AY35: Sphalerite (sulfide) | AZ35: silvery | BA35: brittle | BB35: distorted hcp structure | BC35: 2.5 | BD35: batteries, galvanizing | BE35: vigorous, =>ZnO | BF35: none | BG35: mild, =>H2, ZnCl2 | BH35: vigorous, =>Zn(NO3)2, NOx | BI35: mild, =>[Zn(OH)4](2-), H2 | BJ35: ZnH2 | BK35: ZnO | BL35: ZnCl2 | BM35: 6.4 | BN35: 131 | BO35: 1600 | BP35: 3.100 | BQ35: 1.79 | BR35: 3.7 | BS35: 0.12 | BU35: no
A36: 31 | B36: Ga | C36: 13 | D36: III A | E36: 4 | F36: gallium | G36: Gallium | H36: gallium | I36: galio | J36: gallio | K36: 070 | L36: 69.723 | M36: 29.8 | N36: 2403 | O36: solid | P36: 5.9 | Q36: 1.81 | R36: 5.9993 | S36: 20.51 | T36: 30.71 | U36: 579 | V36: 1979 | W36: 2963 | X36: 0.30 | Y36: 29 | Z36: +3 | AA36: +3 | AB36: =CONCATENATE(AB$35," ",E36,"p",MIN(A36-A$35,6)) -> [Ar] 4s2 3d10 4p1 | AC36: [Ar] 4s2 3d10 4p1 | AD36: 1.81 | AE36: 0.62 | AF36: 1.26 | AI36: 135 | AL36: 76 | AM36: 11.8 | AN36: orthorhombic | AO36: 7440-55-3 | AP36: 0.0678 | AQ36: 0.37 | AR36: 5.59 | AS36: 258.7 | AT36: 40.6 | AU36: 19 | AV36: 3e-05 | AY36: Bauxite (oxide) | AZ36: silvery-blue | BA36: melts near r.t.wets glass | BB36: special: complex | BC36: 1.5 | BD36: photocells, transistors | BE36: mild, =>Ga2O3 | BF36: none | BG36: mild, =>GaCl3, H2 | BI36: mild, =>[Ga(OH)4]2-, H2 | BJ36: GaH3 | BK36: Ga2O3 | BL36: GaCl Ga2Cl6 | BM36: 8.1 | BN36: 286 | BO36: 1875 | BP36: 1.577 | BQ36: 1.2 | BR36: 220
A37: 32 | B37: Ge | C37: 14 | D37: IV A | E37: 4 | F37: germanium | G37: Germanium | H37: germanium | I37: germanio | J37: germanio | K37: 073 | L37: 72.64 | M37: 947.4 | N37: 2830 | O37: solid | P37: 5.32 | Q37: 2.01 | R37: 7.9 | S37: 15.934 | T37: 34.22 | U37: 762 | V37: 1537 | W37: 3302 | X37: 1.23 | Y37: 119 | Z37: +4,2 | AA37: +4,2 | AB37: [Ar] 4s2 3d10 4p2 | AC37: [Ar] 4s2 3d10 4p2 | AD37: 1.52 | AE37: 0.53 | AF37: 1.22 | AI37: 122.3 | AK37: 87 | AM37: 13.6 | AN37: cubic: face centered | AO37: 7440-56-2 | AP37: 1.45e-08 | AQ37: 0.32 | AR37: 36.94 | AS37: 330.9 | AT37: 59.9 | AU37: 1.5 | AV37: 5e-05 | AY37: Zn smelting by-product | AZ37: gray-black | BA37: semimetal, brittle | BB37: diamond | BD37: transistor, wide-ang lens | BE37: mild, w/ht =>GeO2 | BF37: none | BG37: none | BH37: mild, =>Ge(IV), NOx | BI37: none | BJ37: GeH4 Ge2H6 + more | BK37: GeO GeO2 | BL37: GeCl2 GeCl4 | BM37: 6.1 | BN37: 377 | BO37: 1886 | BP37: 2.076 | BQ37: 0.7 | BR37: 360
A38: 33 | B38: As | C38: 15 | D38: V A | E38: 4 | F38: arsenic | G38: Arsen | H38: arsenic | I38: arsénico | J38: arsenico | K38: 075 | L38: 74.9216 | M38: 817 | N38: 617 | O38: solid | P38: 5.73 | Q38: 2.18 | R38: 9.8152 | S38: 18.633 | T38: 28.351 | U38: 947 | V38: 1798 | W38: 2735 | X38: 0.81 | Y38: 78 | Z38: ±3,+5 | AA38: −3 | AB38: [Ar] 4s2 3d10 4p3 | AC38: [Ar] 4s2 3d10 4p3 | AD38: 1.33 | AE38: 0.58 | AF38: 1.2 | AI38: 120 | AL38: 72 | AM38: 13.1 | AN38: rhombohedral | AO38: 7440-38-2 | AP38: 0.0345 | AQ38: 0.33 | AS38: 34.76 | AT38: 50 | AU38: 1.8 | AV38: 0.0037 | AX38: sublimes (28 atm) | AY38: Arsenopyrite, enargite (misc) | AZ38: gray | BA38: semimetal,brittle,3 forms | BB38: rhombohedral | BC38: 3.5 | BD38: photocells (GaAs), poisons | BE38: mild, w/ht =>As4O6 | BF38: none | BG38: none | BH38: mild, w/ht =>H3AsO4, NOx | BI38: none | BJ38: AsH3 | BK38: As2O3 | BL38: AsCl3 AsCl5 | BM38: 4.3 | BN38: 302 | BO38: 1600 | BP38: 0.817 | BQ38: 0.3 | BR38: 320 | BU38: yes
A39: 34 | B39: Se | C39: 16 | D39: VI A | E39: 4 | F39: selenium | G39: Selen | H39: sélénium | I39: selenio | J39: selenio | K39: 079 | L39: 78.96 | M39: 217 | N39: 685 | O39: solid | P39: 4.79 | Q39: 2.55 | R39: 9.7524 | S39: 21.19 | T39: 30.82 | U39: 941 | V39: 2045 | W39: 2974 | X39: 2.02 | Y39: 195 | Z39: +4,−2,+6 | AA39: −2 | AB39: [Ar] 4s2 3d10 4p4 | AC39: [Ar] 4s2 3d10 4p4 | AD39: 1.22 | AE39: 0.5 | AF39: 1.16 | AG39: 184 | AI39: 119 | AM39: 16.45 | AN39: hexagonal | AO39: 7782-49-2 | AP39: 1e-12 | AQ39: 0.32 | AR39: 6.694 | AS39: 37.7 | AT39: 2.04 | AU39: 0.05 | AV39: 0.0002 | AY39: Cu smelting by-product | AZ39: black | BA39: 6 forms | BB39: parallel chains | BC39: 2 | BD39: Xerography, medicines | BE39: vigorous, w/ht =>SeO2 | BG39: none | BH39: mild, =>H2SeO3, NOx | BJ39: SeH2 | BK39: SeO2 SeO3 | BL39: Se2Cl2 Se4Cl16 | BM39: 3.8 | BN39: 227 | BO39: 1818 | BP39: 1.793 | BQ39: -1.3 | BR39: 14 | BT39: yes | BU39: no
A40: 35 | B40: Br | C40: 17 | D40: VII A | E40: 4 | F40: bromine | G40: Brom | H40: brome | I40: bromo | J40: bromo | K40: 080 | L40: 79.904 | M40: -7.2 | N40: 58.8 | O40: liquid | P40: 3.12 | Q40: 2.96 | R40: 11.8138 | S40: 21.8 | T40: 36 | U40: 1140 | V40: 2103 | W40: 3473 | X40: 3.36 | Y40: 324 | Z40: ±1,+5 | AA40: −1 | AB40: [Ar] 4s2 3d10 4p5 | AC40: [Ar] 4s2 3d10 4p5 | AD40: 1.12 | AE40: 1.96 | AF40: 1.14 | AH40: 182 | AI40: 114 | AM40: 25.6 | AN40: orthorhombic | AO40: 7726-95-6 | AQ40: 0.473 | AR40: 5.286 | AS40: 15.438 | AT40: 0.122 | AU40: 2.4 | AV40: 67.3 | AW40: 0.00029 | AY40: Seawater, brines | AZ40: red-brown | BA40: diatomic,corrosive,liquid | BB40: layers of Br2 | BD40: pesticides,photography | BE40: none | BF40: none, dissolves Br2(aq) | BG40: none, dissolves Br2(aq) | BI40: mild, =>OBr-, Br- | BJ40: HBr | BK40: Br2O BrO2 | BL40: BrCl | BM40: 3.1 | BN40: 112 | BO40: 1826 | BP40: 1.072 | BQ40: 0.4 | BR40: 4.9 | BT40: yes | BU40: no
A41: 36 | B41: Kr | C41: 18 | D41: VIII A | E41: 4 | F41: krypton | G41: Krypton | H41: krypton | I41: criptón | J41: kripto | K41: 084 | L41: 83.798 | M41: -157 | N41: -152 | O41: gaseous | P41: 0.00374 | Q41: 3 | R41: 13.9996 | S41: 24.359 | T41: 36.95 | U41: 1351 | V41: 2350 | W41: 3565 | X41: <0 | Y41: <0 | Z41: 0 | AB41: [Ar] 4s2 3d10 4p6 | AC41: [Ar] 4s2 3d10 4p6 | AD41: 1.03 | AF41: 1.12 | AI41: 112 | AM41: 38.9 | AN41: cubic: face centered | AO41: 7439-90-9 | AQ41: 0.248 | AR41: 1.638 | AS41: 9.029 | AT41: 0.00949 | AU41: 0.0001 | AV41: 0.00021 | AY41: Air | AZ41: colorless | BA41: unreactive | BB41: fcc: face-centered cubic | BD41: lamps, UV-laser | BE41: none | BF41: none | BG41: none | BH41: none | BI41: none | BJ41: none | BK41: none | BL41: none | BM41: 2.5 | BN41: 0 | BO41: 1898 | BP41: 1.653 | BQ41: -4 | BR41: 33 | BT41: no | BU41: no
A42: 37 | B42: Rb | C42: 1 | D42: I A | E42: 5 | F42: rubidium | G42: Rubidium | H42: rubidium | I42: rubidio | J42: rubidio | K42: 085 | L42: 85.4678 | M42: 38.9 | N42: 686 | O42: solid | P42: 1.53 | Q42: 0.82 | R42: 4.1771 | S42: 27.28 | T42: 40 | U42: 403 | V42: 2632 | W42: 3859 | X42: 0.49 | Y42: 47 | Z42: +1 | AA42: +1 | AB42: =CONCATENATE("[",B$41,"] ",E42,"s",MIN(A42-A$37,2)) -> [Kr] 5s2 | AC42: [Kr] 5s2 | AD42: 2.98 | AE42: 1.61 | AF42: 2.16 | AI42: 248 | AJ42: 166 | AM42: 55.9 | AN42: cubic: body centered | AO42: 7440-17-7 | AP42: 0.0779 | AQ42: 0.363 | AR42: 2.192 | AS42: 72.216 | AT42: 58.2 | AU42: 90 | AV42: 0.12 | AW42: 0.00046 | AY42: Li extractn by-product | AZ42: silvery-white | BA42: soft | BB42: bcc: body-centered cubic | BC42: 0.3 | BD42: photocells | BE42: vigorous, =>RbO2 | BF42: vigorous, =>H2, RbOH | BG42: vigorous, =>H2, RbCl | BH42: vigorous,=>RbNO3, H2, NOx | BI42: vigorous, =>H2, RbOH | BJ42: RbH | BK42: Rb2O | BL42: RbCl | BM42: 47.3 | BN42: 86 | BO42: 1861 | BP42: 0.851 | BQ42: 2 | BR42: 1200
A43: 38 | B43: Sr | C43: 2 | D43: II A | E43: 5 | F43: strontium | G43: Strontium | H43: strontium | I43: estroncio | J43: stronzio | K43: 088 | L43: 87.62 | M43: 769 | N43: 1384 | O43: solid | P43: 2.54 | Q43: 0.95 | R43: 5.6948 | S43: 11.03 | T43: 43.6 | U43: 549 | V43: 1064 | W43: 4207 | X43: 0.11 | Y43: 11 | Z43: +2 | AA43: +2 | AB43: =CONCATENATE("[",B$41,"] ",E43,"s",MIN(A43-A$37,2)) -> [Kr] 5s2 | AC43: [Kr] 5s2 | AD43: 2.45 | AE43: 1.26 | AF43: 1.91 | AI43: 215 | AK43: 132 | AM43: 33.7 | AN43: cubic: face centered | AO43: 7440-24-6 | AP43: 0.0762 | AQ43: 0.3 | AR43: 8.3 | AS43: 144 | AT43: 35.3 | AU43: 370 | AV43: 7.2 | AW43: 0.00046 | AY43: Celestite (sulfide) | AZ43: silvery | BA43: tarnishes | BB43: hcp: hexagonal close pkd | BC43: 1.8 | BD43: fireworks (red flame) | BE43: vigorous, =>SrO, Sr2N3 | BF43: mild, =>H2, Sr(OH)2 | BG43: vigorous, =>H2, SrCl2 | BH43: vigorous, =>Sr(NO3)2, H2 | BI43: none | BJ43: SrH2 | BK43: SrO | BL43: SrCl2 | BM43: 27.6 | BN43: 164 | BO43: 1808 | BP43: 1.371 | BQ43: 2.6 | BR43: 100
A44: 39 | B44: Y | C44: 3 | D44: III B | E44: 5 | F44: yttrium | G44: Yttrium | H44: yttrium | I44: itrio | J44: ittrio | K44: 089 | L44: 88.90585 | M44: 1523 | N44: 3337 | O44: solid | P44: 4.47 | Q44: 1.22 | R44: 6.217 | S44: 12.24 | T44: 20.52 | U44: 600 | V44: 1181 | W44: 1980 | X44: 0.31 | Y44: 30 | Z44: +3 | AA44: +3 | AB44: =CONCATENATE("[",B$41,"] ",E44,"s",MIN(A44-A$37,2)," ",E44-1,"d",MIN(A44-A$43,10)) -> [Kr] 5s2 4d1 | AC44: [Kr] 5s2 4d1 | AD44: 2.27 | AE44: 1.02 | AF44: 1.62 | AI44: 180 | AL44: 104 | AM44: 19.8 | AN44: hexagonal | AO44: 7440-65-5 | AP44: 0.0166 | AQ44: 0.3 | AR44: 11.4 | AS44: 363 | AT44: 17.2 | AU44: 33 | AV44: 1.3e-05 | AY44: xenotime (phosphate) | AZ44: silvery | BA44: forms protective oxide | BB44: hcp: hexagonal close pkd | BD44: YAG laser, TV phosphor | BE44: vigorous, =>Y2O3 | BF44: mild, =>H2, Y(OH)3 | BG44: mild, =>H2, YCl3 | BH44: vigorous, =>Y(NO3)3 | BJ44: YH2 YH3 | BK44: Y2O3 | BL44: YCl3 | BM44: 22.7 | BN44: 423 | BO44: 1794 | BP44: 0.667 | BQ44: 1.51 | BR44: 220 | BU44: no
A45: 40 | B45: Zr | C45: 4 | D45: IV B | E45: 5 | F45: zirconium | G45: Zirkonium | H45: zirconium | I45: circonio | J45: zirconio | K45: 091 | L45: 91.224 | M45: 1852 | N45: 4377 | O45: solid | P45: 6.51 | Q45: 1.33 | R45: 6.6339 | S45: 13.13 | T45: 22.99 | U45: 640 | V45: 1267 | W45: 2218 | X45: 0.43 | Y45: 41 | Z45: +4 | AA45: +4 | AB45: [Kr] 5s2 4d2 | AC45: [Kr] 5s2 4d2 | AD45: 2.16 | AE45: 0.84 | AF45: 1.45 | AI45: 160 | AM45: 14.1 | AN45: hexagonal | AO45: 7440-67-7 | AP45: 0.0236 | AQ45: 0.27 | AR45: 16.9 | AS45: 58.2 | AT45: 22.7 | AU45: 165 | AV45: 3e-05 | AY45: Zircon (silicate) | AZ45: grayish-white | BA45: hard, relatively inert | BB45: hcp: hexagonal close pkd | BD45: deodorants, fuel rod clad | BE45: mild, w/ht =>Zr2O3 | BF45: none | BG45: none | BH45: passivated | BI45: none | BJ45: ZrH2 | BK45: ZrO2 | BL45: ZrCl3 ZrCl4 | BM45: 17.9 | BN45: 609 | BO45: 1789 | BP45: 1.057 | BQ45: 2.24 | BR45: 16 | BS45: 16
A46: 41 | B46: Nb | C46: 5 | D46: VI B | E46: 5 | F46: niobium | G46: Niob | H46: niobium | I46: niobio | J46: niobio | K46: 093 | L46: 92.90638 | M46: 2468 | N46: 4742 | O46: solid | P46: 8.57 | Q46: 1.6 | R46: 6.7589 | S46: 14.32 | T46: 25.04 | U46: 652 | V46: 1382 | W46: 2416 | X46: 0.90 | Y46: 87 | Z46: +5,3 | AA46: +5,3 | AB46: [Kr] 5s2 4d3 | AC46: [Kr] 5s1 4d4 | AD46: 2.08 | AE46: 0.64 | AF46: 1.67 | AI46: 146 | AL46: 86 | AM46: 10.87 | AN46: cubic: body centered | AO46: 7440-03-1 | AP46: 0.0693 | AQ46: 0.26 | AR46: 26.4 | AS46: 682 | AT46: 53.7 | AU46: 20 | AV46: 1e-05 | AY46: columbite (oxide) | AZ46: silvery-white | BA46: soft | BB46: bcc: body-centered cubic | BD46: stainless steels, magnets | BE46: none, w/ht =>Nb2O3 | BF46: none | BG46: none | BI46: none | BJ46: NbH NbH2 | BK46: NbO NbO2 Nb2O5 | BL46: NbCl3 NbCl4 NbCl5 | BM46: 15.7 | BN46: 726 | BO46: 1801 | BP46: -0.156 | BQ46: 1.3 | BR46: 18
A47: 42 | B47: Mo | C47: 6 | D47: VI B | E47: 5 | F47: molybdenum | G47: Molybdän | H47: molybdène | I47: molibdeno | J47: molibdeno | K47: 096 | L47: 95.94 | M47: 2617 | N47: 4612 | O47: solid | P47: 10.2 | Q47: 2.16 | R47: 7.0924 | S47: 16.461 | T47: 27.16 | U47: 684 | V47: 1588 | W47: 2621 | X47: 0.75 | Y47: 72 | Z47: +6,3,5 | AA47: +6,3,5 | AB47: [Kr] 5s2 4d4 | AC47: [Kr] 5s1 4d5 | AD47: 2.01 | AE47: 0.59 | AF47: 1.3 | AI47: 139 | AL47: 83 | AM47: 9.4 | AN47: cubic: body centered | AO47: 7439-98-7 | AP47: 0.187 | AQ47: 0.25 | AR47: 32 | AS47: 598 | AT47: 138 | AU47: 1.2 | AV47: 0.01 | AW47: 1e-05 | AY47: Molybdenite (sulfide) | AZ47: silvery-white | BA47: very hard | BB47: bcc: body-centered cubic | BD47: catalysts, tool steel | BE47: none, w/ht =>MoO3 | BF47: none | BG47: none | BJ47: none | BK47: MoO2 MoO3 | BL47: MoClx [x=2-6] | BM47: 12.8 | BN47: 658 | BO47: 1781 | BP47: 0.407 | BQ47: 0.2 | BR47: 11 | BU47: no
A48: 43 | B48: Tc | C48: 7 | D48: VII B | E48: 5 | F48: technetium | G48: Technetium | H48: technétium | I48: tecnecio | J48: tecnezio | K48: =TEXT(ROUND(L48,2),"0") -> 98 | L48: 98 | M48: 2172 | N48: 4877 | O48: solid | P48: 11.5 | Q48: 1.9 | R48: 7.28 | S48: 15.26 | T48: 29.54 | U48: 702 | V48: 1472 | W48: 2850 | X48: 0.55 | Y48: 53 | Z48: +7,4,6 | AA48: +7,4,6 | AB48: [Kr] 5s2 4d5 | AC48: [Kr] 5s2 4d5 | AD48: 1.95 | AF48: 1.27 | AI48: 136 | AM48: 8.5 | AN48: hexagonal | AO48: 7440-26-8 | AP48: 0.067 | AQ48: 0.21 | AR48: 24 | AS48: 660 | AT48: 50.6 | AY48: Synthetic (U fission) | AZ48: silvery gray | BA48: Radioactive, man made | BB48: hcp: hexagonal close pkd | BD48: medical imaging agents | BE48: mild, w/ht, =>Tc2O7 | BF48: none | BG48: none | BH48: mild, =>HTcO4 | BJ48: none | BK48: TcO2 Tc2O7 | BL48: TcCl4 | BM48: 11.4 | BN48: 677 | BO48: 1939 | BU48: no
A49: 44 | B49: Ru | C49: 8 | D49: VIII B | E49: 5 | F49: ruthenium | G49: Ruthenium | H49: ruthénium | I49: rutenio | J49: rutenio | K49: =TEXT(ROUND(L49,1),"0.0") -> 101 | L49: 101.07 | M49: 2310 | N49: 3900 | O49: solid | P49: 12.4 | Q49: 2.2 | R49: 7.3605 | S49: 16.76 | T49: 28.47 | U49: 710 | V49: 1617 | W49: 2747 | X49: 1.05 | Y49: 101 | Z49: +4,3,6,8 | AA49: +4,3,6,8 | AB49: [Kr] 5s2 4d6 | AC49: [Kr] 5s1 4d7 | AD49: 1.89 | AE49: 0.62 | AF49: 1.25 | AI49: 134 | AL49: 82 | AM49: 8.3 | AN49: hexagonal | AO49: 7440-18-8 | AP49: 0.137 | AQ49: 0.238 | AR49: 24 | AS49: 595 | AT49: 117 | AU49: 0.001 | AV49: 7e-07 | AY49: nickel ores (sulfides) | AZ49: silvery-white | BA49: hard | BB49: hcp: hexagonal close pkd | BC49: 6.5 | BD49: catalysts | BE49: none below 800 deg.C | BF49: none | BG49: none | BH49: none | BJ49: none | BK49: RuO2 RuO4 | BL49: RuCl2 RuCl3 | BM49: 9.6 | BN49: 643 | BO49: 1844 | BP49: 0.270 | BQ49: -3 | BR49: 1400
A50: 45 | B50: Rh | C50: 9 | D50: VIII B | E50: 5 | F50: rhodium | G50: Rhodium | H50: rhodium | I50: rodio | J50: rodio | K50: =TEXT(ROUND(L50,1),"0.0") -> 103 | L50: 102.9055 | M50: 1966 | N50: 3727 | O50: solid | P50: 12.4 | Q50: 2.28 | R50: 7.4589 | S50: 18.08 | T50: 31.06 | U50: 720 | V50: 1744 | W50: 2997 | X50: 1.14 | Y50: 110 | Z50: +3,4,6 | AA50: +3,4,6 | AB50: [Kr] 5s2 4d7 | AC50: [Kr] 5s1 4d8 | AD50: 1.83 | AE50: 0.67 | AF50: 1.25 | AI50: 134 | AL50: 80.5 | AM50: 8.3 | AN50: cubic: face centered | AO50: 7440-16-6 | AP50: 0.211 | AQ50: 0.242 | AR50: 21.5 | AS50: 493 | AT50: 150 | AU50: 0.001 | AY50: nickel ores (sulfides) | AZ50: silvery-white | BA50: forms hard coatings | BB50: fcc: face-centered cubic | BD50: catalysts, elec. contacts | BE50: none, w/ht =>Rh2O3 | BF50: none | BG50: none | BH50: none | BI50: none | BJ50: none | BK50: Rh2O3 RhO2 | BL50: RhCl3 | BM50: 8.6 | BN50: 556 | BO50: 1803 | BP50: -0.463 | BQ50: -3 | BR50: 13000 | BU50: no
A51: 46 | B51: Pd | C51: 10 | D51: VIII B | E51: 5 | F51: palladium | G51: Palladium | H51: palladium | I51: paladio | J51: palladio | K51: 106 | L51: 106.42 | M51: 1554 | N51: 3140 | O51: solid | P51: 12 | Q51: 2.2 | R51: 8.3369 | S51: 19.63 | T51: 32.93 | U51: 804 | V51: 1894 | W51: 3177 | X51: 0.56 | Y51: 54 | Z51: +2,4 | AA51: +2,4 | AB51: [Kr] 5s2 4d8 | AC51: [Kr] (5s0) 4d10 | AD51: 1.79 | AE51: 0.64 | AF51: 1.28 | AI51: 137 | AK51: 100 | AL51: 90 | AM51: 8.9 | AN51: cubic: face centered | AO51: 7440-05-3 | AP51: 0.095 | AQ51: 0.24 | AR51: 17.6 | AS51: 357 | AT51: 71.8 | AU51: 0.015 | AY51: nickel ores (sulfides) | AZ51: silvery-white | BA51: absorbs H2 | BB51: fcc: face-centered cubic | BC51: 4.8 | BD51: catalysts, dental crowns | BE51: mild, w/ht, =>PdO | BF51: none | BG51: none | BH51: mild, =>Pd(NO3)2 | BI51: none | BJ51: PdHx x<1 non-stoich | BK51: PdO | BL51: PdCl2 | BM51: 4.8 | BN51: 378 | BO51: 1803 | BP51: 0.143 | BQ51: -2 | BR51: 15 | BS51: 290
A52: 47 | B52: Ag | C52: 11 | D52: I B | E52: 5 | F52: silver | G52: Silber | H52: argent | I52: plata | J52: argento | K52: 108 | L52: 107.8682 | M52: 962 | N52: 2212 | O52: solid | P52: 10.5 | Q52: 1.93 | R52: 7.5762 | S52: 21.49 | T52: 34.83 | U52: 731 | V52: 2073 | W52: 3361 | X52: 1.30 | Y52: 125 | Z52: +1 | AA52: +1 | AB52: [Kr] 5s2 4d9 | AC52: [Kr] 5s1 4d10 | AD52: 1.75 | AE52: 1.15 | AF52: 1.34 | AI52: 144 | AJ52: 129 | AK52: 108 | AL52: 89 | AM52: 10.3 | AN52: cubic: face centered | AO52: 7440-22-4 | AP52: 0.63 | AQ52: 0.235 | AR52: 11.3 | AS52: 250.58 | AT52: 429 | AU52: 0.075 | AV52: 4e-05 | AY52: Argentite (sulfide) | AZ52: silvery | BA52: soft, ductile, tarnishes | BB52: fcc: face-centered cubic | BC52: 3.25 | BD52: film(AgBr),coins,jewelry | BE52: mild, =>Ag2O | BF52: none | BG52: none | BH52: mild, =>AgNO3 | BJ52: none | BK52: Ag2O | BL52: AgCl | BM52: 7.9 | BN52: 284 | BP52: -0.313 | BQ52: -1.2 | BR52: 120 | BS52: 14 | BU52: no
A53: 48 | B53: Cd | C53: 12 | D53: II B | E53: 5 | F53: cadmium | G53: Kadmium | H53: cadmium | I53: cadmio | J53: cadmio | K53: 112 | L53: 112.411 | M53: 320.9 | N53: 765 | O53: solid | P53: 8.65 | Q53: 1.69 | R53: 8.9937 | S53: 16.908 | T53: 37.48 | U53: 868 | V53: 1631 | W53: 3616 | X53: <0 | Y53: <0 | Z53: +2 | AA53: +2 | AB53: =CONCATENATE("[",B$41,"] ",E53,"s",MIN(A53-A$37,2)," ",E53-1,"d",MIN(A53-A$43,10)) -> [Kr] 5s2 4d10 | AC53: [Kr] 5s2 4d10 | AD53: 1.71 | AE53: 0.95 | AF53: 1.48 | AI53: 151 | AK53: 109 | AM53: 13.1 | AN53: hexagonal | AO53: 7440-43-9 | AP53: 0.138 | AQ53: 0.23 | AR53: 6.192 | AS53: 99.57 | AT53: 96.8 | AU53: 0.15 | AV53: 0.00011 | AW53: 7e-05 | AY53: Sphalerite (sulfide) | AZ53: bluish-white | BA53: soft | BB53: distorted hcp structure | BC53: 2 | BD53: battery,yel. pigment(CdS) | BE53: mild, w/ht =>CdO | BF53: none | BG53: mild, =>H2, Cd(Cl)2 | BH53: mild, =>Cd(NO3)2, NOx | BI53: none | BK53: CdO | BL53: CdCl2 | BM53: 7.2 | BN53: 112 | BO53: 1817 | BP53: 0.207 | BQ53: -0.7 | BR53: 6 | BU53: yes
A54: 49 | B54: In | C54: 13 | D54: III A | E54: 5 | F54: indium | G54: Indium | H54: indium | I54: indio | J54: indio | K54: 115 | L54: 114.818 | M54: 156.6 | N54: 2080 | O54: solid | P54: 7.31 | Q54: 1.78 | R54: 5.7864 | S54: 18.869 | T54: 28.03 | U54: 558 | V54: 1821 | W54: 2704 | X54: 0.30 | Y54: 29 | Z54: +3 | AA54: +3 | AB54: =CONCATENATE("[",B$41,"] ",E54,"s",MIN(A54-A$37,2)," ",E54-1,"d",MIN(A54-A$43,10)," ",E54,"p",MIN(A54-A$53,6)) -> [Kr] 5s2 4d10 5p1 | AC54: [Kr] 5s2 4d10 5p1 | AD54: 2 | AE54: 0.8 | AF54: 1.44 | AI54: 167 | AL54: 94 | AM54: 15.7 | AN54: tetragonal | AO54: 7440-74-6 | AP54: 0.116 | AQ54: 0.23 | AR54: 3.263 | AS54: 231.5 | AT54: 81.6 | AU54: 0.25 | AV54: 0.002 | AY54: Zn/Pb smelting by-product | AZ54: silvery-white | BA54: soft | BB54: distorted fcc structure | BC54: 1.2 | BD54: transistors, photocells | BE54: mild, =>In2O3 | BG54: mild, =>H2, InCl3 | BH54: mild, =>In(NO3)3 | BI54: none | BK54: In2O3 | BL54: InCl InCl3 | BM54: 9.7 | BN54: 243 | BO54: 1863 | BP54: -0.735 | BQ54: -1 | BR54: 120 | BU54: no
A55: 50 | B55: Sn | C55: 14 | D55: IV A | E55: 5 | F55: tin | G55: Zinn | H55: Étain | I55: estaño | J55: stagno | K55: 119 | L55: 118.71 | M55: 232 | N55: 2270 | O55: solid | P55: 7.31 | Q55: 1.96 | R55: 7.3438 | S55: 14.632 | T55: 30.502 | U55: 709 | V55: 1412 | W55: 2943 | X55: 1.11 | Y55: 107 | Z55: +4,2 | AA55: +4,2 | AB55: [Kr] 5s2 4d10 5p2 | AC55: [Kr] 5s2 4d10 5p2 | AD55: 1.72 | AE55: 0.71 | AF55: 1.41 | AI55: 140.5 | AM55: 16.3 | AN55: tetragonal | AO55: 7440-31-5 | AP55: 0.0917 | AQ55: 0.227 | AR55: 7.029 | AS55: 295.8 | AT55: 66.6 | AU55: 2.3 | AV55: 4e-06 | AW55: 2e-05 | AY55: Cassiterite (oxide) | AZ55: silvery-white | BA55: resists corrosion;2 forms | BB55: distorted diamond | BC55: 1.65 | BD55: solder, pewter, bronze | BE55: mild, w/ht, =>SnO2 | BF55: none | BG55: none | BH55: mild, =>SnO2, NOx | BI55: mild, =>H2, [Sn(OH)6] 2- | BJ55: SnH4 Sn2H6 | BK55: SnO SnO2 | BL55: SnCl2 SnCl4 | BM55: 7.7 | BN55: 302 | BP55: 0.582 | BQ55: 0.3 | BR55: 8 | BS55: 0.83 | BU55: no
A56: 51 | B56: Sb | C56: 15 | D56: V A | E56: 5 | F56: antimony | G56: Antimon | H56: antimoine | I56: antimonio | J56: antimonio | K56: 122 | L56: 121.76 | M56: 631 | N56: 1950 | O56: solid | P56: 6.69 | Q56: 2.05 | R56: 8.64 | S56: 16.53 | T56: 25.3 | U56: 834 | V56: 1595 | W56: 2441 | X56: 1.07 | Y56: 103 | Z56: +3,5 | AA56: +3,5 | AB56: [Kr] 5s2 4d10 5p3 | AC56: [Kr] 5s2 4d10 5p3 | AD56: 1.53 | AE56: 0.76 | AF56: 1.4 | AI56: 140 | AL56: 90 | AM56: 18.23 | AN56: rhombohedral | AO56: 7440-36-0 | AP56: 0.0288 | AQ56: 0.21 | AR56: 19.87 | AS56: 77.14 | AT56: 24.3 | AU56: 0.2 | AV56: 0.00024 | AY56: Stibnite (sulfide) | AZ56: bluish-white | BA56: brittle; 5 forms | BB56: rhombohedral | BC56: 3.15 | BD56: Pb alloy(battery), dyeing | BE56: mild, w/ht, =>Sb2Ox x=3-5 | BF56: none | BG56: none | BH56: mild, =>Sb2O5 | BI56: none | BJ56: SbH3 | BK56: Sb2O3 Sb2O4 Sb2O5 | BL56: SbCl3 SbCl5 | BM56: 6.6 | BN56: 262 | BO56: 1600 | BP56: -0.510 | BQ56: -0.7 | BR56: 4.5 | BS56: 0.44 | BU56: no
A57: 52 | B57: Te | C57: 16 | D57: VI A | E57: 5 | F57: tellurium | G57: Tellur | H57: tellure | I57: teluro | J57: tellurio | K57: 128 | L57: 127.6 | M57: 449.5 | N57: 989.8 | O57: solid | P57: 6.24 | Q57: 2.1 | R57: 9.0096 | S57: 18.6 | T57: 27.96 | U57: 869 | V57: 1795 | W57: 2698 | X57: 1.97 | Y57: 190 | Z57: +4,6,−2 | AA57: −2 | AB57: [Kr] 5s2 4d10 5p4 | AC57: [Kr] 5s2 4d10 5p4 | AD57: 1.43 | AE57: 0.97 | AF57: 1.36 | AG57: 207 | AI57: 142 | AM57: 20.5 | AN57: hexagonal | AO57: 13494-80-9 | AP57: 2e-06 | AQ57: 0.2 | AR57: 17.49 | AS57: 52.55 | AT57: 2.35 | AU57: 0.001 | AY57: Zn/Pb smelting by-product | AZ57: silvery | BA57: semimetal | BB57: parallel chains | BC57: 2.3 | BD57: semiconductors, steel | BE57: mild, w/ht, =>TeO2 | BF57: none | BG57: none | BH57: mild, =>Te(IV) | BJ57: H2Te | BK57: TeO2 TeO3 | BL57: Te2Cl Te3Cl2 Te4Cl16 | BM57: 5.5 | BN57: 197 | BO57: 1783 | BP57: 0.682 | BQ57: -3 | BR57: 24 | BT57: yes | BU57: no
A58: 53 | B58: I | C58: 17 | D58: VII A | E58: 5 | F58: iodine | G58: Iod (Jod) | H58: iode | I58: yodo | J58: iodio | K58: 127 | L58: 126.90447 | M58: 113.5 | N58: 184 | O58: solid | P58: 4.93 | Q58: 2.66 | R58: 10.4513 | S58: 19.131 | T58: 33 | U58: 1008 | V58: 1846 | W58: 3184 | X58: 3.06 | Y58: 295 | Z58: −1,+5,7 | AA58: −1 | AB58: [Kr] 5s2 4d10 5p5 | AC58: [Kr] 5s2 4d10 5p5 | AD58: 1.32 | AE58: 2.2 | AF58: 1.33 | AH58: 206 | AI58: 133 | AM58: 25.74 | AN58: orthorhombic | AO58: 7553-56-2 | AP58: 8e-16 | AQ58: 0.214 | AR58: 7.824 | AS58: 20.752 | AT58: 0.449 | AU58: 0.45 | AV58: 0.06 | AW58: 2e-05 | AY58: Brines, Chilean nitrate (misc) | AZ58: bluish-black | BA58: diatomic | BB58: layers of I2 | BD58: nutrient, antiseptic | BE58: none | BF58: none, dissolves slightly | BG58: none | BH58: mild, =>HIO3 | BI58: mild, =>OI-, I- | BJ58: HI | BK58: I2O5 I4O9 I2O4 | BL58: ICl ICl3 | BM58: 5 | BN58: 107 | BO58: 1811 | BP58: -0.046 | BQ58: -0.3 | BR58: 8.3 | BT58: yes | BU58: no
A59: 54 | B59: Xe | C59: 18 | D59: VIII A | E59: 5 | F59: xenon | G59: Xenon | H59: xénon | I59: xenón | J59: xeno | K59: 131 | L59: 131.293 | M59: -111.8 | N59: -107.1 | O59: gaseous | P59: 0.00589 | Q59: 2.6 | R59: 12.1299 | S59: 21.21 | T59: 32.1 | U59: 1170 | V59: 2046 | W59: 3097 | X59: <0 | Y59: <0 | Z59: 0 | AB59: [Kr] 5s2 4d10 5p6 | AC59: [Kr] 5s2 4d10 5p6 | AD59: 1.24 | AF59: 1.31 | AI59: 131 | AM59: 37.3 | AN59: cubic: face centered | AO59: 7440-63-3 | AQ59: 0.158 | AR59: 2.297 | AS59: 12.636 | AT59: 0.00569 | AU59: 3e-05 | AV59: 5e-05 | AY59: Air | AZ59: colorless | BA59: unreactive | BB59: fcc: face-centered cubic | BD59: UV-laser, hi intens lamps | BE59: none | BF59: none | BG59: none | BH59: none | BI59: none | BJ59: none | BK59: XeO3 XeO4 | BL59: none | BM59: 4 | BN59: 0 | BO59: 1898 | BP59: 0.672 | BQ59: -4.5 | BR59: 120 | BT59: no | BU59: no
A60: 55 | B60: Cs | C60: 1 | D60: I A | E60: 6 | F60: cesium | G60: Zäsium | H60: césium | I60: cesio | J60: cesio | K60: 133 | L60: 132.9054519 | M60: 28.4 | N60: 669 | O60: solid | P60: 1.87 | Q60: 0.79 | R60: 3.8939 | S60: 25.1 | U60: 376 | V60: 2422 | X60: 0.47 | Y60: 45 | Z60: +1 | AA60: +1 | AB60: =CONCATENATE("[",B$59,"] ",E60,"s",MIN(A60-A$59,2)) -> [Xe] 6s1 | AC60: [Xe] 6s1 | AD60: 3.34 | AE60: 1.74 | AF60: 2.35 | AI60: 265 | AJ60: 181 | AM60: 71.07 | AN60: cubic: body centered | AO60: 7440-46-2 | AP60: 0.0489 | AQ60: 0.24 | AR60: 2.092 | AS60: 67.74 | AT60: 59 | AU60: 3 | AV60: 0.0003 | AW60: 2e-06 | AY60: Li extractn by-product | AZ60: yellow/silvery | BA60: softest metal | BB60: bcc: body-centered cubic | BC60: 0.2 | BD60: photocells, IR lamps | BE60: vigorous, =>CsO2 | BF60: vigorous, =>H2, CsOH | BG60: vigorous, =>H2, CsCl | BH60: vigorous, =>CsNO3 | BI60: vigorous, =>H2, CsOH | BJ60: CsH | BK60: Cs2O | BL60: CsCl | BM60: 59.6 | BN60: 79 | BO60: 1860 | BP60: -0.429 | BQ60: 0 | BR60: 1100
A61: 56 | B61: Ba | C61: 2 | D61: II A | E61: 6 | F61: barium | G61: Barium | H61: baryum | I61: bario | J61: bario | K61: 137 | L61: 137.327 | M61: 725 | N61: 1640 | O61: solid | P61: 3.5 | Q61: 0.89 | R61: 5.2117 | S61: 10.004 | U61: 503 | V61: 965 | X61: 0.15 | Y61: 14 | Z61: +2 | AA61: +2 | AB61: =CONCATENATE("[",B$59,"] ",E61,"s",MIN(A61-A$59,2)) -> [Xe] 6s2 | AC61: [Xe] 6s2 | AD61: 2.78 | AE61: 1.42 | AF61: 1.98 | AI61: 222 | AK61: 149 | AM61: 39.24 | AN61: cubic: body centered | AO61: 7440-39-3 | AP61: 0.03 | AQ61: 0.204 | AR61: 7.75 | AS61: 142 | AT61: 18.4 | AU61: 425 | AV61: 0.013 | AW61: 3e-05 | AY61: Barite (sulfate) | AZ61: silvery-white | BA61: soft | BB61: bcc: body-centered cubic | BD61: X-ray imaging agnt(BaSO4) | BE61: vigorous,wt/ht=>BaO,Ba2N3 | BF61: vigorous, =>H2, Ba(OH)2 | BG61: vigorous, =>H2, BaCl2 | BH61: mild, =>Ba(NO3)2 | BI61: passivated | BJ61: BaH2 | BK61: BaO | BL61: BaCl2 | BM61: 39.7 | BN61: 180 | BO61: 1808 | BP61: 0.652 | BQ61: 2.6 | BR61: 55 | BU61: no
A62: 57 | B62: La | C62: lanthanides | D62: III B | E62: 6 | F62: lanthanum | G62: Lanthan | H62: lanthane | I62: lantano | J62: lantanio | K62: 139 | L62: 138.90547 | M62: 920 | N62: 3454 | O62: solid | P62: 6.15 | Q62: 1.1 | R62: 5.577 | S62: 11.059 | T62: 19.174 | U62: 538 | V62: 1067 | W62: 1850 | X62: 0.50 | Y62: 48 | Z62: +3 | AA62: +3 | AB62: =CONCATENATE("[",B$59,"] ",E62,"s",MIN(A62-A$59,2)," ",E62-2,"f",MIN(A62-A$61,14)) -> [Xe] 6s2 4f1 | AC62: [Xe] 6s2 4f1 | AD62: 2.74 | AE62: 1.16 | AF62: 1.69 | AI62: 187 | AL62: 117.2 | AM62: 20.73 | AN62: hexagonal | AO62: 7439-91-0 | AP62: 0.0126 | AQ62: 0.19 | AR62: 6.2 | AS62: 414 | AT62: 13.5 | AU62: 39 | AV62: 3.4e-06 | AY62: Monazite(phosphate),bastnaesite | AZ62: silvery-white | BA62: soft, malleable | BB62: cp: close packed (ABCB) | BD62: lighter flints, CRTs | BE62: vigorous, w/ht =>La2O3 | BF62: mild, =>H2, La(OH)3 | BG62: mild, =>H2, LaCl3 | BH62: mild, =>La(NO3)3 | BJ62: LaH2 LaH3 | BK62: La2O3 | BL62: LaCl3 | BM62: 31.1 | BN62: 423 | BO62: 1839 | BP62: -0.351 | BQ62: 1.5 | BR62: 64
A63: 58 | B63: Ce | C63: lanthanides | D63: lanthanides | E63: 6 | F63: cerium | G63: Zer | H63: cérium | I63: cerio | J63: cerio | K63: 140 | L63: 140.116 | M63: 798 | N63: 3257 | O63: solid | P63: 6.66 | Q63: 1.12 | R63: 5.5387 | S63: 10.851 | T63: 20.2 | U63: 534 | V63: 1047 | W63: 1949 | Z63: +3,4 | AA63: +3,4 | AB63: =CONCATENATE("[",B$59,"] ",E63,"s",MIN(A63-A$59,2)," ",E63-2,"f",MIN(A63-A$61,14)) -> [Xe] 6s2 4f2 | AC63: [Xe] 6s2 4f2 | AD63: 2.7 | AE63: 1.14 | AF63: 1.65 | AI63: 182 | AL63: 115 | AM63: 20.67 | AN63: cubic: face centered | AO63: 7440-45-1 | AP63: 0.0115 | AQ63: 0.19 | AR63: 5.46 | AS63: 414 | AT63: 11.4 | AU63: 66.5 | AV63: 1.2e-06 | AY63: Monazite(phosphate),bastnaesite | AZ63: silvery-white | BA63: malleable | BB63: fcc: face-centered cubic | BD63: self-cleaning ovens(CeO2) | BE63: vigorous, w/ht =>CeO2 | BF63: mild, =>H2, Ce(OH)3 | BG63: vigorous, =>H2, CeCl3 | BH63: mild, =>Ce(NO3)3 | BJ63: CeH2 CeH3 | BK63: Ce2O3 CeO2 | BL63: CeCl3 | BM63: 29.6 | BN63: 419 | BO63: 1803 | BP63: 0.055 | BQ63: 1.8 | BR63: 57
A64: 59 | B64: Pr | C64: lanthanides | D64: lanthanides | E64: 6 | F64: praseodymium | G64: Praseodym | H64: praséodyme | I64: prosedimio | J64: praseodimio | K64: 141 | L64: 140.90765 | M64: 931 | N64: 3017 | O64: solid | P64: 6.77 | Q64: 1.13 | R64: 5.464 | S64: 10.551 | T64: 21.62 | U64: 527 | V64: 1018 | W64: 2086 | Z64: +3,4 | AA64: +3,4 | AB64: [Xe] 6s2 4f3 | AC64: [Xe] 6s2 4f3 | AD64: 2.67 | AE64: 1.13 | AF64: 1.65 | AI64: 182 | AL64: 113 | AM64: 20.8 | AN64: hexagonal | AO64: 7440-10-0 | AP64: 0.0148 | AQ64: 0.19 | AR64: 6.89 | AS64: 296.8 | AT64: 12.5 | AU64: 9.2 | AV64: 6.4e-07 | AY64: Monazite(phosphate),bastnaesite | AZ64: silvery-white | BA64: soft | BB64: cp: close packed (ABCB) | BD64: alloys, Welder's mask | BE64: vigorous, =>Pr6O11 approx | BF64: mild, =>H2, Pr(OH)3 | BG64: mild, =>H2, PrCl3 | BH64: mild, =>Pr(NO3)3 | BJ64: PrH2 PrH3 | BK64: PrO2 Pr6O11 | BL64: PrCl3 | BM64: 28.2 | BN64: 356 | BO64: 1885 | BP64: -0.778 | BQ64: 0.9 | BR64: 170
A65: 60 | B65: Nd | C65: lanthanides | D65: lanthanides | E65: 6 | F65: neodymium | G65: Neodym | H65: néodyme | I65: neodimio | J65: neodimio | K65: 144 | L65: 144.242 | M65: 1016 | N65: 3127 | O65: solid | P65: 7 | Q65: 1.14 | R65: 5.525 | S65: 10.727 | T65: 22.076 | U65: 533 | V65: 1035 | W65: 2130 | Z65: +3 | AA65: +3 | AB65: [Xe] 6s2 4f4 | AC65: [Xe] 6s2 4f4 | AD65: 2.64 | AF65: 1.64 | AI65: 181 | AL65: 112.3 | AM65: 20.6 | AN65: hexagonal | AO65: 7440-00-8 | AP65: 0.0157 | AQ65: 0.19 | AR65: 7.14 | AS65: 273 | AT65: 16.5 | AU65: 41.5 | AV65: 2.8e-06 | AY65: Monazite(phosphate),bastnaesite | AZ65: silvery-white | BB65: cp: close packed (ABCB) | BD65: alloys, Welder's mask | BE65: vigorous, w/ht =>Nd2O3 | BF65: mild, =>H2, Nd(OH)3 | BG65: mild, =>H2, NdCl3 | BH65: mild, =>Nd(NO3)3 | BJ65: NdH2 NdH3 | BK65: Nd2O3 | BL65: NdCl2 NdCl3 | BM65: 31.4 | BN65: 328 | BO65: 1885 | BP65: -0.082 | BQ65: 1.4 | BR65: 110
A66: 61 | B66: Pm | C66: lanthanides | D66: lanthanides | E66: 6 | F66: promethium | G66: Promethium | H66: prométhium | I66: promecio | J66: promezio | K66: =TEXT(ROUND(L66,1),"0") -> 145 | L66: 145 | M66: 1042 | N66: 3000 | O66: solid | P66: 7.26 | R66: 5.55 | S66: 10.903 | T66: 22.283 | U66: 535 | V66: 1052 | W66: 2150 | Z66: +3 | AA66: +3 | AB66: [Xe] 6s2 4f5 | AC66: [Xe] 6s2 4f5 | AD66: 2.62 | AE66: 1.07 | AF66: 1.63 | AI66: 183 | AL66: 111 | AM66: 22.39 | AN66: hexagonal | AO66: 7440-12-2 | AQ66: 0.18 | AT66: 17.9 | AY66: Synthetic | AZ66: silvery-white | BA66: Radioactive | BB66: cp: close packed (ABCB) | BD66: nuclear battery | BE66: vigorous, =>Pm2O3 | BF66: mild, =>H2, Pm(OH)3 | BG66: mild, =>H2, PmCl3 | BH66: mild, =>Pm(NO3)3 | BK66: Pm2O3 | BM66: 30.1 | BN66: 301 | BO66: 1945 | BQ66: -19.3
A67: 62 | B67: Sm | C67: lanthanides | D67: lanthanides | E67: 6 | F67: samarium | G67: Samarium | H67: samarium | I67: samario | J67: samario | K67: =TEXT(ROUND(L67,1),"0.0") -> 150 | L67: 150.36 | M67: 1074 | N67: 1794 | O67: solid | P67: 7.52 | Q67: 1.17 | R67: 5.6437 | S67: 11.069 | T67: 23.423 | U67: 545 | V67: 1068 | W67: 2260 | Z67: +3,2 | AA67: +3,2 | AB67: [Xe] 6s2 4f6 | AC67: [Xe] 6s2 4f6 | AD67: 2.59 | AE67: 1.08 | AF67: 1.62 | AI67: 180 | AL67: 109.8 | AM67: 19.95 | AN67: rhombohedral | AO67: 7440-19-9 | AP67: 0.00956 | AQ67: 0.2 | AR67: 8.63 | AS67: 166.4 | AT67: 13.3 | AU67: 7.05 | AV67: 4.5e-07 | AY67: Monazite(phosphate),bastnaesite | AZ67: silvery-white | BB67: cp: cls pkd (ABCBCACAB) | BD67: alloys, headphones | BE67: vigorous, =>Sm2O3 | BF67: mild, =>H2, Sm(OH)3 | BG67: mild, =>H2, SmCl3 | BH67: mild, =>Sm(NO3)3 | BJ67: SmH2 SmH3 | BK67: Sm2O3 | BL67: SmCl2 SmCl3 | BM67: 28.8 | BN67: 207 | BO67: 1880 | BP67: -0.588 | BQ67: 0.8 | BR67: 130
A68: 63 | B68: Eu | C68: lanthanides | D68: lanthanides | E68: 6 | F68: europium | G68: Europium | H68: europium | I68: europio | J68: europio | K68: 152 | L68: 151.964 | M68: 822 | N68: 1529 | O68: solid | P68: 5.24 | R68: 5.6704 | S68: 11.245 | T68: 24.926 | U68: 547 | V68: 1085 | W68: 2405 | Z68: +3,2 | AA68: +3,2 | AB68: [Xe] 6s2 4f7 | AC68: [Xe] 6s2 4f7 | AD68: 2.56 | AE68: 1.07 | AF68: 1.85 | AI68: 208 | AK68: 131 | AL68: 108.7 | AM68: 28.9 | AN68: cubic: body centered | AO68: 7440-53-3 | AP68: 0.00112 | AQ68: 0.18 | AR68: 9.21 | AS68: 143.5 | AT68: 13.9 | AU68: 2 | AV68: 1.3e-07 | AY68: Monazite(phosphate),bastnaesite | AZ68: silvery-white | BA68: hard | BB68: bcc: body-centered cubic | BD68: alloys, color TV phosphor | BE68: vigorous, =>Eu2O3 | BF68: mild, =>H2, Eu(OH)3 | BG68: mild, =>H2, EuCl3 | BH68: mild, =>Eu(NO3)3 | BJ68: EuH2 | BK68: Eu2O3 | BL68: EuCl2 EuCl3 | BM68: 27.7 | BN68: 178 | BO68: 1901 | BP68: -1.012 | BQ68: 0.1 | BR68: 3600
A69: 64 | B69: Gd | C69: lanthanides | D69: lanthanides | E69: 6 | F69: gadolinium | G69: Gadolinium | H69: gadolinium | I69: gadolineo | J69: gadolinio | K69: 157 | L69: 157.25 | M69: 1313 | N69: 3273 | O69: solid | P69: 7.9 | Q69: 1.2 | R69: 6.15 | S69: 12.095 | T69: 20.635 | U69: 593 | V69: 1167 | W69: 1991 | Z69: +3 | AA69: +3 | AB69: [Xe] 6s2 4f8 | AC69: [Xe] 6s2 4f8 | AD69: 2.54 | AE69: 1.05 | AF69: 1.61 | AI69: 180 | AL69: 107.8 | AM69: 19.9 | AN69: hexagonal | AO69: 7440-54-2 | AP69: 0.00736 | AQ69: 0.23 | AR69: 10.05 | AS69: 359.4 | AT69: 10.6 | AU69: 6.2 | AV69: 7e-07 | AY69: Monazite(phosphate),bastnaesite | AZ69: silvery-white | BB69: hcp: hexagonal close pkd | BD69: alloys, CD disk | BE69: vigorous, =>Gd2O3 | BF69: mild, =>H2, Gd(OH)3 | BG69: mild, =>H2, GdCl3 | BH69: mild, =>Gd(NO3)3 | BJ69: GdH2 GdH3 | BK69: Gd2O3 | BL69: GdCl3 | BM69: 23.5 | BN69: 398 | BO69: 1880 | BP69: -0.481 | BQ69: 0.7 | BR69: 191
A70: 65 | B70: Tb | C70: lanthanides | D70: lanthanides | E70: 6 | F70: terbium | G70: Terbium | H70: terbium | I70: terbio | J70: terbio | K70: 159 | L70: 158.92535 | M70: 1365 | N70: 3230 | O70: solid | P70: 8.23 | R70: 5.8939 | S70: 11.525 | T70: 21.91 | U70: 569 | V70: 1112 | W70: 2114 | Z70: +3,4 | AA70: +3,4 | AB70: [Xe] 6s2 4f9 | AC70: [Xe] 6s2 4f9 | AD70: 2.51 | AE70: 1.18 | AF70: 1.59 | AI70: 177 | AL70: 106.3 | AM70: 19.2 | AN70: hexagonal | AO70: 7440-27-9 | AP70: 0.00889 | AQ70: 0.18 | AR70: 10.8 | AS70: 330.9 | AT70: 11.1 | AU70: 1.2 | AV70: 1.4e-07 | AY70: Monazite(phosphate),bastnaesite | AZ70: silvery-white | BA70: soft | BB70: hcp: hexagonal close pkd | BD70: alloys | BE70: vigorous, =>Tb4O7 (approx.) | BF70: mild, =>H2, Tb(OH)3 | BG70: mild, =>H2, TbCl3 | BH70: mild, =>Tb(NO3)3 | BJ70: TbH2 TbH3 | BK70: TbO2 Tb4O7 | BL70: TbCl3 | BM70: 25.5 | BN70: 389 | BO70: 1843 | BP70: -1.220 | BQ70: 0 | BR70: 1800
A71: 66 | B71: Dy | C71: lanthanides | D71: lanthanides | E71: 6 | F71: dysprosium | G71: Dysprosium | H71: dysprosium | I71: disprosio | J71: disprosio | K71: 163 | L71: 162.5 | M71: 1412 | N71: 2567 | O71: solid | P71: 8.55 | Q71: 1.22 | R71: 5.9389 | S71: 11.67 | T71: 22.802 | U71: =IF(COUNT(R71)=1,ROUND(R71*96.48538,0),"") -> 573 | V71: 1126 | W71: 2200 | Y71: =IF(COUNT(X71)=1,ROUND(X71*96.48538,0),IF(COUNTA(X71)=1,X71,"")) ->  | Z71: +3 | AA71: +3 | AB71: [Xe] 6s2 4f10 | AC71: =AB71 -> [Xe] 6s2 4f10 | AD71: 2.49 | AE71: 1.03 | AF71: 1.59 | AI71: 178 | AK71: 121 | AL71: 105.2 | AM71: 19 | AN71: hexagonal | AO71: 7429-91-6 | AP71: 0.0108 | AQ71: 0.17 | AR71: 11.06 | AS71: 230.1 | AT71: 10.7 | AU71: 5.2 | AV71: 9.1e-07 | AY71: Monazite(phosphate),bastnaesite | AZ71: silvery-white | BA71: neutron absorber | BB71: hcp: hexagonal close pkd | BD71: alloys, CD disk | BE71: vigorous, =>Dy2O3 | BF71: mild, =>H2, Dy(OH)3 | BG71: mild, =>H2, DyCl3 | BH71: mild, =>Dy(NO3)3 | BJ71: DyH2 DyH3 | BK71: Dy2O3 | BL71: DyCl2 DyCl3 | BM71: 24.5 | BN71: 291 | BO71: 1886 | BP71: -0.404 | BQ71: 0.5 | BR71: 210
A72: 67 | B72: Ho | C72: lanthanides | D72: lanthanides | E72: 6 | F72: holmium | G72: Holmium | H72: holmium | I72: holmio | J72: olmio | K72: 165 | L72: 164.93032 | M72: 1474 | N72: 2700 | O72: solid | P72: 8.8 | Q72: 1.23 | R72: 6.0216 | S72: 11.805 | T72: 22.843 | U72: 581 | V72: 1139 | W72: 2204 | Z72: +3 | AA72: +3 | AB72: [Xe] 6s2 4f11 | AC72: [Xe] 6s2 4f11 | AD72: 2.47 | AF72: 1.58 | AI72: 176 | AL72: 104.1 | AM72: 18.8 | AN72: hexagonal | AO72: 7440-60-0 | AP72: 0.0124 | AQ72: 0.16 | AR72: 12.2 | AS72: 241 | AT72: 16.2 | AU72: 1.3 | AV72: 2.2e-07 | AY72: Monazite(phosphate),bastnaesite | AZ72: silvery-white | BB72: hcp: hexagonal close pkd | BD72: alloys | BE72: vigorous, =>Ho2O3 | BF72: mild, =>H2, Ho(OH)3 | BG72: mild, =>H2, HoCl3 | BH72: mild, =>Ho(NO3)3 | BJ72: HoH2 HoH3 | BK72: Ho2O3 | BL72: HoCl3 | BM72: 23.6 | BN72: 301 | BO72: 1879 | BP72: -1.051 | BQ72: 0.1 | BR72: 740
A73: 68 | B73: Er | C73: lanthanides | D73: lanthanides | E73: 6 | F73: erbium | G73: Erbium | H73: erbium | I73: erbio | J73: erbio | K73: 167 | L73: 167.259 | M73: 1529 | N73: 2868 | O73: solid | P73: 9.07 | Q73: 1.24 | R73: 6.1078 | S73: 11.929 | T73: 22.739 | U73: 589 | V73: 1151 | W73: 2194 | Z73: +3 | AA73: +3 | AB73: [Xe] 6s2 4f12 | AC73: [Xe] 6s2 4f12 | AD73: 2.45 | AE73: 1 | AF73: 1.57 | AI73: 176 | AL73: 103 | AM73: 18.4 | AN73: hexagonal | AO73: 7440-52-0 | AP73: 0.0117 | AQ73: 0.17 | AR73: 19.9 | AS73: 261 | AT73: 14.3 | AU73: 3.5 | AV73: 8.7e-07 | AY73: Monazite(phosphate),bastnaesite | AZ73: silvery-white | BB73: hcp: hexagonal close pkd | BD73: alloys, photogr. filter | BE73: vigorous, =>Er2O3 | BF73: mild, =>H2, Er(OH)3 | BG73: mild, =>H2, ErCl3 | BH73: mild, =>Er(NO3)3 | BJ73: ErH2 ErH3 | BK73: Er2O3 | BL73: ErCl3 | BM73: 22.7 | BN73: 317 | BO73: 1843 | BP73: -0.601 | BQ73: 0.4 | BR73: 270
A74: 69 | B74: Tm | C74: lanthanides | D74: lanthanides | E74: 6 | F74: thulium | G74: Thulium | H74: thulium | I74: tulio | J74: tulio | K74: 169 | L74: 168.93421 | M74: 1545 | N74: 1950 | O74: solid | P74: 9.32 | Q74: 1.25 | R74: 6.1843 | S74: 12.054 | T74: 26.367 | U74: 597 | V74: 1163 | W74: 2544 | Z74: +3,2 | AA74: +3,2 | AB74: [Xe] 6s2 4f13 | AC74: [Xe] 6s2 4f13 | AD74: 2.42 | AE74: 1.09 | AF74: 1.56 | AI74: 176 | AK74: 117 | AL74: 102 | AM74: 18.1 | AN74: hexagonal | AO74: 7440-30-4 | AP74: 0.015 | AQ74: 0.16 | AR74: 16.84 | AS74: 191 | AT74: 16.8 | AU74: 0.52 | AV74: 1.7e-07 | AY74: Monazite(phosphate),bastnaesite | AZ74: silvery-white | BA74: soft | BB74: hcp: hexagonal close pkd | BD74: alloys | BE74: vigorous, =>Tm2O3 | BF74: mild, =>H2, Tm(OH)3 | BG74: mild, =>H2, TmCl3 | BH74: mild, =>Tm(NO3)3 | BJ74: TmH2 TmH3 | BK74: Tm2O3 | BL74: TmCl2 TmCl3 | BM74: 21.8 | BN74: 232 | BO74: 1879 | BP74: -1.423 | BQ74: -0.3 | BR74: 4100
A75: 70 | B75: Yb | C75: lanthanides | D75: lanthanides | E75: 6 | F75: ytterbium | G75: Ytterbium | H75: ytterbium | I75: iterbio | J75: itterbio | K75: 173 | L75: 173.04 | M75: 819 | N75: 1196 | O75: solid | P75: 6.97 | R75: 6.2542 | S75: 12.188 | T75: 25.03 | U75: 603 | V75: 1176 | W75: 2415 | Z75: +3,2 | AA75: +3,2 | AB75: [Xe] 6s2 4f14 | AC75: [Xe] 6s2 4f14 | AD75: 2.4 | AE75: 0.99 | AF75: 1.74 | AI75: 193 | AK75: 116 | AL75: 100.8 | AM75: 24.79 | AN75: cubic: face centered | AO75: 7440-64-4 | AP75: 0.0351 | AQ75: 0.15 | AR75: 7.66 | AS75: 128.9 | AT75: 34.9 | AU75: 3.2 | AV75: 8.2e-07 | AY75: Monazite(phosphate),bastnaesite | AZ75: silvery-white | BA75: soft | BB75: fcc: face-centered cubic | BD75: alloys | BE75: vigorous, =>Yb2O3 | BF75: mild, =>H2, Yb(OH)3 | BG75: mild, =>H2, YbCl3 | BH75: mild, =>Yb(NO3)3 | BJ75: YbH2 Yb2H5 | BK75: Yb2O3 | BL75: YbCl2 YbCl3 | BM75: 21 | BN75: 152 | BO75: 1879 | BP75: -0.606 | BQ75: 0.5 | BR75: 530
A76: 71 | B76: Lu | C76: 3 | D76: lanthanides | E76: 6 | F76: lutetium | G76: Lutetium | H76: lutécium | I76: lutecio | J76: lutezio | K76: 175 | L76: 174.967 | M76: 1663 | N76: 3402 | O76: solid | P76: 9.84 | Q76: 1.27 | R76: 5.4259 | S76: 13.888 | T76: 20.957 | U76: 524 | V76: 1340 | W76: 2022 | Z76: +3 | AA76: +3 | AB76: =CONCATENATE("[",B$59,"] ",E76,"s",MIN(A76-A$59,2)," ",E76-2,"f",MIN(A76-A$61,14)," ",E76-1,"d",MIN(A76-A$75,10)) -> [Xe] 6s2 4f14 5d1 | AC76: [Xe] 6s2 4f14 5d1 | AD76: 2.25 | AE76: 0.98 | AF76: 1.56 | AI76: 174 | AL76: 100.1 | AM76: 17.78 | AN76: hexagonal | AO76: 7439-94-3 | AP76: 0.0185 | AQ76: 0.15 | AR76: 18.6 | AS76: 355.9 | AT76: 16.4 | AU76: 0.8 | AV76: 1.5e-07 | AY76: Monazite(phosphate),bastnaesite | AZ76: silvery-white | BB76: hcp: hexagonal close pkd | BD76: alloys | BE76: vigorous, =>Lu2O3 | BF76: mild, =>H2, Lu(OH)3 | BG76: mild, =>H2, LuCl3 | BH76: mild, =>Lu(NO3)3 | BJ76: LuH2 LuH3 | BK76: Lu2O3 | BL76: LuCl3 | BM76: 21.9 | BO76: 1907 | BP76: -1.435 | BQ76: -0.3 | BR76: 6900
A77: 72 | B77: Hf | C77: 4 | D77: IV B | E77: 6 | F77: hafnium | G77: Hafnium | H77: hafnium | I77: hafnio | J77: hafnio | K77: 179 | L77: 178.49 | M77: 2227 | N77: 4600 | O77: solid | P77: 13.3 | Q77: 1.3 | R77: 6.8251 | S77: 14.925 | T77: 23.32 | U77: 659 | V77: 1440 | W77: 2250 | X77: 0.00 | Y77: 0 | Z77: +4 | AA77: +4 | AB77: [Xe] 6s2 4f14 5d2 | AC77: [Xe] 6s2 4f14 5d2 | AD77: 2.16 | AE77: 0.83 | AF77: 1.44 | AI77: 159 | AM77: 13.6 | AN77: hexagonal | AO77: 7440-58-6 | AP77: 0.0312 | AQ77: 0.14 | AR77: 24.06 | AS77: 575 | AT77: 23 | AU77: 3 | AV77: 7e-06 | AY77: Zircon (silicate) | AZ77: silvery | BA77: hard | BB77: hcp: hexagonal close pkd | BD77: nuclear control rods | BE77: mild, w/ht, =>HfO2 | BF77: none | BG77: none | BH77: passivated | BI77: none | BJ77: HfH2 | BK77: HfO2 | BL77: HfCl3 HfCl4 | BM77: 16.2 | BN77: 619 | BO77: 1923 | BP77: -0.812 | BQ77: 0.4 | BR77: 120 | BU77: no
A78: 73 | B78: Ta | C78: 5 | D78: V B | E78: 6 | F78: tantalum | G78: Tantal | H78: tantale | I78: tántalo | J78: tantalio | K78: 181 | L78: 180.94788 | M78: 2996 | N78: 5425 | O78: solid | P78: 16.6 | Q78: 1.5 | R78: 7.89 | U78: 761 | X78: 0.32 | Y78: 31 | Z78: +5 | AA78: +5 | AB78: [Xe] 6s2 4f14 5d3 | AC78: [Xe] 6s2 4f14 5d3 | AD78: 2.09 | AE78: 0.64 | AF78: 1.34 | AI78: 146 | AL78: 86 | AM78: 10.9 | AN78: cubic: body centered | AO78: 7440-25-7 | AP78: 0.0761 | AQ78: 0.14 | AR78: 31.6 | AS78: 743 | AT78: 57.5 | AU78: 2 | AV78: 2e-06 | AY78: Tantalite (oxide) | AZ78: gray | BA78: hard, inert at <100 deg.C | BB78: bcc: body-centered cubic | BD78: surg. implants,heat exch. | BE78: none | BF78: none | BG78: none | BH78: none | BI78: none | BJ78: TaH | BK78: TaO2 Ta2O5 | BL78: TaCl3 TaCl4 TaCl5 | BM78: 13.1 | BN78: 782 | BO78: 1802 | BP78: -1.684 | BQ78: 0.3 | BR78: 120 | BU78: no
A79: 74 | B79: W | C79: 6 | D79: VI B | E79: 6 | F79: tungsten | G79: Wolfram | H79: tungstène | I79: wolframio or tungsteno | J79: tungsteno | K79: 184 | L79: 183.84 | M79: 3410 | N79: 5660 | O79: solid | P79: 19.3 | Q79: 2.36 | R79: 7.98 | U79: 770 | X79: 0.86 | Y79: 83 | Z79: +6,4 | AA79: +6,4 | AB79: [Xe] 6s2 4f14 5d4 | AC79: [Xe] 6s2 4f14 5d4 | AD79: 2.02 | AE79: 0.6 | AF79: 1.3 | AI79: 139 | AM79: 9.53 | AN79: cubic: body centered | AO79: 7440-33-7 | AP79: 0.189 | AQ79: 0.13 | AR79: 35.4 | AS79: 824 | AT79: 174 | AU79: 1.25 | AV79: 0.0001 | AY79: Scheelite,wolframite(oxide) | AZ79: bluish-gray | BA79: highest melting metal | BB79: bcc: body-centered cubic | BD79: WC drill bits, bulb wire | BE79: none, w/ht =>WO3 | BF79: none | BG79: none | BK79: WO2 WO3 | BL79: WClx [x=2-6] | BM79: 11.1 | BN79: 849 | BO79: 1783 | BP79: -0.876 | BQ79: 0.2 | BR79: 11 | BU79: no
A80: 75 | B80: Re | C80: 7 | D80: VII B | E80: 6 | F80: rhenium | G80: Rhenium | H80: rhénium | I80: renio | J80: renio | K80: 186 | L80: 186.207 | M80: 3180 | N80: 5600 | O80: solid | P80: 21 | Q80: 1.9 | R80: 7.88 | U80: 760 | X80: 0.15 | Y80: 14 | Z80: +7,4,6 | AA80: +7,4,6 | AB80: [Xe] 6s2 4f14 5d5 | AC80: [Xe] 6s2 4f14 5d5 | AD80: 1.97 | AE80: 0.53 | AF80: 1.28 | AI80: 137 | AM80: 8.85 | AN80: hexagonal | AO80: 7440-15-5 | AP80: 0.0542 | AQ80: 0.13 | AR80: 33.2 | AS80: 715 | AT80: 47.9 | AU80: 0.0007 | AV80: 4e-06 | AY80: Molybdenite (sulfide) | AZ80: silvery-white | BA80: high melting point | BB80: hcp: hexagonal close pkd | BD80: catalysts, thermocouples | BE80: mild, w/ht =>Re2O7 | BF80: none | BG80: none | BH80: mild, =>HReO4 | BJ80: none | BK80: Re2O5 ReO3 Re2O7 | BL80: Re3Cl9 ReCl4 ReCl5 ReCl6 | BM80: 9.7 | BN80: 770 | BO80: 1925 | BP80: -1.287 | BQ80: -2.3 | BR80: 540
A81: 76 | B81: Os | C81: 8 | D81: VIII B | E81: 6 | F81: osmium | G81: Osmium | H81: osmium | I81: osmio | J81: osmio | K81: 190 | L81: 190.23 | M81: 3045 | N81: 5030 | O81: solid | P81: 22.6 | Q81: 2.2 | R81: 8.7 | U81: 839 | X81: 1.10 | Y81: 106 | Z81: +4,6,8 | AA81: +4,6,8 | AB81: [Xe] 6s2 4f14 5d6 | AC81: [Xe] 6s2 4f14 5d6 | AD81: 1.92 | AE81: 0.63 | AF81: 1.26 | AI81: 135 | AM81: 8.49 | AN81: hexagonal | AO81: 7440-04-02 | AP81: 0.109 | AQ81: 0.13 | AR81: 31.8 | AS81: 746 | AT81: 87.6 | AU81: 0.0015 | AY81: nickel ores (sulfides) | AZ81: bluish-white | BA81: hard, dense, inert <100 C | BB81: hcp: hexagonal close pkd | BC81: 7 | BD81: hard alloys,phono needles | BE81: none | BF81: none | BG81: none | BH81: mild, =>OsO4 | BJ81: none | BK81: OsO2 OsO4 | BL81: OsCl3 OsCl4 OsCl5 | BM81: 8.5 | BN81: 791 | BO81: 1804 | BP81: -0.171 | BQ81: -2.8 | BR81: 7700
A82: 77 | B82: Ir | C82: 9 | D82: VIII B | E82: 6 | F82: iridium | G82: Iridium | H82: iridium | I82: iridio | J82: iridio | K82: 192 | L82: 192.217 | M82: 2410 | N82: 4130 | O82: solid | P82: 22.4 | Q82: 2.2 | R82: 9.1 | U82: 878 | X82: 1.57 | Y82: 151 | Z82: +4,3,6 | AA82: +4,3,6 | AB82: [Xe] 6s2 4f14 5d7 | AC82: [Xe] 6s2 4f14 5d7 | AD82: 1.87 | AE82: 0.63 | AF82: 1.27 | AI82: 136 | AL82: 82 | AM82: 8.54 | AN82: cubic: face centered | AO82: 7439-88-5 | AP82: 0.197 | AQ82: 0.13 | AR82: 26.1 | AS82: 604 | AT82: 147 | AU82: 0.001 | AY82: nickel ores (sulfides) | AZ82: white | BA82: hard, densest el, inert | BB82: fcc: face-centered cubic | BC82: 6.25 | BD82: Pt/Ir sparkplugs | BE82: none | BF82: none | BG82: none | BH82: none | BI82: none | BJ82: none | BK82: IrO2 | BL82: IrCl3 | BM82: 7.6 | BN82: 665 | BO82: 1804 | BP82: -0.180 | BQ82: -3 | BR82: 4200
A83: 78 | B83: Pt | C83: 10 | D83: VIII B | E83: 6 | F83: platinum | G83: Platin | H83: platine | I83: platino | J83: platino | K83: 195 | L83: 195.084 | M83: 1772 | N83: 3827 | O83: solid | P83: 21.4 | Q83: 2.28 | R83: 9 | S83: 18.563 | U83: 868 | V83: 1791 | X83: 2.13 | Y83: 206 | Z83: +4,2 | AA83: +4,2 | AB83: [Xe] 6s2 4f14 5d8 | AC83: [Xe] 6s2 4f14 5d8 | AD83: 1.83 | AE83: 0.63 | AF83: 1.3 | AI83: 139 | AK83: 94 | AM83: 9.1 | AN83: cubic: face centered | AO83: 7440-06-4 | AP83: 0.0966 | AQ83: 0.13 | AR83: 19.6 | AS83: 510 | AT83: 71.6 | AU83: 0.005 | AY83: nickel ores (sulfides) | AZ83: silvery-white | BA83: Inert, ductile | BB83: fcc: face-centered cubic | BC83: 4.3 | BD83: jewelry, catalysts | BE83: none | BF83: none | BG83: none | BH83: none | BI83: none | BJ83: none | BK83: PtO2 | BL83: PtCl2 PtCl4 | BM83: 6.5 | BN83: 565 | BO83: 1748 | BP83: 0.127 | BQ83: -2.3 | BR83: 4700 | BS83: 1200 | BU83: no
A84: 79 | B84: Au | C84: 11 | D84: I B | E84: 6 | F84: gold | G84: Gold | H84: or | I84: oro | J84: oro | K84: 197 | L84: 196.966569 | M84: 1064 | N84: 3080 | O84: solid | P84: 19.3 | Q84: 2.54 | R84: 9.2257 | S84: 20.521 | U84: 890 | V84: 1980 | X84: 2.31 | Y84: 223 | Z84: +3,1 | AA84: +3,1 | AB84: [Xe] 6s2 4f14 5d9 | AC84: [Xe] 6s2 4f14 5d9 | AD84: 1.79 | AE84: 0.85 | AF84: 1.34 | AI84: 144 | AJ84: 151 | AL84: 99 | AM84: 10.2 | AN84: cubic: face centered | AO84: 7440-57-5 | AP84: 0.452 | AQ84: 0.128 | AR84: 12.55 | AS84: 334.4 | AT84: 317 | AU84: 0.004 | AV84: 0.004 | AW84: 1e-05 | AY84: Gold, gold bearing rock (misc) | AZ84: golden yellow | BA84: Inert, ductile malleable | BB84: fcc: face-centered cubic | BC84: 2.75 | BD84: jewelry, electronics | BE84: none | BF84: none | BG84: none | BH84: none | BI84: none | BJ84: none | BK84: Au2O3 | BL84: AuCl AuCl3 | BM84: 6.1 | BN84: 366 | BP84: -0.728 | BQ84: -2.4 | BR84: 4400 | BS84: 1200 | BU84: no
A85: 80 | B85: Hg | C85: 12 | D85: II B | E85: 6 | F85: mercury | G85: Quecksilber | H85: mercure | I85: mercurio | J85: mercurio | K85: 201 | L85: 200.59 | M85: -38.9 | N85: 357 | O85: liquid | P85: 13.5 | Q85: 2 | R85: 10.4375 | S85: 18.759 | T85: 34.202 | U85: 1007 | V85: 1810 | W85: 3300 | X85: <0 | Y85: <0 | Z85: +2,1 | AA85: +2,1 | AB85: =CONCATENATE("[",B$59,"] ",E85,"s",MIN(A85-A$59,2)," ",E85-2,"f",MIN(A85-A$61,14)," ",E85-1,"d",MIN(A85-A$75,10)) -> [Xe] 6s2 4f14 5d10 | AC85: [Xe] 6s2 4f14 5d10 | AD85: 1.76 | AE85: 1.02 | AF85: 1.49 | AI85: 151 | AJ85: 133 | AK85: 116 | AM85: 14.82 | AN85: rhombohedral | AO85: 7439-97-6 | AP85: 0.0104 | AQ85: 0.139 | AR85: 2.295 | AS85: 59.229 | AT85: 8.34 | AU85: 0.085 | AV85: 3e-05 | AY85: Cinnabar (sulfide) | AZ85: silvery-white | BA85: liquid at r.t., volatile | BB85: rhombohedral | BD85: amalgams, Cl2, NaOH prod. | BE85: none, w/ht (350C) =>HgO | BF85: none | BG85: none | BH85: mild, =>NOx, Hg(NO3)2 | BI85: none | BJ85: none | BK85: HgO | BL85: Hg2Cl2 HgCl2 | BM85: 5.4 | BN85: 61 | BP85: -0.469 | BQ85: -1.1 | BR85: 5 | BS85: 0.51 | BT85: yes | BU85: no
A86: 81 | B86: Tl | C86: 13 | D86: III A | E86: 6 | F86: thallium | G86: Thallium | H86: thallium | I86: talio | J86: tallio | K86: 204 | L86: 204.3833 | M86: 303 | N86: 1457 | O86: solid | P86: 11.9 | Q86: 1.62 | R86: 6.1083 | S86: 20.428 | T86: 29.829 | U86: 589 | V86: 1971 | W86: 2878 | X86: 0.20 | Y86: 19 | Z86: +1,3 | AA86: +1,3 | AB86: =CONCATENATE("[",B$59,"] ",E86,"s",MIN(A86-A$59,2)," ",E86-2,"f",MIN(A86-A$61,14)," ",E86-1,"d",MIN(A86-A$75,10)," ",E86,"p",MIN(A86-A$85,6)) -> [Xe] 6s2 4f14 5d10 6p1 | AC86: [Xe] 6s2 4f14 5d10 6p1 | AD86: 2.08 | AE86: 1.59 | AF86: 1.48 | AI86: 170 | AJ86: 164 | AL86: 102.5 | AM86: 17.2 | AN86: hexagonal | AO86: 7440-28-0 | AP86: 0.0617 | AQ86: 0.13 | AR86: 4.142 | AS86: 164.1 | AT86: 46.1 | AU86: 0.85 | AV86: 1.9e-05 | AY86: Zn/Pb smelting by-product | AZ86: bluish-gray | BA86: soft | BB86: hcp: hexagonal close pkd | BC86: 1.2 | BD86: IR detectors, photomult. | BE86: mild, =>Tl2O | BF86: mild, =>TlOH | BH86: mild, =>TlNO3 | BK86: Tl2O Tl2O3 | BL86: TlCl TlCl3 | BM86: 7.6 | BN86: 182 | BO86: 1861 | BP86: -0.735 | BQ86: -0.3 | BR86: 48 | BU86: no
A87: 82 | B87: Pb | C87: 14 | D87: IV A | E87: 6 | F87: lead | G87: Blei | H87: plomb | I87: plomo | J87: piombo | K87: 207 | L87: 207.2 | M87: 327.5 | N87: 1740 | O87: solid | P87: 11.4 | Q87: 2.33 | R87: 7.4167 | S87: 15.028 | T87: 31.943 | U87: 716 | V87: 1450 | W87: 3082 | X87: 0.36 | Y87: 35 | Z87: +2,4 | AA87: +2,4 | AB87: [Xe] 6s2 4f14 5d10 6p2 | AC87: [Xe] 6s2 4f14 5d10 6p2 | AD87: 1.81 | AE87: 1.19 | AF87: 1.47 | AI87: 146 | AK87: 133 | AM87: 18.17 | AN87: cubic: face centered | AO87: 7439-92-1 | AP87: 0.0481 | AQ87: 0.13 | AR87: 4.799 | AS87: 177.7 | AT87: 35.3 | AU87: 0.14 | AV87: 3e-05 | AW87: 0.00017 | AY87: Galena (sulfide) | AZ87: gray | BA87: soft | BB87: fcc: face-centered cubic | BC87: 1.5 | BD87: batteries, solder, paints | BE87: mild, w/ht, =>PbO | BF87: none | BG87: none | BH87: mild, =>NOx, Pb(NO3)2 | BJ87: PbH4 | BK87: PbO Pb3O4 Pb2O3 PbO2 | BL87: PbCl2 PbCl4 | BM87: 6.8 | BN87: 196 | BP87: 0.498 | BQ87: 1.1 | BR87: 1.5 | BS87: 0.077 | BU87: no
A88: 83 | B88: Bi | C88: 15 | D88: V A | E88: 6 | F88: bismuth | G88: Wismut | H88: bismuth | I88: bismuto | J88: bismuto | K88: 209 | L88: 208.9804 | M88: 271 | N88: 1560 | O88: solid | P88: 9.75 | Q88: 2.02 | R88: 7.289 | S88: 16.687 | T88: 25.559 | U88: 703 | V88: 1610 | W88: 2466 | X88: 0.95 | Y88: 92 | Z88: +3,5 | AA88: +3,5 | AB88: [Xe] 6s2 4f14 5d10 6p3 | AC88: [Xe] 6s2 4f14 5d10 6p3 | AD88: 1.63 | AE88: 1.03 | AF88: 1.46 | AI88: 150 | AL88: 117 | AM88: 21.3 | AN88: rhombohedral | AO88: 7440-69-9 | AP88: 0.00867 | AQ88: 0.12 | AR88: 11.3 | AS88: 104.8 | AT88: 7.87 | AU88: 0.0085 | AV88: 2e-05 | AY88: Pb smelting by-product | AZ88: white | BA88: brittle | BB88: rhombohedral | BC88: 2.5 | BD88: antacid, fusible alloy | BE88: mild, w/ht =>Bi2O3 | BF88: none | BG88: none | BH88: mild, =>Bi(NO3)3, NOx | BJ88: BiH3 | BK88: Bi2O3 | BL88: BiCl3 BiCl4 | BM88: 7.4 | BN88: 207 | BO88: 1600 | BP88: -0.842 | BQ88: -0.8 | BR88: 11
A89: 84 | B89: Po | C89: 16 | D89: VI A | E89: 6 | F89: polonium | G89: Polonium | H89: polonium | I89: polonio | J89: polonio | K89: =TEXT(ROUND(L89,1),"0") -> 209 | L89: 209 | M89: 254 | N89: 962 | O89: solid | P89: 9.32 | Q89: 2 | R89: 8.4167 | U89: 812 | X89: 1.90 | Y89: 183 | Z89: +4,2 | AA89: +4,2 | AB89: [Xe] 6s2 4f14 5d10 6p4 | AC89: [Xe] 6s2 4f14 5d10 6p4 | AD89: 1.53 | AF89: 1.46 | AI89: 168 | AM89: 22.23 | AN89: monoclinic | AO89: 7440-08-6 | AP89: 0.0219 | AQ89: 0.12 | AT89: 20 | AU89: 2e-10 | AV89: 1.4e-14 | AY89: pitchblende, synthetic | AZ89: blue glow | BA89: Radioactive; 2 forms | BB89: special: simple cubic | BD89: thermoelectric power | BE89: mild, =>PoO2 | BF89: none | BG89: mild, =>PoCl2 | BK89: PoO PoO2 | BL89: PoCl2 PoCl4 | BM89: 6.8 | BN89: 144 | BO89: 1898 | BQ89: -9.7
A90: 85 | B90: At | C90: 17 | D90: VII A | E90: 6 | F90: astatine | G90: Astat | H90: astate | I90: astato | J90: astato | K90: 210 | L90: 210 | M90: 302 | N90: 337 | O90: solid | Q90: 2.2 | R90: 9.5 | U90: 917 | X90: 2.80 | Y90: 270 | AB90: [Xe] 6s2 4f14 5d10 6p5 | AC90: [Xe] 6s2 4f14 5d10 6p5 | AD90: 1.43 | AF90: 1.45 | AO90: 7440-68-8 | AT90: 1.7 | AY90: Synthetic(Th or U decay) | BA90: Radioactive | BJ90: HAt | BM90: 6 | BN90: 92 | BO90: 1940
A91: 86 | B91: Rn | C91: 18 | D91: VIII A | E91: 6 | F91: radon | G91: Radon | H91: radon | I91: radón | J91: radon | K91: 222 | L91: 222 | M91: -71 | N91: -61.8 | O91: gaseous | P91: 0.00973 | R91: 10.7485 | U91: 1037 | X91: <0 | Y91: <0 | Z91: 0 | AB91: [Xe] 6s2 4f14 5d10 6p6 | AC91: [Xe] 6s2 4f14 5d10 6p6 | AD91: 1.34 | AM91: 50.5 | AN91: cubic: face centered | AO91: 10043-92-2 | AQ91: 0.09 | AR91: 2.89 | AS91: 16.4 | AT91: 0.00364 | AU91: 4e-13 | AV91: 6e-16 | AY91: Synthetic(Ra-226 decay) | AZ91: colorless | BA91: Radioactive,air pollutant | BD91: earthquake prediction | BE91: none | BF91: none | BG91: none | BH91: none | BI91: none | BM91: 5.3 | BN91: 0 | BO91: 1900 | BQ91: -12.4
A92: 87 | B92: Fr | C92: 1 | D92: I A | E92: 7 | F92: francium | G92: Franzium | H92: francium | I92: francio | J92: francio | K92: 223 | L92: 223 | M92: 27 | N92: 677 | O92: solid | Q92: 0.7 | R92: 3.94 | U92: 380 | X92: 0.46 | Y92: 44 | Z92: +1 | AA92: +1 | AB92: =CONCATENATE("[",B$91,"] ",E92,"s",MIN(A92-A$91,2)) -> [Rn] 7s1 | AC92: [Rn] 7s1 | AJ92: 194 | AN92: cubic: body centered | AO92: 7440-73-5 | AP92: 0.03 | AT92: 15 | AY92: Synthetic(U-235 decay) | BA92: Radioactive | BF92: vigorous, =>H2, FrOH | BG92: vigorous, =>H2, FrCl | BI92: vigorous, =>H2, FrOH | BM92: 48.7 | BN92: 73 | BO92: 1939
A93: 88 | B93: Ra | C93: 2 | D93: II A | E93: 7 | F93: radium | G93: Radium | H93: radium | I93: radio | J93: radio | K93: 226 | L93: 226 | M93: 700 | N93: 1140 | O93: solid | P93: 5 | Q93: 0.9 | R93: 5.2789 | S93: 10.148 | U93: 509 | V93: 979 | Z93: +2 | AA93: +2 | AB93: =CONCATENATE("[",B$91,"] ",E93,"s",MIN(A93-A$91,2)) -> [Rn] 7s2 | AC93: [Rn] 7s2 | AE93: 1.62 | AK93: 162 | AM93: 45.2 | AN93: cubic: body centered | AO93: 7440-14-4 | AQ93: 0.12 | AT93: 18.6 | AU93: 9e-07 | AV93: 8.9e-11 | AY93: pitchblende(U-238 decay) | AZ93: white | BA93: Radioactive, luminescent | BB93: bcc: body-centered cubic | BD93: neutron source | BE93: vigorous, =>RaO2, Ra3N2 | BL93: RaCl2 | BM93: 38.3 | BN93: 159 | BO93: 1898 | BQ93: -6
A94: 89 | B94: Ac | C94: actinides | D94: III B | E94: 7 | F94: actinium | G94: Aktinium | H94: actinium | I94: actinio | J94: attinio | K94: 227 | L94: 227 | M94: 1050 | N94: 3200 | O94: solid | P94: 10.1 | Q94: 1.1 | R94: 5.17 | S94: 12.126 | U94: 499 | V94: 1170 | Z94: +3 | AA94: +3 | AB94: =CONCATENATE("[",B$91,"] ",E94,"s",MIN(A94-A$91,2)," ",E94-2,"f",MIN(A94-A$93,14)) -> [Rn] 7s2 5f1 | AC94: [Rn] 7s2 5f1 | AL94: 126 | AM94: 22.54 | AN94: cubic: face centered | AO94: 7440-34-8 | AT94: 12 | AU94: 5.5e-10 | AY94: Synthetic(U-235 decay) | AZ94: silvery-white | BA94: Radioactive | BB94: fcc: face-centered cubic | BD94: thermoelectric power | BE94: mild, w/ht, =>Ac2O3 | BF94: mild, =>H2, Ac(OH)3 | BG94: mild, =>H2, AcCl3 | BH94: mild, =>Ac(NO3)3 | BJ94: AcH2 | BK94: Ac2O3 | BL94: AcCl3 | BM94: 32.1 | BN94: 385 | BO94: 1899 | BQ94: -9.3
A95: 90 | B95: Th | C95: actinides | D95: actinides | E95: 7 | F95: thorium | G95: Thorium | H95: thorium | I95: torio | J95: torio | K95: =TEXT(ROUND(L95,1),"0.0") -> 232 | L95: 232.03806 | M95: 1750 | N95: 4790 | O95: solid | P95: 11.7 | Q95: 1.3 | R95: 6.08 | S95: 11.504 | T95: 20.003 | U95: 587 | V95: 1110 | W95: 1930 | Z95: +4 | AA95: +4 | AB95: [Rn] 7s2 5f2 | AC95: [Rn] 7s2 5f2 | AE95: 1.05 | AF95: 1.65 | AI95: 179 | AM95: 19.9 | AN95: cubic: face centered | AO95: 7440-29-1 | AP95: 0.0653 | AQ95: 0.12 | AR95: 16.1 | AS95: 514.4 | AT95: 54 | AU95: 9.6 | AV95: 1e-06 | AY95: Monazite(phosphate),U extractn | AZ95: white | BA95: Radioactive | BB95: fcc: face-centered cubic | BD95: gas mantles (ThO2) | BE95: mild, w/ht ignites =>ThO2 | BF95: none | BG95: mild | BH95: passivated | BI95: none | BJ95: ThH2 Th4H15 | BK95: ThO2 | BL95: ThCl4 | BM95: 32.1 | BN95: 576 | BO95: 1829 | BP95: -1.475 | BQ95: 1
A96: 91 | B96: Pa | C96: actinides | D96: actinides | E96: 7 | F96: protactinium | G96: Protaktinium | H96: protactinium | I96: protactinio | J96: protoattinio | K96: =TEXT(ROUND(L96,1),"0.0") -> 231 | L96: 231.03588 | M96: 1570 | N96: 4000 | O96: solid | P96: 15.4 | Q96: 1.5 | R96: 5.89 | U96: 568 | Z96: +5,4 | AA96: +5,4 | AB96: [Rn] 7s2 5f3 | AC96: [Rn] 7s2 5f3 | AI96: 163 | AL96: 118 | AM96: 15 | AN96: orthorhombic | AO96: 7440-13-3 | AP96: 0.0529 | AQ96: 0.12 | AR96: 12.3 | AT96: 47 | AU96: 1.4e-06 | AV96: 5e-11 | AY96: Synthetic(U-235 decay) | AZ96: silvery | BA96: Radioactive | BB96: fcc: face-centered cubic | BF96: none | BI96: none | BJ96: PaH3 | BK96: PaO PaO2 Pa2O5 | BL96: PaCl4 PaCl5 | BM96: 25.4 | BN96: 527 | BO96: 1917 | BQ96: -5.9
A97: 92 | B97: U | C97: actinides | D97: actinides | E97: 7 | F97: uranium | G97: Uran | H97: uranium | I97: uranio | J97: uranio | K97: =TEXT(ROUND(L97,1),"0.0") -> 238 | L97: 238.02891 | M97: 1132 | N97: 3818 | O97: solid | P97: 19 | Q97: 1.38 | R97: 6.1941 | U97: 598 | Z97: +6,3,4,5 | AA97: +6,3,4,5 | AB97: [Rn] 7s2 5f4 | AC97: [Rn] 7s2 5f4 | AE97: 0.81 | AF97: 1.42 | AI97: 156 | AL97: 116.5 | AM97: 12.59 | AN97: orthorhombic | AO97: 7440-61-1 | AP97: 0.038 | AQ97: 0.12 | AR97: 8.52 | AS97: 477 | AT97: 27.6 | AU97: 2.7 | AV97: 0.0032 | AW97: 1e-07 | AY97: Uranite (oxide) | AZ97: silvery | BA97: Radioactive | BB97: hcp:hex cls pkd distorted | BD97: nuclear reactor fuel | BE97: mild, =>U3O8 | BF97: mild (powder) | BG97: mild, =>H2 | BH97: passivated | BI97: none | BJ97: UH3 | BK97: UO UO2 U2O5 U3O8 UO3 | BL97: UCl3 UCl4 UCl5 UCl6 | BM97: 27.4 | BN97: 490 | BO97: 1789 | BP97: -2.046 | BQ97: 0.4 | BU97: no
A98: 93 | B98: Np | C98: actinides | D98: actinides | E98: 7 | F98: neptunium | G98: Neptunium | H98: neptunium | I98: neptunio | J98: nettunio | K98: =TEXT(ROUND(L98,1),"0") -> 237 | L98: 237 | M98: 640 | N98: 3900 | O98: solid | P98: 20.2 | Q98: 1.36 | R98: 6.2657 | U98: 605 | Z98: +5,3,4,6 | AA98: +5,3,4,6 | AB98: [Rn] 7s2 5f5 | AC98: [Rn] 7s2 5f5 | AI98: 155 | AK98: 124 | AL98: 115 | AM98: 11.62 | AN98: orthorhombic | AO98: 7439-99-8 | AP98: 0.00822 | AQ98: 0.12 | AR98: 5.19 | AT98: 6.3 | AY98: Synthetic | AZ98: silvery | BA98: Radioactive | BB98: special:complex | BJ98: NpH2 NpH3 | BK98: NpO NpO2 Np2O5 | BL98: NpCl3 NpCl4 | BM98: 24.8 | BO98: 1940
A99: 94 | B99: Pu | C99: actinides | D99: actinides | E99: 7 | F99: plutonium | G99: Plutonium | H99: plutonium | I99: plutonio | J99: plutonio | K99: 239 | L99: 239 | M99: 641 | N99: 3232 | O99: solid | P99: 19.8 | Q99: 1.28 | R99: 6.06 | U99: 585 | Z99: +4,3,5,6 | AA99: +4,3,5,6 | AB99: [Rn] 7s2 5f6 | AC99: [Rn] 7s2 5f6 | AI99: 159 | AL99: 114 | AM99: 12.32 | AN99: monoclinic | AO99: 7440-07-5 | AP99: 0.00666 | AQ99: 0.13 | AR99: 2.84 | AS99: 344 | AT99: 6.74 | AY99: Synthetic | AZ99: silvery | BA99: Radioactive | BB99: fcc: face-centered cubic | BD99: weapon fuel, pacemakers | BH99: passivated | BJ99: PuH2 PuH3 | BK99: PuO Pu2O3 PuO2 | BL99: PuCl2 PuCl3 | BM99: 24.5 | BN99: 352 | BO99: 1940
A100: 95 | B100: Am | C100: actinides | D100: actinides | E100: 7 | F100: americium | G100: Amerizium | H100: américium | I100: americio | J100: americio | K100: 243 | L100: 243 | M100: 994 | N100: 2607 | O100: solid | P100: 13.7 | Q100: 1.3 | R100: 5.9933 | U100: 578 | Z100: +3,4,5,6 | AA100: +3,4,5,6 | AB100: [Rn] 7s2 5f7 | AC100: [Rn] 7s2 5f7 | AI100: 173 | AL100: 111.5 | AM100: 17.86 | AN100: hexagonal | AO100: 7440-35-9 | AP100: 0.022 | AQ100: 0.11 | AR100: 14.4 | AT100: 10 | AY100: Synthetic | AZ100: silvery-white | BA100: Radioactive | BB100: fcc: face-centered cubic | BD100: smoke detector | BJ100: AmH2 AmH3 | BK100: AmO Am2O3 AmO2 | BL100: AmCl2 AmCl3 | BM100: 23.3 | BO100: 1944
A101: 96 | B101: Cm | C101: actinides | D101: actinides | E101: 7 | F101: curium | G101: Kurium | H101: curium | I101: curio | J101: curio | K101: 247 | L101: 247 | M101: 1340 | O101: solid | P101: 13.5 | Q101: 1.3 | R101: 6.02 | U101: 581 | Z101: +3 | AA101: +3 | AB101: [Rn] 7s2 5f8 | AC101: [Rn] 7s2 5f8 | AI101: 174 | AL101: 111 | AM101: 18.28 | AN101: hexagonal | AO101: 7440-51-9 | AR101: 15 | AT101: 10 | AY101: Synthetic | AZ101: silvery-white | BA101: Radioactive | BB101: fcc: face-centered cubic | BD101: thermoelec. pwr, n source | BJ101: CmH2 | BK101: CmO Cm2O3 CmO2 | BL101: CmCl3 | BM101: 23 | BO101: 1944
A102: 97 | B102: Bk | C102: actinides | D102: actinides | E102: 7 | F102: berkelium | G102: Berkelium | H102: berkélium | I102: berkelio | J102: berkelio | K102: 247 | L102: 247 | M102: 986 | O102: solid | P102: 14 | Q102: 1.3 | R102: 6.23 | U102: 601 | Z102: +3,4 | AA102: +3,4 | AB102: [Rn] 7s2 5f9 | AC102: [Rn] 7s2 5f9 | AI102: 170 | AL102: 110 | AO102: 7440-40-6 | AT102: 10 | AY102: Synthetic | AZ102: silvery | BA102: Radioactive | BB102: fcc: face-centered cubic | BK102: BkO Bk2O3 BkO2 | BL102: BkCl3 | BM102: 22.7 | BO102: 1949
A103: 98 | B103: Cf | C103: actinides | D103: actinides | E103: 7 | F103: californium | G103: Kalifornium | H103: californium | I103: californio | J103: californio | K103: 251 | L103: 251 | Q103: 1.3 | R103: 6.3 | U103: 608 | Z103: +3 | AA103: +3 | AB103: [Rn] 7s2 5f10 | AC103: [Rn] 7s2 5f10 | AI103: 186 | AL103: 109 | AO103: 7440-71-3 | AT103: 10 | AY103: Synthetic | BA103: Radioactive | BD103: neutron source | BK103: CfO Cf2O3 CfO2 | BL103: CfCl3 | BM103: 20.5 | BO103: 1949
A104: 99 | B104: Es | C104: actinides | D104: actinides | E104: 7 | F104: einsteinium | G104: Einsteinium | H104: einsteinium | I104: einstenio | J104: einstenio | K104: 252 | L104: 252 | Q104: 1.3 | R104: 6.42 | U104: 619 | Z104: +3 | AA104: +3 | AB104: [Rn] 7s2 5f11 | AC104: [Rn] 7s2 5f11 | AI104: 186 | AO104: 7429-92-7 | AT104: 10 | AY104: Synthetic | BA104: Radioactive | BK104: Es2O3 | BM104: 19.7 | BO104: 1954
A105: 100 | B105: Fm | C105: actinides | D105: actinides | E105: 7 | F105: fermium | G105: Fermium | H105: fermium | I105: fermio | J105: fermio | K105: 257 | L105: 257 | Q105: 1.3 | R105: 6.5 | U105: 627 | Z105: +3 | AA105: +3 | AB105: [Rn] 7s2 5f12 | AC105: [Rn] 7s2 5f12 | AO105: 7440-72-4 | AT105: 10 | AY105: Synthetic | BA105: Radioactive | BM105: 23.8 | BO105: 1954
A106: 101 | B106: Md | C106: actinides | D106: actinides | E106: 7 | F106: mendelevium | G106: Mendelevium | H106: mendélévium | I106: mendelevio | J106: mendelevio | K106: 258 | L106: 258 | Q106: 1.3 | R106: 6.58 | U106: 635 | Z106: +3,2 | AA106: +3,2 | AB106: [Rn] 7s2 5f13 | AC106: [Rn] 7s2 5f13 | AO106: 7440-11-1 | AT106: 10 | AY106: Synthetic | BA106: Radioactive | BM106: 18.2 | BO106: 1955
A107: 102 | B107: No | C107: actinides | D107: actinides | E107: 7 | F107: nobelium | G107: Nobelium | H107: nobélium | I107: nobelio | J107: nobelio | K107: 259 | L107: 259 | Q107: 1.3 | R107: 6.65 | U107: 642 | Z107: +2,3 | AA107: +2,3 | AB107: =CONCATENATE("[",B$91,"] ",E107,"s",MIN(A107-A$91,2)," ",E107-2,"f",MIN(A107-A$93,14)) -> [Rn] 7s2 5f14 | AC107: [Rn] 7s2 5f14 | AK107: 124 | AO107: 10028-14-5 | AT107: 10 | AY107: Synthetic | BA107: Radioactive | BM107: 17.5 | BO107: 1958
A108: 103 | B108: Lr | C108: 3 | D108: actinides | E108: 7 | F108: lawrencium | G108: Lawrencium | H108: lawrencium | I108: lawrencio | J108: laurenzio | K108: 262 | L108: 262 | Z108: +3 | AA108: +3 | AB108: =CONCATENATE("[",B$91,"] ",E108,"s",MIN(A108-A$91,2)," ",E108-2,"f",MIN(A108-A$93,14)," ",E108-1,"d",MIN(A108-A$107,10)) -> [Rn] 7s2 5f14 6d1 | AC108: [Rn] 7s2 5f14 6d1 | AO108: 22537-19-5 | AT108: 10 | AY108: Synthetic | BA108: Radioactive,few atms made | BO108: 1961
A109: 104 | B109: Rf | C109: 4 | D109: IV B | E109: 7 | F109: rutherfordium | G109: Rutherfordium | H109: rutherfordium | I109: ruterfordio | J109: rutherfordio | K109: 261 | L109: 261 | AB109: [Rn] 7s2 5f14 6d2 | AC109: [Rn] 7s2 5f14 6d2 | AO109: 53850-36-5 | AT109: 23
A110: 105 | B110: Db | C110: 5 | D110: V B | E110: 7 | F110: dubnium | G110: Dubnium | H110: dubnium | I110: dubnio | J110: dubnio | K110: 262 | L110: 262 | AB110: [Rn] 7s2 5f14 6d3 | AC110: [Rn] 7s2 5f14 6d3 | AO110: 53850-35-4 | AT110: 58
A111: 106 | B111: Sg | C111: 6 | D111: VI B | E111: 7 | F111: seaborgium | G111: Seaborgium | H111: seaborgium | I111: seaborgio | J111: seaborgio | K111: 266 | L111: 266 | AB111: [Rn] 7s2 5f14 6d4 | AC111: [Rn] 7s2 5f14 6d4 | AO111: 54038-81-2
A112: 107 | B112: Bh | C112: 7 | D112: VII B | E112: 7 | F112: bohrium | G112: Bohrium | H112: bohrium | I112: bohrio | J112: bohrio | K112: 264 | L112: 264 | AB112: [Rn] 7s2 5f14 6d5 | AC112: [Rn] 7s2 5f14 6d5 | AO112: 54037-14-8
A113: 108 | B113: Hs | C113: 8 | D113: VIII B | E113: 7 | F113: hassium | G113: Hassium | H113: hassium | I113: hassio | J113: hassio | K113: 277 | L113: 277 | AB113: [Rn] 7s2 5f14 6d6 | AC113: [Rn] 7s2 5f14 6d6 | AO113: 54037-57-9
A114: 109 | B114: Mt | C114: 9 | D114: VIII B | E114: 7 | F114: meitnerium | G114: Meitnerium | H114: meitnérium | I114: meitnerio | J114: meitnerio | K114: 268 | L114: 268 | AB114: [Rn] 7s2 5f14 6d7 | AC114: [Rn] 7s2 5f14 6d7 | AO114: 54038-01-6
A115: 110 | B115: Ds | C115: 10 | D115: VIII B | E115: 7 | F115: darmstadtium | G115: Darmstadtium | H115: darmstadtium | I115: darmstadtio | J115: darmstadtio | K115: 281 | L115: 281 | AB115: [Rn] 7s2 5f14 6d8 | AC115: [Rn] 7s2 5f14 6d8 | AO115: 54083-77-1
A116: 111 | B116: Rg | C116: 11 | D116: I B | E116: 7 | F116: roentgentium | G116: Roentgentium | H116: roentgentium | I116: roentgentio | J116: roentgentio | K116: 272 | L116: 272 | AB116: [Rn] 7s2 5f14 6d9 | AC116: [Rn] 7s2 5f14 6d9 | AO116: 54386-24-2
A117: 112 | B117: Cn | C117: 12 | D117: II B | E117: 7 | F117: copernicum | G117: Kopernikum | H117: copérnicum | I117: copernico | J117: copernico | K117: 285 | L117: 285 | AB117: =CONCATENATE("[",B$91,"] ",E117,"s",MIN(A117-A$91,2)," ",E117-2,"f",MIN(A117-A$93,14)," ",E117-1,"d",MIN(A117-A$107,10)) -> [Rn] 7s2 5f14 6d10 | AC117: [Rn] 7s2 5f14 6d10 | AO117: 54084-26-3
A118: 113 | B118: Uut | C118: 13 | D118: III A | E118: 7 | F118: ununtrium | G118: Ununtrium | H118: ununtrium | I118: ununtrio | J118: ununtrio | K118: 284 | L118: 284 | AB118: =CONCATENATE("[",B$91,"] ",E118,"s",MIN(A118-A$91,2)," ",E118-2,"f",MIN(A118-A$93,14)," ",E118-1,"d",MIN(A118-A$107,10)," ",E118,"p",MIN(A118-A$117,6)) -> [Rn] 7s2 5f14 6d10 7p1 | AC118: [Rn] 7s2 5f14 6d10 7p1 | AO118: 54084-70-7
A119: 114 | B119: Uuq | C119: 14 | D119: IV A | E119: 7 | F119: ununquadium | G119: Ununquadium | H119: ununquadium | I119: ununquadio | J119: ununquadio | K119: 289 | L119: 289 | AB119: [Rn] 7s2 5f14 6d10 7p2 | AC119: [Rn] 7s2 5f14 6d10 7p2 | AO119: 54085-16-4
A120: 115 | B120: Uup | C120: 15 | D120: V A | E120: 7 | F120: ununpentium | G120: Ununpentium | H120: ununpentium | I120: ununpentio | J120: ununpentio | K120: 288 | L120: 288 | AB120: [Rn] 7s2 5f14 6d10 7p3 | AC120: [Rn] 7s2 5f14 6d10 7p3 | AO120: 54085-64-2
A121: 116 | B121: Uuh | C121: 16 | D121: VI A | E121: 7 | F121: ununhexium | G121: Ununhexium | H121: ununhexium | I121: ununhexio | J121: ununhexio | K121: 292 | L121: 292 | AB121: [Rn] 7s2 5f14 6d10 7p4 | AC121: [Rn] 7s2 5f14 6d10 7p4 | AO121: 54100-71-9
A122: 117 | B122: Uus | C122: 17 | D122: VII A | E122: 7 | F122: ununseptium | G122: Ununseptium | H122: ununseptium | I122: ununseptio | J122: ununseptio | K122: 293 | L122: 293 | AO122: 87658-56-8
A123: 118 | B123: Uuo | C123: 18 | D123: VIII A | E123: 7 | F123: ununoctium | G123: Ununoctium | H123: ununoctium | I123: ununoctio | J123: ununoctio | K123: 294 | L123: 294 | AB123: [Rn] 7s2 5f14 6d10 7p6 | AC123: [Rn] 7s2 5f14 6d10 7p6 | AO123: 54144-19-3
J128: =J129 -> 90 | K128: Density | L128: Density | M128: Melt | N128: Boil | O128: State | P128: color | AN128: year | AU128: am | AY128: source | BC128: use
J129: =zAdjusted -> 90 | L129: =IF(LOOKUP($J$128,Sheet2!$A$6:$A$123,Sheet2!$P$6:$P$123)="","-",LOOKUP($J$128,Sheet2!$A$6:$A$123,Sheet2!$P$6:$P$123)) -> 11.7 | M129: =IF(LOOKUP($J$128,Sheet2!$A$6:$A$123,Sheet2!$M$6:$M$123)="","-",LOOKUP($J$128,Sheet2!$A$6:$A$123,Sheet2!$M$6:$M$123)) -> 1750 | N129: =IF(LOOKUP($J$128,Sheet2!$A$6:$A$123,Sheet2!$N$6:$N$123)="","-",LOOKUP($J$128,Sheet2!$A$6:$A$123,Sheet2!$N$6:$N$123)) -> 4790 | O129: =IF(LOOKUP($J$128,Sheet2!$A$6:$A$123,Sheet2!$O$6:$O$123)="","-",LOOKUP($J$128,Sheet2!$A$6:$A$123,Sheet2!$O$6:$O$123)) -> solid | P129: =IF(LOOKUP($J$128,Sheet2!$A$6:$A$123,Sheet2!$AZ$6:$AZ$123)="","-",LOOKUP($J$128,Sheet2!$A$6:$A$123,Sheet2!$AZ$6:$AZ$123)) -> white | Q129: =IF(LOOKUP($J$128,Sheet2!$A$6:$A$123,Sheet2!$P$6:$P$123)="","-",LOOKUP($J$128,Sheet2!$A$6:$A$123,Sheet2!$P$6:$P$123)) -> 11.7 | R129: =IF(LOOKUP($J$128,Sheet2!$A$6:$A$123,Sheet2!$P$6:$P$123)="","-",LOOKUP($J$128,Sheet2!$A$6:$A$123,Sheet2!$P$6:$P$123)) -> 11.7 | S129: =IF(LOOKUP($J$128,Sheet2!$A$6:$A$123,Sheet2!$P$6:$P$123)="","-",LOOKUP($J$128,Sheet2!$A$6:$A$123,Sheet2!$P$6:$P$123)) -> 11.7 | T129: =IF(LOOKUP($J$128,Sheet2!$A$6:$A$123,Sheet2!$P$6:$P$123)="","-",LOOKUP($J$128,Sheet2!$A$6:$A$123,Sheet2!$P$6:$P$123)) -> 11.7 | U129: =IF(LOOKUP($J$128,Sheet2!$A$6:$A$123,Sheet2!$P$6:$P$123)="","-",LOOKUP($J$128,Sheet2!$A$6:$A$123,Sheet2!$P$6:$P$123)) -> 11.7 | V129: =IF(LOOKUP($J$128,Sheet2!$A$6:$A$123,Sheet2!$P$6:$P$123)="","-",LOOKUP($J$128,Sheet2!$A$6:$A$123,Sheet2!$P$6:$P$123)) -> 11.7 | W129: =IF(LOOKUP($J$128,Sheet2!$A$6:$A$123,Sheet2!$P$6:$P$123)="","-",LOOKUP($J$128,Sheet2!$A$6:$A$123,Sheet2!$P$6:$P$123)) -> 11.7 | X129: =IF(LOOKUP($J$128,Sheet2!$A$6:$A$123,Sheet2!$P$6:$P$123)="","-",LOOKUP($J$128,Sheet2!$A$6:$A$123,Sheet2!$P$6:$P$123)) -> 11.7 | Y129: =IF(LOOKUP($J$128,Sheet2!$A$6:$A$123,Sheet2!$P$6:$P$123)="","-",LOOKUP($J$128,Sheet2!$A$6:$A$123,Sheet2!$P$6:$P$123)) -> 11.7 | Z129: =IF(LOOKUP($J$128,Sheet2!$A$6:$A$123,Sheet2!$P$6:$P$123)="","-",LOOKUP($J$128,Sheet2!$A$6:$A$123,Sheet2!$P$6:$P$123)) -> 11.7 | AA129: =IF(LOOKUP($J$128,Sheet2!$A$6:$A$123,Sheet2!$P$6:$P$123)="","-",LOOKUP($J$128,Sheet2!$A$6:$A$123,Sheet2!$P$6:$P$123)) -> 11.7 | AB129: =IF(LOOKUP($J$128,Sheet2!$A$6:$A$123,Sheet2!$P$6:$P$123)="","-",LOOKUP($J$128,Sheet2!$A$6:$A$123,Sheet2!$P$6:$P$123)) -> 11.7 | AC129: =IF(LOOKUP($J$128,Sheet2!$A$6:$A$123,Sheet2!$P$6:$P$123)="","-",LOOKUP($J$128,Sheet2!$A$6:$A$123,Sheet2!$P$6:$P$123)) -> 11.7 | AD129: =IF(LOOKUP($J$128,Sheet2!$A$6:$A$123,Sheet2!$P$6:$P$123)="","-",LOOKUP($J$128,Sheet2!$A$6:$A$123,Sheet2!$P$6:$P$123)) -> 11.7 | AE129: =IF(LOOKUP($J$128,Sheet2!$A$6:$A$123,Sheet2!$P$6:$P$123)="","-",LOOKUP($J$128,Sheet2!$A$6:$A$123,Sheet2!$P$6:$P$123)) -> 11.7 | AF129: =IF(LOOKUP($J$128,Sheet2!$A$6:$A$123,Sheet2!$P$6:$P$123)="","-",LOOKUP($J$128,Sheet2!$A$6:$A$123,Sheet2!$P$6:$P$123)) -> 11.7 | AG129: =IF(LOOKUP($J$128,Sheet2!$A$6:$A$123,Sheet2!$P$6:$P$123)="","-",LOOKUP($J$128,Sheet2!$A$6:$A$123,Sheet2!$P$6:$P$123)) -> 11.7 | AH129: =IF(LOOKUP($J$128,Sheet2!$A$6:$A$123,Sheet2!$P$6:$P$123)="","-",LOOKUP($J$128,Sheet2!$A$6:$A$123,Sheet2!$P$6:$P$123)) -> 11.7 | AI129: =IF(LOOKUP($J$128,Sheet2!$A$6:$A$123,Sheet2!$P$6:$P$123)="","-",LOOKUP($J$128,Sheet2!$A$6:$A$123,Sheet2!$P$6:$P$123)) -> 11.7 | AJ129: =IF(LOOKUP($J$128,Sheet2!$A$6:$A$123,Sheet2!$P$6:$P$123)="","-",LOOKUP($J$128,Sheet2!$A$6:$A$123,Sheet2!$P$6:$P$123)) -> 11.7 | AK129: =IF(LOOKUP($J$128,Sheet2!$A$6:$A$123,Sheet2!$P$6:$P$123)="","-",LOOKUP($J$128,Sheet2!$A$6:$A$123,Sheet2!$P$6:$P$123)) -> 11.7 | AL129: =IF(LOOKUP($J$128,Sheet2!$A$6:$A$123,Sheet2!$P$6:$P$123)="","-",LOOKUP($J$128,Sheet2!$A$6:$A$123,Sheet2!$P$6:$P$123)) -> 11.7 | AM129: =IF(LOOKUP($J$128,Sheet2!$A$6:$A$123,Sheet2!$P$6:$P$123)="","-",LOOKUP($J$128,Sheet2!$A$6:$A$123,Sheet2!$P$6:$P$123)) -> 11.7 | AN129: =IF(LOOKUP($J$128,Sheet2!$A$6:$A$123,Sheet2!$BO$6:$BO$123)="","-",LOOKUP($J$128,Sheet2!$A$6:$A$123,Sheet2!$BO$6:$BO$123)) -> 1829 | AO129: =IF(LOOKUP($J$128,Sheet2!$A$6:$A$123,Sheet2!$P$6:$P$123)="","-",LOOKUP($J$128,Sheet2!$A$6:$A$123,Sheet2!$P$6:$P$123)) -> 11.7 | AP129: =IF(LOOKUP($J$128,Sheet2!$A$6:$A$123,Sheet2!$P$6:$P$123)="","-",LOOKUP($J$128,Sheet2!$A$6:$A$123,Sheet2!$P$6:$P$123)) -> 11.7 | AQ129: =IF(LOOKUP($J$128,Sheet2!$A$6:$A$123,Sheet2!$P$6:$P$123)="","-",LOOKUP($J$128,Sheet2!$A$6:$A$123,Sheet2!$P$6:$P$123)) -> 11.7 | AR129: =IF(LOOKUP($J$128,Sheet2!$A$6:$A$123,Sheet2!$P$6:$P$123)="","-",LOOKUP($J$128,Sheet2!$A$6:$A$123,Sheet2!$P$6:$P$123)) -> 11.7 | AS129: =IF(LOOKUP($J$128,Sheet2!$A$6:$A$123,Sheet2!$P$6:$P$123)="","-",LOOKUP($J$128,Sheet2!$A$6:$A$123,Sheet2!$P$6:$P$123)) -> 11.7 | AT129: =IF(LOOKUP($J$128,Sheet2!$A$6:$A$123,Sheet2!$P$6:$P$123)="","-",LOOKUP($J$128,Sheet2!$A$6:$A$123,Sheet2!$P$6:$P$123)) -> 11.7 | AU129: =IF(LOOKUP($J$128,Sheet2!$A$6:$A$123,Sheet2!$L$6:$L$123)="","-",LOOKUP($J$128,Sheet2!$A$6:$A$123,Sheet2!$L$6:$L$123)) -> 232.0 | AV129: =IF(LOOKUP($J$128,Sheet2!$A$6:$A$123,Sheet2!$P$6:$P$123)="","-",LOOKUP($J$128,Sheet2!$A$6:$A$123,Sheet2!$P$6:$P$123)) -> 11.7 | AW129: =IF(LOOKUP($J$128,Sheet2!$A$6:$A$123,Sheet2!$P$6:$P$123)="","-",LOOKUP($J$128,Sheet2!$A$6:$A$123,Sheet2!$P$6:$P$123)) -> 11.7 | AX129: =IF(LOOKUP($J$128,Sheet2!$A$6:$A$123,Sheet2!$P$6:$P$123)="","-",LOOKUP($J$128,Sheet2!$A$6:$A$123,Sheet2!$P$6:$P$123)) -> 11.7 | AY129: =IF(LOOKUP($J$128,Sheet2!$A$6:$A$123,Sheet2!$AY$6:$AY$123)="","-",LOOKUP($J$128,Sheet2!$A$6:$A$123,Sheet2!$AY$6:$AY$123)) -> Monazite(phosphate),U extractn | AZ129: =IF(LOOKUP($J$128,Sheet2!$A$6:$A$123,Sheet2!$BD$6:$BD$123)="","-",LOOKUP($J$128,Sheet2!$A$6:$A$123,Sheet2!$BD$6:$BD$123)) -> gas mantles (ThO2) | BA129: =LOOKUP($J$128,Sheet2!$A$6:$A$123,Sheet2!$AY$6:$AY$123) -> Monazite(phosphate),U extractn | BB129: =LOOKUP($J$128,Sheet2!$A$6:$A$123,Sheet2!$AY$6:$AY$123) -> Monazite(phosphate),U extractn | BC129: =LOOKUP($J$128,Sheet2!$A$6:$A$123,Sheet2!$BD$6:$BD$123) -> gas mantles (ThO2)
M130: =LOOKUP($J$128,$A$6:$A$123,Sheet2!$M$6:$M$13) -> 1750 | N130: =LOOKUP($J$128,Sheet2!$A$6:$A$123,Sheet2!$N$6:$N$123) -> 4790 | O130: =LOOKUP($J$128,Sheet2!$A$6:$A$123,Sheet2!$O$6:$O$123) -> solid | P130: =LOOKUP($J$128,Sheet2!$A$6:$A$123,Sheet2!$AZ$6:$AZ$123) -> white | AN130: =LOOKUP($J$128,Sheet2!$A$6:$A$123,Sheet2!$BO$6:$BO$123) -> 1829 | AO130: =LOOKUP($J$128,Sheet2!$A$6:$A$123,Sheet2!$BO$6:$BO$123) -> 1829 | AP130: =LOOKUP($J$128,Sheet2!$A$6:$A$123,Sheet2!$BO$6:$BO$123) -> 1829 | AQ130: =LOOKUP($J$128,Sheet2!$A$6:$A$123,Sheet2!$BO$6:$BO$123) -> 1829 | AR130: =LOOKUP($J$128,Sheet2!$A$6:$A$123,Sheet2!$BO$6:$BO$123) -> 1829 | AS130: =LOOKUP($J$128,Sheet2!$A$6:$A$123,Sheet2!$BO$6:$BO$123) -> 1829 | AT130: =LOOKUP($J$128,Sheet2!$A$6:$A$123,Sheet2!$BO$6:$BO$123) -> 1829 | AU130: =LOOKUP($J$128,Sheet2!$A$6:$A$123,Sheet2!$L$6:$L$123) -> 232.0 | AV130: =LOOKUP($J$128,Sheet2!$A$6:$A$123,Sheet2!$AY$6:$AY$123) -> Monazite(phosphate),U extractn | AW130: =LOOKUP($J$128,Sheet2!$A$6:$A$123,Sheet2!$AY$6:$AY$123) -> Monazite(phosphate),U extractn | AX130: =LOOKUP($J$128,Sheet2!$A$6:$A$123,Sheet2!$AY$6:$AY$123) -> Monazite(phosphate),U extractn | AY130: =LOOKUP($J$128,Sheet2!$A$6:$A$123,Sheet2!$AY$6:$AY$123) -> Monazite(phosphate),U extractn | AZ130: =LOOKUP($J$128,Sheet2!$A$6:$A$123,Sheet2!$BD$6:$BD$123) -> gas mantles (ThO2)

Sheet Data (hidden)
A1: Z | B1: Sym | C1: Element | D1: Group | E1: Period | F1: Weight | G1: Density | H1: Melt | I1: Boil | J1: Heat | L1: ClassNo
F2: u () | G2: g / cm3 | H2: K | I2: K | J2: J / g K | K2: Classification
A3: 1 | B3: H | C3: Hydrogen | D3: 1 | E3: 1 | F3: 1.00794(7) | G3: 8.988e-05 | H3: 14.175 | I3: 20.28 | J3: 14.304 | K3: Nonmetals | L3: 8 | N3: =H3-273.15 -> -258.975 | O3: =I3-273.15 -> -252.87
A4: 2 | B4: He | C4: Helium | D4: 18 | E4: 1 | F4: 4.002602(2) | G4: 0.0001785 | H4: 0.956 | I4: 4.22 | J4: 5.193 | K4: Noble Gases | L4: 10 | N4: =H4-273.15 -> -272.194 | O4: =I4-273.15 -> -268.93
A5: 3 | B5: Li | C5: Lithium | D5: 1 | E5: 2 | F5: 6.941(2) | G5: 0.534 | H5: 453.85 | I5: 1615 | J5: 3.582 | K5: Alkali Metals | L5: 1 | N5: 180.7 | O5: 1341.85
A6: 4 | B6: Be | C6: Beryllium | D6: 2 | E6: 2 | F6: 9.012182(3) | G6: 1.85 | H6: 1560.15 | I6: 2742 | J6: 1.825 | K6: Alkaline Earth Metals | L6: 2 | N6: 1287 | O6: 2468.85
A7: 5 | B7: B | C7: Boron | D7: 13 | E7: 2 | F7: 10.811(7) | G7: 2.34 | H7: 2573.15 | I7: 4200 | J7: 1.026 | K7: Metalloids | L7: 7 | N7: 2300 | O7: 3926.85
A8: 6 | B8: C | C8: Carbon | D8: 14 | E8: 2 | F8: 12.0107(8) | G8: 2.267 | H8: 3915 (sublimates) | I8: 3915 (sublimates) | J8: 0.709 | K8: Nonmetals | L8: 8
A9: 7 | B9: N | C9: Nitrogen | D9: 15 | E9: 2 | F9: 14.0067(2) | G9: 0.0012506 | H9: 63.29 | I9: 77.36 | J9: 1.04 | K9: Nonmetals | L9: 8 | N9: -209.86 | O9: -195.79
A10: 8 | B10: O | C10: Oxygen | D10: 16 | E10: 2 | F10: 15.9994(3) | G10: 0.001429 | H10: 50.5 | I10: 90.2 | J10: 0.918 | K10: Nonmetals | L10: 8 | N10: -222.65 | O10: -182.95
A11: 9 | B11: F | C11: Fluorine | D11: 17 | E11: 2 | F11: 18.9984032(5) | G11: 0.001696 | H11: 53.63 | I11: 85.03 | J11: 0.824 | K11: Halogens | L11: 9 | N11: -219.52 | O11: -188.12
A12: 10 | B12: Ne | C12: Neon | D12: 18 | E12: 2 | F12: 20.1797(6) | G12: 0.0008999 | H12: 24.703 | I12: 27.07 | J12: 1.03 | K12: Noble Gases | L12: 10 | N12: -248.447 | O12: -246.08
A13: 11 | B13: Na | C13: Sodium | D13: 1 | E13: 3 | F13: 22.98976928(2) | G13: 0.971 | H13: 371.15 | I13: 1156 | J13: 1.228 | K13: Alkali Metals | L13: 1 | N13: 98 | O13: 882.85
A14: 12 | B14: Mg | C14: Magnesium | D14: 2 | E14: 3 | F14: 24.3050(6) | G14: 1.738 | H14: 923.15 | I14: 1363 | J14: 1.023 | K14: Alkaline Earth Metals | L14: 2 | N14: 650 | O14: 1089.85
A15: 13 | B15: Al | C15: Aluminium | D15: 13 | E15: 3 | F15: 26.9815386(8) | G15: 2.698 | H15: 933.4 | I15: 2792 | J15: 0.897 | K15: Post-Transition Metals | L15: 6 | N15: 660.25 | O15: 2518.85
A16: 14 | B16: Si | C16: Silicon | D16: 14 | E16: 3 | F16: 28.0855(3) | G16: 2.3296 | H16: 1683.15 | I16: 3538 | J16: 0.705 | K16: Metalloids | L16: 7 | N16: 1410 | O16: 3264.85
A17: 15 | B17: P | C17: Phosphorus | D17: 15 | E17: 3 | F17: 30.973762(2) | G17: 1.82 | H17: 317.25 | I17: 553 | J17: 0.769 | K17: Nonmetals | L17: 8 | N17: 44.1 | O17: 279.85
A18: 16 | B18: S | C18: Sulfur | D18: 16 | E18: 3 | F18: 32.065(5) | G18: 2.067 | H18: 388.51 | I18: 717.8 | J18: 0.71 | K18: Nonmetals | L18: 8 | N18: 115.36 | O18: 444.65
A19: 17 | B19: Cl | C19: Chlorine | D19: 17 | E19: 3 | F19: 35.453(2) | G19: 0.003214 | H19: 172.31 | I19: 239.11 | J19: 0.479 | K19: Halogens | L19: 9 | N19: -100.84 | O19: -34.04
A20: 18 | B20: Ar | C20: Argon | D20: 18 | E20: 3 | F20: 39.948(1) | G20: 0.0017837 | H20: 83.96 | I20: 87.3 | J20: 0.52 | K20: Noble Gases | L20: 10 | N20: -189.19 | O20: -185.85
A21: 19 | B21: K | C21: Potassium | D21: 1 | E21: 4 | F21: 39.0983(1) | G21: 0.862 | H21: 336.5 | I21: 1032 | J21: 0.757 | K21: Alkali Metals | L21: 1 | N21: 63.35 | O21: 758.85
A22: 20 | B22: Ca | C22: Calcium | D22: 2 | E22: 4 | F22: 40.078(4) | G22: 1.54 | H22: 1112.15 | I22: 1757 | J22: 0.647 | K22: Alkaline Earth Metals | L22: 2 | N22: 839 | O22: 1483.85
A23: 21 | B23: Sc | C23: Scandium | D23: 3 | E23: 4 | F23: 44.955912(6) | G23: 2.989 | H23: 1812.15 | I23: 3109 | J23: 0.568 | K23: Transition Metals | L23: 5 | N23: 1539 | O23: 2835.85
A24: 22 | B24: Ti | C24: Titanium | D24: 4 | E24: 4 | F24: 47.867(1) | G24: 4.54 | H24: 1933.15 | I24: 3560 | J24: 0.523 | K24: Transition Metals | L24: 5 | N24: 1660 | O24: 3286.85
A25: 23 | B25: V | C25: Vanadium | D25: 5 | E25: 4 | F25: 50.9415(1) | G25: 6.11 | H25: 2175.15 | I25: 3680 | J25: 0.489 | K25: Transition Metals | L25: 5 | N25: 1902 | O25: 3406.85
A26: 24 | B26: Cr | C26: Chromium | D26: 6 | E26: 4 | F26: 51.9961(6) | G26: 7.15 | H26: 2130.15 | I26: 2944 | J26: 0.449 | K26: Transition Metals | L26: 5 | N26: 1857 | O26: 2670.85
A27: 25 | B27: Mn | C27: Manganese | D27: 7 | E27: 4 | F27: 54.938045(5) | G27: 7.44 | H27: 1519.15 | I27: 2334 | J27: 0.479 | K27: Transition Metals | L27: 5 | N27: 1246 | O27: 2060.85
A28: 26 | B28: Fe | C28: Iron | D28: 8 | E28: 4 | F28: 55.845(2) | G28: 7.874 | H28: 1808.15 | I28: 3134 | J28: 0.449 | K28: Transition Metals | L28: 5 | N28: 1535 | O28: 2860.85
A29: 27 | B29: Co | C29: Cobalt | D29: 9 | E29: 4 | F29: 58.933195(5) | G29: 8.86 | H29: 1768.15 | I29: 3200 | J29: 0.421 | K29: Transition Metals | L29: 5 | N29: 1495 | O29: 2926.85
A30: 28 | B30: Ni | C30: Nickel | D30: 10 | E30: 4 | F30: 58.6934(4) | G30: 8.912 | H30: 1726.15 | I30: 3186 | J30: 0.444 | K30: Transition Metals | L30: 5 | N30: 1453 | O30: 2912.85
A31: 29 | B31: Cu | C31: Copper | D31: 11 | E31: 4 | F31: 63.546(3)4 | G31: 8.96 | H31: 1357.75 | I31: 2835 | J31: 0.385 | K31: Transition Metals | L31: 5 | N31: 1084.6 | O31: 2561.85
A32: 30 | B32: Zn | C32: Zinc | D32: 12 | E32: 4 | F32: 65.38(2) | G32: 7.134 | H32: 692.88 | I32: 1180 | J32: 0.388 | K32: Transition Metals | L32: 5 | N32: 419.73 | O32: 906.85
A33: 31 | B33: Ga | C33: Gallium | D33: 13 | E33: 4 | F33: 69.723(1) | G33: 5.907 | H33: 302.91 | I33: 2477 | J33: 0.371 | K33: Post-Transition Metals | L33: 6 | N33: 29.76 | O33: 2203.85
A34: 32 | B34: Ge | C34: Germanium | D34: 14 | E34: 4 | F34: 72.63(1) | G34: 5.323 | H34: 1211.45 | I34: 3106 | J34: 0.32 | K34: Metalloids | L34: 7 | N34: 938.3 | O34: 2832.85
A35: 33 | B35: As | C35: Arsenic | D35: 15 | E35: 4 | F35: 74.92160(2) | G35: 5.776 | H35: 1090.157 | I35: 887 | J35: 0.329 | K35: Metalloids | L35: 7 | N35: 817.007 | O35: 613.85
A36: 34 | B36: Se | C36: Selenium | D36: 16 | E36: 4 | F36: 78.96(3)4 | G36: 4.809 | H36: 494.15 | I36: 958 | J36: 0.321 | K36: Nonmetals | L36: 8 | N36: 221 | O36: 684.85
A37: 35 | B37: Br | C37: Bromine | D37: 17 | E37: 4 | F37: 79.904(1) | G37: 3.122 | H37: 266.05 | I37: 332 | J37: 0.474 | K37: Halogens | L37: 9 | N37: -7.1 | O37: 58.85
A38: 36 | B38: Kr | C38: Krypton | D38: 18 | E38: 4 | F38: 83.798(2) | G38: 0.003733 | H38: 115.93 | I38: 119.93 | J38: 0.248 | K38: Noble Gases | L38: 10 | N38: -157.22 | O38: -153.22
A39: 37 | B39: Rb | C39: Rubidium | D39: 1 | E39: 5 | F39: 85.4678(3) | G39: 1.532 | H39: 312.79 | I39: 961 | J39: 0.363 | K39: Alkali Metals | L39: 1 | N39: 39.64 | O39: 687.85
A40: 38 | B40: Sr | C40: Strontium | D40: 2 | E40: 5 | F40: 87.62(1) | G40: 2.64 | H40: 1042.15 | I40: 1655 | J40: 0.301 | K40: Alkaline Earth Metals | L40: 2 | N40: 769 | O40: 1381.85
A41: 39 | B41: Y | C41: Yttrium | D41: 3 | E41: 5 | F41: 88.90585(2) | G41: 4.469 | H41: 1799.15 | I41: 3609 | J41: 0.298 | K41: Transition Metals | L41: 5 | N41: 1526 | O41: 3335.85
A42: 40 | B42: Zr | C42: Zirconium | D42: 4 | E42: 5 | F42: 91.224(2) | G42: 6.506 | H42: 2125.15 | I42: 4682 | J42: 0.278 | K42: Transition Metals | L42: 5 | N42: 1852 | O42: 4408.85
A43: 41 | B43: Nb | C43: Niobium | D43: 5 | E43: 5 | F43: 92.90638(2) | G43: 8.57 | H43: 2741.15 | I43: 5017 | J43: 0.265 | K43: Transition Metals | L43: 5 | N43: 2468 | O43: 4743.85
A44: 42 | B44: Mo | C44: Molybdenum | D44: 6 | E44: 5 | F44: 95.96(2) | G44: 10.22 | H44: 2890.15 | I44: 4912 | J44: 0.251 | K44: Transition Metals | L44: 5 | N44: 2617 | O44: 4638.85
A45: 43 | B45: Tc | C45: Technetium | D45: 7 | E45: 5 | F45: [98] | G45: 11.5 | H45: 2473.15 | I45: 5150 | J45: – | K45: Transition Metals | L45: 5 | N45: 2200 | O45: 4876.85
A46: 44 | B46: Ru | C46: Ruthenium | D46: 8 | E46: 5 | F46: 101.07(2) | G46: 12.37 | H46: 2523.15 | I46: 4423 | J46: 0.238 | K46: Transition Metals | L46: 5 | N46: 2250 | O46: 4149.85
A47: 45 | B47: Rh | C47: Rhodium | D47: 9 | E47: 5 | F47: 102.90550(2) | G47: 12.41 | H47: 2239.15 | I47: 3968 | J47: 0.243 | K47: Transition Metals | L47: 5 | N47: 1966 | O47: 3694.85
A48: 46 | B48: Pd | C48: Palladium | D48: 10 | E48: 5 | F48: 106.42(1) | G48: 12.02 | H48: 1825.15 | I48: 3236 | J48: 0.244 | K48: Transition Metals | L48: 5 | N48: 1552 | O48: 2962.85
A49: 47 | B49: Ag | C49: Silver | D49: 11 | E49: 5 | F49: 107.8682(2) | G49: 10.501 | H49: 1234.15 | I49: 2435 | J49: 0.235 | K49: Transition Metals | L49: 5 | N49: 961 | O49: 2161.85
A50: 48 | B50: Cd | C50: Cadmium | D50: 12 | E50: 5 | F50: 112.411(8) | G50: 8.69 | H50: 594.33 | I50: 1040 | J50: 0.232 | K50: Transition Metals | L50: 5 | N50: 321.18 | O50: 766.85
A51: 49 | B51: In | C51: Indium | D51: 13 | E51: 5 | F51: 114.818(3) | G51: 7.31 | H51: 429.91 | I51: 2345 | J51: 0.233 | K51: Post-Transition Metals | L51: 6 | N51: 156.76 | O51: 2071.85
A52: 50 | B52: Sn | C52: Tin | D52: 14 | E52: 5 | F52: 118.710(7) | G52: 7.287 | H52: 505.21 | I52: 2875 | J52: 0.228 | K52: Post-Transition Metals | L52: 6 | N52: 232.06 | O52: 2601.85
A53: 51 | B53: Sb | C53: Antimony | D53: 15 | E53: 5 | F53: 121.760(1) | G53: 6.685 | H53: 904.05 | I53: 1860 | J53: 0.207 | K53: Metalloids | L53: 7 | N53: 630.9 | O53: 1586.85
A54: 52 | B54: Te | C54: Tellurium | D54: 16 | E54: 5 | F54: 127.60(3) | G54: 6.232 | H54: 722.8 | I54: 1261 | J54: 0.202 | K54: Metalloids | L54: 7 | N54: 449.65 | O54: 987.85
A55: 53 | B55: I | C55: Iodine | D55: 17 | E55: 5 | F55: 126.90447(3) | G55: 4.93 | H55: 386.65 | I55: 457.4 | J55: 0.214 | K55: Halogens | L55: 9 | N55: 113.5 | O55: 184.25
A56: 54 | B56: Xe | C56: Xenon | D56: 18 | E56: 5 | F56: 131.293(6) | G56: 0.005887 | H56: 161.45 | I56: 165.03 | J56: 0.158 | K56: Noble Gases | L56: 10 | N56: -111.7 | O56: -108.12
A57: 55 | B57: Cs | C57: Caesium | D57: 1 | E57: 6 | F57: 132.9054519(2) | G57: 1.873 | H57: 301.7 | I57: 944 | J57: 0.242 | K57: Alkali Metals | L57: 1 | N57: 28.55 | O57: 670.85
A58: 56 | B58: Ba | C58: Barium | D58: 2 | E58: 6 | F58: 137.327(7) | G58: 3.594 | H58: 1002.15 | I58: 2170 | J58: 0.204 | K58: Alkaline Earth Metals | L58: 2 | N58: 729 | O58: 1896.85
A59: 57 | B59: La | C59: Lanthanum | E59: 6 | F59: 138.90547(7)2 | G59: 6.145 | H59: 1193.15 | I59: 3737 | J59: 0.195 | K59: Lanthanides | L59: 3 | N59: 920 | O59: 3463.85
A60: 58 | B60: Ce | C60: Cerium | E60: 6 | F60: 140.116(1)2 | G60: 6.77 | H60: 1071.15 | I60: 3716 | J60: 0.192 | K60: Lanthanides | L60: 3 | N60: 798 | O60: 3442.85
A61: 59 | B61: Pr | C61: Praseodymium | E61: 6 | F61: 140.90765(2) | G61: 6.773 | H61: 1204.15 | I61: 3793 | J61: 0.193 | K61: Lanthanides | L61: 3 | N61: 931 | O61: 3519.85
A62: 60 | B62: Nd | C62: Neodymium | E62: 6 | F62: 144.242(3) | G62: 7.007 | H62: 1289.15 | I62: 3347 | J62: 0.19 | K62: Lanthanides | L62: 3 | N62: 1016 | O62: 3073.85
A63: 61 | B63: Pm | C63: Promethium | E63: 6 | F63: [145] | G63: 7.26 | H63: 1204.15 | I63: 3273 | J63: – | K63: Lanthanides | L63: 3 | N63: 931 | O63: 2999.85
A64: 62 | B64: Sm | C64: Samarium | E64: 6 | F64: 150.36(2) | G64: 7.52 | H64: 1345.15 | I64: 2067 | J64: 0.197 | K64: Lanthanides | L64: 3 | N64: 1072 | O64: 1793.85
A65: 63 | B65: Eu | C65: Europium | E65: 6 | F65: 151.964(1) | G65: 5.243 | H65: 1095.15 | I65: 1802 | J65: 0.182 | K65: Lanthanides | L65: 3 | N65: 822 | O65: 1528.85
A66: 64 | B66: Gd | C66: Gadolinium | E66: 6 | F66: 157.25(3) | G66: 7.895 | H66: 1585.15 | I66: 3546 | J66: 0.236 | K66: Lanthanides | L66: 3 | N66: 1312 | O66: 3272.85
A67: 65 | B67: Tb | C67: Terbium | E67: 6 | F67: 158.92535(2) | G67: 8.229 | H67: 1630.15 | I67: 3503 | J67: 0.182 | K67: Lanthanides | L67: 3 | N67: 1357 | O67: 3229.85
A68: 66 | B68: Dy | C68: Dysprosium | E68: 6 | F68: 162.500(1) | G68: 8.55 | H68: 1680.15 | I68: 2840 | J68: 0.17 | K68: Lanthanides | L68: 3 | N68: =H68-273.15 -> 1407 | O68: =I68-273.15 -> 2566.85
A69: 67 | B69: Ho | C69: Holmium | E69: 6 | F69: 164.93032(2) | G69: 8.795 | H69: 1743.15 | I69: 2993 | J69: 0.165 | K69: Lanthanides | L69: 3 | N69: 1470 | O69: 2719.85
A70: 68 | B70: Er | C70: Erbium | E70: 6 | F70: 167.259(3) | G70: 9.066 | H70: 1795.15 | I70: 3503 | J70: 0.168 | K70: Lanthanides | L70: 3 | N70: 1522 | O70: 3229.85
A71: 69 | B71: Tm | C71: Thulium | E71: 6 | F71: 168.93421(2) | G71: 9.321 | H71: 1818.15 | I71: 2223 | J71: 0.16 | K71: Lanthanides | L71: 3 | N71: 1545 | O71: 1949.85
A72: 70 | B72: Yb | C72: Ytterbium | E72: 6 | F72: 173.054(5) | G72: 6.965 | H72: 1097.15 | I72: 1469 | J72: 0.155 | K72: Lanthanides | L72: 3 | N72: 824 | O72: 1195.85
A73: 71 | B73: Lu | C73: Lutetium | D73: 3 | E73: 6 | F73: 174.9668(1) | G73: 9.84 | H73: 1936.15 | I73: 3675 | J73: 0.154 | K73: Lanthanides | L73: 3 | N73: 1663 | O73: 3401.85
A74: 72 | B74: Hf | C74: Hafnium | D74: 4 | E74: 6 | F74: 178.49(2) | G74: 13.31 | H74: 2500.15 | I74: 4876 | J74: 0.144 | K74: Transition Metals | L74: 5 | N74: 2227 | O74: 4602.85
A75: 73 | B75: Ta | C75: Tantalum | D75: 5 | E75: 6 | F75: 180.94788(2) | G75: 16.654 | H75: 3269.15 | I75: 5731 | J75: 0.14 | K75: Transition Metals | L75: 5 | N75: 2996 | O75: 5457.85
A76: 74 | B76: W | C76: Tungsten | D76: 6 | E76: 6 | F76: 183.84(1) | G76: 19.25 | H76: 3680.15 | I76: 5828 | J76: 0.132 | K76: Transition Metals | L76: 5 | N76: 3407 | O76: 5554.85
A77: 75 | B77: Re | C77: Rhenium | D77: 7 | E77: 6 | F77: 186.207(1) | G77: 21.02 | H77: 3453.15 | I77: 5869 | J77: 0.137 | K77: Transition Metals | L77: 5 | N77: 3180 | O77: 5595.85
A78: 76 | B78: Os | C78: Osmium | D78: 8 | E78: 6 | F78: 190.23(3) | G78: 22.61 | H78: 3300.15 | I78: 5285 | J78: 0.13 | K78: Transition Metals | L78: 5 | N78: 3027 | O78: 5011.85
A79: 77 | B79: Ir | C79: Iridium | D79: 9 | E79: 6 | F79: 192.217(3) | G79: 22.56 | H79: 2716.15 | I79: 4701 | J79: 0.131 | K79: Transition Metals | L79: 5 | N79: 2443 | O79: 4427.85
A80: 78 | B80: Pt | C80: Platinum | D80: 10 | E80: 6 | F80: 195.084(9) | G80: 21.46 | H80: 2045.15 | I80: 4098 | J80: 0.133 | K80: Transition Metals | L80: 5 | N80: 1772 | O80: 3824.85
A81: 79 | B81: Au | C81: Gold | D81: 11 | E81: 6 | F81: 196.966569(4) | G81: 19.282 | H81: 1337.73 | I81: 3129 | J81: 0.129 | K81: Transition Metals | L81: 5 | N81: 1064.58 | O81: 2855.85
A82: 80 | B82: Hg | C82: Mercury | D82: 12 | E82: 6 | F82: 200.59(2) | G82: 13.5336 | H82: 234.43 | I82: 630 | J82: 0.14 | K82: Transition Metals | L82: 5 | N82: -38.72 | O82: 356.85
A83: 81 | B83: Tl | C83: Thallium | D83: 13 | E83: 6 | F83: 204.3833(2) | G83: 11.85 | H83: 577.15 | I83: 1746 | J83: 0.129 | K83: Post-Transition Metals | L83: 6 | N83: 304 | O83: 1472.85
A84: 82 | B84: Pb | C84: Lead | D84: 14 | E84: 6 | F84: 207.2(1) | G84: 11.342 | H84: 600.75 | I84: 2022 | J84: 0.129 | K84: Post-Transition Metals | L84: 6 | N84: 327.6 | O84: 1748.85
A85: 83 | B85: Bi | C85: Bismuth | D85: 15 | E85: 6 | F85: 208.98040(1) | G85: 9.807 | H85: 544.67 | I85: 1837 | J85: 0.122 | K85: Post-Transition Metals | L85: 6 | N85: 271.52 | O85: 1563.85
A86: 84 | B86: Po | C86: Polonium | D86: 16 | E86: 6 | F86: [209] | G86: 9.32 | H86: 527.15 | I86: 1235 | J86: – | K86: Metalloids | L86: 7 | N86: 254 | O86: 961.85
A87: 85 | B87: At | C87: Astatine | D87: 17 | E87: 6 | F87: [210] | G87: 7 | H87: 575.15 | I87: 610 | J87: – | K87: Halogens | L87: 9 | N87: 302 | O87: 336.85
A88: 86 | B88: Rn | C88: Radon | D88: 18 | E88: 6 | F88: [222] | G88: 0.00973 | H88: 202.15 | I88: 211.3 | J88: 0.094 | K88: Noble Gases | L88: 10 | N88: -71 | O88: -61.85
A89: 87 | B89: Fr | C89: Francium | D89: 1 | E89: 7 | F89: [223] | G89: 1.87 | H89: 300.15 | I89: 950 | J89: – | K89: Alkali Metals | L89: 1 | N89: 27 | O89: 676.85
A90: 88 | B90: Ra | C90: Radium | D90: 2 | E90: 7 | F90: [226] | G90: 5.5 | H90: 973.15 | I90: 2010 | J90: – | K90: Alkaline Earth Metals | L90: 2 | N90: 700 | O90: 1736.85
A91: 89 | B91: Ac | C91: Actinium | E91: 7 | F91: [227] | G91: 10.07 | H91: 1323.15 | I91: 3471 | J91: 0.12 | K91: Actinides | L91: 4 | N91: 1050 | O91: 3197.85
A92: 90 | B92: Th | C92: Thorium | E92: 7 | F92: 232.03806(2) | G92: 11.72 | H92: 2028.15 | I92: 5061 | J92: 0.113 | K92: Actinides | L92: 4 | N92: 1755 | O92: 4787.85
A93: 91 | B93: Pa | C93: Protactinium | E93: 7 | F93: 231.03588(2) | G93: 15.37 | H93: 1873.15 | I93: 4300 | J93: – | K93: Actinides | L93: 4 | N93: 1600 | O93: 4026.85
A94: 92 | B94: U | C94: Uranium | E94: 7 | F94: 238.02891(3) | G94: 18.95 | H94: 1405.15 | I94: 4404 | J94: 0.116 | K94: Actinides | L94: 4 | N94: 1132 | O94: 4130.85
A95: 93 | B95: Np | C95: Neptunium | E95: 7 | F95: [237] | G95: 20.45 | H95: 913.15 | I95: 4273 | J95: – | K95: Actinides | L95: 4 | N95: 640 | O95: 3999.85
A96: 94 | B96: Pu | C96: Plutonium | E96: 7 | F96: [244] | G96: 19.84 | H96: 913.15 | I96: 3501 | J96: – | K96: Actinides | L96: 4 | N96: 640 | O96: 3227.85
A97: 95 | B97: Am | C97: Americium | E97: 7 | F97: [243] | G97: 13.69 | H97: 1267.15 | I97: 2880 | J97: – | K97: Actinides | L97: 4 | N97: 994 | O97: 2606.85
A98: 96 | B98: Cm | C98: Curium | E98: 7 | F98: [247] | G98: 13.51 | H98: 1340.15 | I98: 3383 | J98: – | K98: Actinides | L98: 4 | N98: 1067 | O98: 3109.85
A99: 97 | B99: Bk | C99: Berkelium | E99: 7 | F99: [247] | G99: 14.79 | H99: 1259.15 | I99: 983 | J99: – | K99: Actinides | L99: 4 | N99: 986 | O99: 709.85
A100: 98 | B100: Cf | C100: Californium | E100: 7 | F100: [251] | G100: 15.1 | H100: 1925.15 | I100: 1173 | J100: – | K100: Actinides | L100: 4 | N100: 1652 | O100: 899.85
A101: 99 | B101: Es | C101: Einsteinium | E101: 7 | F101: [252] | G101: 13.5 | H101: 1133.15 | I101: – | J101: – | K101: Actinides | L101: 4 | N101: 860
A102: 100 | B102: Fm | C102: Fermium | E102: 7 | F102: [257] | G102: – | H102: 1800 | I102: – | J102: – | K102: Actinides | L102: 4 | N102: 1526.85
A103: 101 | B103: Md | C103: Mendelevium | E103: 7 | F103: [258] | G103: – | H103: 1100 | I103: – | J103: – | K103: Actinides | L103: 4 | N103: 826.85
A104: 102 | B104: No | C104: Nobelium | E104: 7 | F104: [259] | G104: – | H104: 1100 | I104: – | J104: – | K104: Actinides | L104: 4 | N104: 826.85
A105: 103 | B105: Lr | C105: Lawrencium | D105: 3 | E105: 7 | F105: [262] | G105: – | H105: 1900 | I105: – | J105: – | K105: Actinides | L105: 4 | N105: 1626.85
A106: 104 | B106: Rf | C106: Rutherfordium | D106: 4 | E106: 7 | F106: [267] | G106: – | H106: – | I106: – | J106: – | K106: Transition Metals | L106: 5
A107: 105 | B107: Db | C107: Dubnium | D107: 5 | E107: 7 | F107: [268] | G107: – | H107: – | I107: – | J107: – | K107: Transition Metals | L107: 5
A108: 106 | B108: Sg | C108: Seaborgium | D108: 6 | E108: 7 | F108: [269] | G108: – | H108: – | I108: – | J108: – | K108: Transition Metals | L108: 5
A109: 107 | B109: Bh | C109: Bohrium | D109: 7 | E109: 7 | F109: [270] | G109: – | H109: – | I109: – | J109: – | K109: Transition Metals | L109: 5
A110: 108 | B110: Hs | C110: Hassium | D110: 8 | E110: 7 | F110: [269] | G110: – | H110: – | I110: – | J110: – | K110: Transition Metals | L110: 5
A111: 109 | B111: Mt | C111: Meitnerium | D111: 9 | E111: 7 | F111: [278] | G111: – | H111: – | I111: – | J111: – | K111: Unknown | L111: 11
A112: 110 | B112: Ds | C112: Darmstadtium | D112: 10 | E112: 7 | F112: [281] | G112: – | H112: – | I112: – | J112: – | K112: Unknown | L112: 11 | P112: Density | Q112: Melt | R112: Boil | S112: Heat | T112: Classification
A113: 111 | B113: Rg | C113: Roentgenium | D113: 11 | E113: 7 | F113: [281] | G113: – | H113: – | I113: – | J113: – | K113: Unknown | L113: 11 | O113: =valSymbol -> Th | P113: =LOOKUP($O$113,Data!$B$3:$B$120,Data!G3:G120) -> – | Q113: =LOOKUP($O$113,Data!$B$3:$B$120,Data!H3:H120) -> – | R113: =LOOKUP($O$113,Data!$B$3:$B$120,Data!I3:I120) -> – | S113: =LOOKUP($O$113,Data!$B$3:$B$120,Data!J3:J120) -> – | T113: =LOOKUP($O$113,Data!$B$3:$B$120,Data!K3:K120) -> Transition Metals
A114: 112 | B114: Cn | C114: Copernicium | D114: 12 | E114: 7 | F114: [285] | G114: – | H114: – | I114: – | J114: – | K114: Transition Metals | L114: 5
A115: 113 | B115: Uut | C115: Ununtrium | D115: 13 | E115: 7 | F115: [286] | G115: – | H115: – | I115: – | J115: – | K115: Unknown | L115: 11
A116: 114 | B116: Fl | C116: Flerovium | D116: 14 | E116: 7 | F116: [289] | G116: – | H116: – | I116: – | J116: – | K116: Unknown | L116: 11
A117: 115 | B117: Uup | C117: Ununpentium | D117: 15 | E117: 7 | F117: [288] | G117: – | H117: – | I117: – | J117: – | K117: Unknown | L117: 11
A118: 116 | B118: Lv | C118: Livermorium | D118: 16 | E118: 7 | F118: [293] | G118: – | H118: – | I118: – | J118: – | K118: Unknown | L118: 11
A119: 117 | B119: Uus | C119: Ununseptium | D119: 17 | E119: 7 | F119: [294] | G119: – | H119: – | I119: – | J119: – | K119: Unknown | L119: 11
A120: 118 | B120: Uuo | C120: Ununoctium | D120: 18 | E120: 7 | F120: [294] | G120: – | H120: – | I120: – | J120: – | K120: Unknown | L120: 11
